Local authority department which incurred the expenditure,Service Division,Cost Centre,Summary of the Purpose of Expenditure,Expense Type,Expense Code,Detailed Expense Type,Date of Transaction,Transaction Number,Beneficiary,Merchant Category Number,Merchant Category,Gross Amount,VAT,Net Amount
Resources,Digital and Customer Services,065350,Innovation,Supplies and Services,304335,Equipment and Materials,01-Feb-2018,000006965662677,WAVES INC,7372,ICT supplies etc,2.69,0.00,2.69
Transformation and Partnerships,Comms & Information Management,060270,Communications and Marketing,Supplies and Services,372009,Subscriptions,01-Feb-2018,000006965663437,GOOGLE ADWS8772529636,5968,Subscriptions,500.00,0.00,500.00
Children and Young Peoples Services,Head of Education,071801,Selby Cottage Childcare Centre,Supplies and Services,304259,Equipment and Materials,01-Feb-2018,000006970932525,WILKO RETAIL LIMIT,5722,Equipment-purchase and rental,2.85,0.00,2.85
Children and Young Peoples Services,Head of Education,071801,Selby Cottage Childcare Centre,Supplies and Services,324117,Provisions,01-Feb-2018,000006970932529,TESCO STORES 2278,5411,Catering costs - provisions,8.46,0.00,8.46
Regeneration and Local Services,Economic Development and Housing,031576,B& B - Temp Accom,Supplies and Services,364320,Grants to Voluntary Organisations,01-Feb-2018,000006970932575,KRD ASSOCIATES,7399,Accommodation assistance,500.00,0.00,500.00
Regeneration and Local Services,Economic Development and Housing,031576,B& B - Temp Accom,Supplies and Services,364320,Grants to Voluntary Organisations,01-Feb-2018,000006970932577,KRD ASSOCIATES,7399,Accommodation assistance,500.00,0.00,500.00
Regeneration and Local Services,Economic Development and Housing,030732,Rural Employability Project - South Durham,Supplies and Services,304259,Equipment and Materials,01-Feb-2018,000006970932611,WWW.DURHAM.GOV.UK,9399,Equipment-purchase and rental,20.00,0.00,20.00
Regeneration and Local Services,Economic Development and Housing,031500,Housing Solutions - Core Team,Supplies and Services,352001,Conference Expenses,01-Feb-2018,000006970932635,TRAVELODGE,3615,Conferencesseminars fees etc,39.00,0.00,39.00
Adult and Health Services,Head of Adults,055302,Durham Pathways,Supplies and Services,324117,Provisions,01-Feb-2018,000006970932653,LIDL UK,5411,Catering costs - provisions,0.54,0.09,0.45
Adult and Health Services,Head of Adults,055302,Durham Pathways,Supplies and Services,324117,Provisions,01-Feb-2018,000006970932653 - 1,LIDL UK,5411,Catering costs - provisions,6.65,,6.65
Regeneration and Local Services,Economic Development and Housing,030737,Durham Works Flexible Fund,Transport,235057,Public Transport,01-Feb-2018,000006970932781,ARRIVA NORTH EAST,4131,Staff travelling,15.00,0.00,15.00
Regeneration and Local Services,Direct Services,021242,Catering - County Hall,Supplies and Services,324117,Provisions,01-Feb-2018,000006970932791,JR HOLLAND FOODSERVICE,5422,Catering costs - provisions,92.42,0.00,92.42
Regeneration and Local Services,Direct Services,021242,Catering - County Hall,Supplies and Services,324117,Provisions,01-Feb-2018,000006970932799,JR HOLLAND FOODSERVICE,5422,Catering costs - provisions,13.20,0.00,13.20
Regeneration and Local Services,Direct Services,021242,Catering - County Hall,Supplies and Services,324117,Provisions,01-Feb-2018,000006970932801,JR HOLLAND FOODSERVICE,5422,Catering costs - provisions,-12.88,0.00,-12.88
Regeneration and Local Services,Culture & Sport,054812,Gala Theatre - Catering etc,Supplies and Services,324117,Provisions,01-Feb-2018,000006970932829,HOPWELLS LTD,5811,Catering costs - provisions,44.78,0.00,44.78
Regeneration and Local Services,Culture & Sport,054812,Gala Theatre - Catering etc,Supplies and Services,324117,Provisions,01-Feb-2018,000006970932833,JR HOLLAND FOODSERVICE,5422,Catering costs - provisions,32.17,0.00,32.17
Children and Young Peoples Services,Head of Looked After Provision Permanence and Care Leavers,085351,Framwellgate Moor CU,Supplies and Services,352001,Conference Expenses,01-Feb-2018,000006970932895,Hotel on Booking.com,7011,Conferencesseminars fees etc,198.00,0.00,198.00
Regeneration and Local Services,Economic Development and Housing,030749,Employability - Youth Contract,Transport,235057,Public Transport,01-Feb-2018,000006970932949,WWW.SIMPLYGO.COM,4131,Staff travelling,105.00,0.00,105.00
Regeneration and Local Services,Culture & Sport,054813,Gala Theatre - Technical,Supplies and Services,340001,Postages,01-Feb-2018,000006970932969,PARCEL2GO.COM LTD,4215,Postages,11.06,1.84,9.22
Regeneration and Local Services,Culture & Sport,054813,Gala Theatre - Technical,Supplies and Services,340001,Postages,01-Feb-2018,000006970932971,PARCEL2GO.COM LTD,4215,Postages,17.74,2.96,14.78
Children and Young Peoples Services,Head of Looked After Provision Permanence and Care Leavers,085957,Secure Management,Supplies and Services,328041,Clothing Uniforms and Laundry,01-Feb-2018,000006970933101,WWW.COTSWOLDOUTDOOR.CO,5691,Clothing uniforms and laundry,134.95,0.00,134.95
Children and Young Peoples Services,Head of Looked After Provision Permanence and Care Leavers,085957,Secure Management,Supplies and Services,324117,Provisions,01-Feb-2018,000006970933105,TESCO STORES 6329,5411,Catering costs - provisions,133.57,0.00,133.57
Children and Young Peoples Services,Head of Looked After Provision Permanence and Care Leavers,085957,Secure Management,Supplies and Services,304259,Equipment and Materials,01-Feb-2018,000006970933107,M and M Direct Ltd,5941,Equipment-purchase and rental,-24.99,0.00,-24.99
Children and Young Peoples Services,Head of Early Help Assessment and Safeguarding,071746,Newton Aycliffe Childrens Centre,Supplies and Services,324117,Provisions,01-Feb-2018,000006970933121,TESCO STORES 2916,5411,Catering costs - provisions,20.80,0.00,20.80
Regeneration and Local Services,Direct Services,010301,C&G - North Grounds Maintenance,Supplies and Services,304259,Equipment and Materials,01-Feb-2018,000006970933137,SCREWFIX DIRECT,5211,Equipment-purchase and rental,3.66,0.61,3.05
Regeneration and Local Services,Direct Services,010301,C&G - North Grounds Maintenance,Supplies and Services,304259,Equipment and Materials,01-Feb-2018,000006970933137 - 1,SCREWFIX DIRECT,5211,Equipment-purchase and rental,0.03,,0.03
Regeneration and Local Services,Spatial Policy Planning Assets & Environment,031222,North Pennines Allen Valleys Landscape Partnership,Supplies and Services,324117,Provisions,01-Feb-2018,000006970933147,CO-OP GROUP FOOD,5411,Catering costs - provisions,4.44,0.00,4.44
Regeneration and Local Services,Culture & Sport,011060,Hardwick Park Catering,Supplies and Services,324117,Provisions,01-Feb-2018,000006970933155,JR HOLLAND FOODSERVICE,5422,Catering costs - provisions,5.58,0.00,5.58
Regeneration and Local Services,Culture & Sport,011060,Hardwick Park Catering,Supplies and Services,324117,Provisions,01-Feb-2018,000006970933161,HOPWELLS LTD,5811,Catering costs - provisions,-11.29,0.00,-11.29
Children and Young Peoples Services,Head of Looked After Provision Permanence and Care Leavers,085332,Middlestone Moor CU,Supplies and Services,328041,Clothing Uniforms and Laundry,01-Feb-2018,000006970933223,POUNDWORLD,5310,Clothing uniforms and laundry,5.00,0.00,5.00
Children and Young Peoples Services,Head of Looked After Provision Permanence and Care Leavers,085332,Middlestone Moor CU,Supplies and Services,304259,Equipment and Materials,01-Feb-2018,000006970933227,WILKO RETAIL LIMIT,5722,Equipment-purchase and rental,12.50,0.00,12.50
Children and Young Peoples Services,Head of Looked After Provision Permanence and Care Leavers,085332,Middlestone Moor CU,Supplies and Services,312011,Newspapers Books and Periodicals,01-Feb-2018,000006970933231,HOME BARGAINS,5251,Books-school library,22.04,3.67,18.37
Children and Young Peoples Services,Head of Looked After Provision Permanence and Care Leavers,085332,Middlestone Moor CU,Supplies and Services,328041,Clothing Uniforms and Laundry,01-Feb-2018,000006970933237,TK MAXX,5331,Clothing uniforms and laundry,17.98,0.00,17.98
Children and Young Peoples Services,Head of Looked After Provision Permanence and Care Leavers,085332,Middlestone Moor CU,Supplies and Services,324117,Provisions,01-Feb-2018,000006970933243,TESCO STORES 2916,5411,Catering costs - provisions,13.00,0.00,13.00
Regeneration and Local Services,Direct Services,021234,Catering - Locomotion,Supplies and Services,324117,Provisions,01-Feb-2018,000006970933251,HOPWELLS LTD,5811,Catering costs - provisions,54.12,9.02,45.10
Regeneration and Local Services,Direct Services,021234,Catering - Locomotion,Supplies and Services,324117,Provisions,01-Feb-2018,000006970933251 - 1,HOPWELLS LTD,5811,Catering costs - provisions,70.05,,70.05
Children and Young Peoples Services,Head of Looked After Provision Permanence and Care Leavers,085342,9 Cedar Drive Aycliffe,Supplies and Services,328041,Clothing Uniforms and Laundry,01-Feb-2018,000006970933453,WWW.BOOHOO.COM,5691,Clothing uniforms and laundry,51.00,0.00,51.00
Children and Young Peoples Services,Head of Looked After Provision Permanence and Care Leavers,085342,9 Cedar Drive Aycliffe,Employees,040149,Recruitment Instruction and Training,01-Feb-2018,000006970933457,PARENTPAY E-COM R,8220,Training-all costs,30.00,0.00,30.00
Regeneration and Local Services,Culture & Sport,026591,Hardwick Park,Supplies and Services,384999,Miscellaneous Expenses,01-Feb-2018,000006970933499,Amazon UK Marketplace,5942,Other expenses,76.88,0.00,76.88
Regeneration and Local Services,Culture & Sport,026591,Hardwick Park,Supplies and Services,312009,Newspapers Books and Periodicals,01-Feb-2018,000006970933507,Amazon UK Marketplace,5942,Newspapers books and periodicals,7.78,0.00,7.78
Children and Young Peoples Services,Head of Looked After Provision Permanence and Care Leavers,085372,Young People Services - North,Supplies and Services,328041,Clothing Uniforms and Laundry,01-Feb-2018,000006970933849,WWW.ARGOS.CO.UK,5310,Clothing uniforms and laundry,16.94,0.00,16.94
Regeneration and Local Services,Economic Development and Housing,030694,Netpark Incubator 2,Supplies and Services,324117,Provisions,01-Feb-2018,000006970934123,RINGTONS,5499,Catering costs - provisions,37.71,0.00,37.71
Regeneration and Local Services,Direct Services,010301,C&G - North Grounds Maintenance,Supplies and Services,304221,Equipment and Materials,01-Feb-2018,000006970934141,ARCO LTD,5085,Direct materials,106.80,17.80,89.00
Regeneration and Local Services,Culture & Sport,054819,Gala Theatre - Theatre,Supplies and Services,384956,Miscellaneous Expenses,01-Feb-2018,000006970934157,WP-INSTANTSSL CERTIFIC,7399,Licences,277.02,0.00,277.02
Adult and Health Services,Head of Adults,056601,Substance Misuse,Supplies and Services,338048,Services,01-Feb-2018,000006970934159,HMCOURTS-SERVICE.G,9222,Court Costs,150.00,0.00,150.00
Regeneration and Local Services,Direct Services,021235,Catering - Wharton Park,Supplies and Services,324117,Provisions,01-Feb-2018,000006970934171,JR HOLLAND FOODSERVICE,5422,Catering costs - provisions,12.86,0.00,12.86
Regeneration and Local Services,Culture & Sport,011230,Operations Locality 2,Supplies and Services,312011,Newspapers Books and Periodicals,01-Feb-2018,000006970934209,CHARLES DICKENS (SPENN,5251,Books-school library,39.51,0.00,39.51
Regeneration and Local Services,Economic Development and Housing,031500,Housing Solutions - Core Team,Employees,040149,Recruitment Instruction and Training,01-Feb-2018,000006976916889,PREMIER INN,3811,Training-all costs,66.00,0.00,66.00
Regeneration and Local Services,Economic Development and Housing,031500,Housing Solutions - Core Team,Employees,040149,Recruitment Instruction and Training,01-Feb-2018,000006976916893,PREMIER INN,3811,Training-all costs,65.00,0.00,65.00
Regeneration and Local Services,Direct Services,021242,Catering - County Hall,Supplies and Services,324117,Provisions,01-Feb-2018,000006976917005,BATLEYS PERTH,5300,Catering costs - provisions,452.88,75.48,377.40
Regeneration and Local Services,Direct Services,021242,Catering - County Hall,Supplies and Services,324117,Provisions,01-Feb-2018,000006976917005 - 1,BATLEYS PERTH,5300,Catering costs - provisions,100.09,,100.09
Children and Young Peoples Services,Head of Looked After Provision Permanence and Care Leavers,085352,Tow Law CU,Supplies and Services,328041,Clothing Uniforms and Laundry,01-Feb-2018,000006976917119,ARGOS RETAIL GROUP,5310,Clothing uniforms and laundry,124.99,0.00,124.99
Regeneration and Local Services,Culture & Sport,011060,Hardwick Park Catering,Supplies and Services,324117,Provisions,01-Feb-2018,000006976917213,BATLEYS PERTH,5300,Catering costs - provisions,155.46,25.91,129.55
Regeneration and Local Services,Culture & Sport,011060,Hardwick Park Catering,Supplies and Services,324117,Provisions,01-Feb-2018,000006976917213 - 1,BATLEYS PERTH,5300,Catering costs - provisions,149.98,,149.98
Regeneration and Local Services,Direct Services,021234,Catering - Locomotion,Supplies and Services,324117,Provisions,01-Feb-2018,000006976917253,BATLEYS PERTH,5300,Catering costs - provisions,85.98,14.33,71.65
Regeneration and Local Services,Direct Services,021234,Catering - Locomotion,Supplies and Services,324117,Provisions,01-Feb-2018,000006976917253 - 1,BATLEYS PERTH,5300,Catering costs - provisions,80.21,,80.21
Regeneration and Local Services,Direct Services,021234,Catering - Locomotion,Supplies and Services,324117,Provisions,01-Feb-2018,000006976917257,BATLEYS PERTH,5300,Catering costs - provisions,11.30,0.00,11.30
Children and Young Peoples Services,Head of Looked After Provision Permanence and Care Leavers,085341,High Etherley Satelite Home,Supplies and Services,304259,Equipment and Materials,02-Feb-2018,000006976916787,DARLINGTON HIPPODROME,9399,Equipment-purchase and rental,70.00,0.00,70.00
Children and Young Peoples Services,Head of Looked After Provision Permanence and Care Leavers,085341,High Etherley Satelite Home,Supplies and Services,324117,Provisions,02-Feb-2018,000006976916791,TESCO STORES 6329,5411,Catering costs - provisions,7.92,0.00,7.92
Children and Young Peoples Services,Head of Looked After Provision Permanence and Care Leavers,085341,High Etherley Satelite Home,Supplies and Services,324117,Provisions,02-Feb-2018,000006976916795,TESCO STORES 6329,5411,Catering costs - provisions,6.00,0.00,6.00
Children and Young Peoples Services,Head of Looked After Provision Permanence and Care Leavers,085341,High Etherley Satelite Home,Supplies and Services,324117,Provisions,02-Feb-2018,000006976916797,CO-OP GROUP 310027,5411,Catering costs - provisions,20.00,0.00,20.00
Children and Young Peoples Services,Head of Education,054640,Durham Learning Resources,Supplies and Services,312011,Newspapers Books and Periodicals,02-Feb-2018,000006976916825,Amazon UK Marketplace,5942,Books-school library,8.49,0.00,8.49
Children and Young Peoples Services,Head of Education,054640,Durham Learning Resources,Supplies and Services,312011,Newspapers Books and Periodicals,02-Feb-2018,000006976916829,Amazon UK Marketplace,5942,Books-school library,2.89,0.00,2.89
Regeneration and Local Services,Economic Development and Housing,031576,B& B - Temp Accom,Supplies and Services,364320,Grants to Voluntary Organisations,02-Feb-2018,000006976916837,TRAVELODGE,3615,Accommodation assistance,120.00,20.00,100.00
Regeneration and Local Services,Economic Development and Housing,031576,B& B - Temp Accom,Supplies and Services,364320,Grants to Voluntary Organisations,02-Feb-2018,000006976916841,PREMIER INN,3811,Accommodation assistance,174.50,0.00,174.50
Regeneration and Local Services,Economic Development and Housing,031576,B& B - Temp Accom,Supplies and Services,364320,Grants to Voluntary Organisations,02-Feb-2018,000006976916845,PREMIER INN,3811,Accommodation assistance,176.50,0.00,176.50
Resources,Digital and Customer Services,069010,Administration,Supplies and Services,344033,Telephones,02-Feb-2018,000006976916853,Amazon UK Marketplace,5942,Telephones general-all costs,44.44,7.41,37.03
Resources,Digital and Customer Services,069010,Administration,Supplies and Services,344033,Telephones,02-Feb-2018,000006976916857,Amazon UK Marketplace,5942,Telephones general-all costs,44.44,7.41,37.03
Resources,Digital and Customer Services,069010,Administration,Supplies and Services,344033,Telephones,02-Feb-2018,000006976916861,Amazon UK Marketplace,5942,Telephones general-all costs,44.44,7.41,37.03
Resources,Digital and Customer Services,069010,Administration,Supplies and Services,344033,Telephones,02-Feb-2018,000006976916863,Amazon UK Marketplace,5942,Telephones general-all costs,24.24,4.04,20.20
Resources,Digital and Customer Services,069010,Administration,Supplies and Services,344033,Telephones,02-Feb-2018,000006976916867,Amazon UK Marketplace,5942,Telephones general-all costs,44.44,7.41,37.03
Regeneration and Local Services,Economic Development and Housing,030732,Rural Employability Project - South Durham,Supplies and Services,344033,Telephones,02-Feb-2018,000006976916885,VODAFONE,4814,Telephones general-all costs,35.00,0.00,35.00
Adult and Health Services,Head of Adults,055302,Durham Pathways,Supplies and Services,340001,Postages,02-Feb-2018,000006976916909,POST OFFICE COUNTER,9402,Postages,9.66,0.00,9.66
Regeneration and Local Services,Economic Development and Housing,030699,Business Growth and Innovation General,Supplies and Services,312011,Newspapers Books and Periodicals,02-Feb-2018,000006976916927,FASTHOSTS INTERNET,4816,Books-school library,30.00,0.00,30.00
Regeneration and Local Services,Economic Development and Housing,030699,Business Growth and Innovation General,Supplies and Services,312011,Newspapers Books and Periodicals,02-Feb-2018,000006976916929,FASTHOSTS INTERNET,4816,Books-school library,59.99,0.00,59.99
Regeneration and Local Services,Economic Development and Housing,030737,Durham Works Flexible Fund,Supplies and Services,304259,Equipment and Materials,02-Feb-2018,000006976917001,START FITNESS DURHAM S,5941,Equipment-purchase and rental,39.95,0.00,39.95
Children and Young Peoples Services,Head of Early Help Assessment and Safeguarding,085622,Families First Ferryhill,Supplies and Services,338048,Services,02-Feb-2018,000006976917013,WWW.HAVERING.GOV.UK,9399,Court Costs,10.00,0.00,10.00
Regeneration and Local Services,Culture & Sport,011217,Commercial Management,Supplies and Services,342033,Computers and Communications,02-Feb-2018,000006976917079,SurveyMonkey,7372,Computer hardware,336.00,56.00,280.00
Regeneration and Local Services,Culture & Sport,011217,Commercial Management,Supplies and Services,384999,Miscellaneous Expenses,02-Feb-2018,000006976917081,DISPLAYSENSE.CO.UK,5046,Other expenses,380.88,63.48,317.40
Regeneration and Local Services,Culture & Sport,011217,Commercial Management,Supplies and Services,336005,Advertising,02-Feb-2018,000006976917085,TEXTANYWHERE LTD,4814,Advertising other than for staff,291.00,48.50,242.50
Children and Young Peoples Services,Head of Looked After Provision Permanence and Care Leavers,085334,West Rainton Satelite Home,Supplies and Services,312011,Newspapers Books and Periodicals,02-Feb-2018,000006976917103,HOME BARGAINS,5251,Books-school library,22.73,0.00,22.73
Children and Young Peoples Services,Head of Looked After Provision Permanence and Care Leavers,085334,West Rainton Satelite Home,Supplies and Services,324117,Provisions,02-Feb-2018,000006976917107,TESCO STORES 2371,5411,Catering costs - provisions,23.81,0.00,23.81
Children and Young Peoples Services,Head of Looked After Provision Permanence and Care Leavers,085334,West Rainton Satelite Home,Supplies and Services,324117,Provisions,02-Feb-2018,000006976917111,TESCO STORES 2371,5411,Catering costs - provisions,10.00,0.00,10.00
Children and Young Peoples Services,Head of Looked After Provision Permanence and Care Leavers,085334,West Rainton Satelite Home,Supplies and Services,324117,Provisions,02-Feb-2018,000006976917113,ALDI 12 774,5411,Catering costs - provisions,56.30,0.00,56.30
Children and Young Peoples Services,Head of Looked After Provision Permanence and Care Leavers,085352,Tow Law CU,Supplies and Services,324117,Provisions,02-Feb-2018,000006976917117,TESCO STORES 2371,5411,Catering costs - provisions,222.78,0.00,222.78
Regeneration and Local Services,Culture & Sport,010664,Freemans Quay Leisure Centre,Supplies and Services,304403,Equipment and Materials,02-Feb-2018,000006976917129,ELTONS FOOTWEAR,7251,Other consumables,10.50,1.75,8.75
Children and Young Peoples Services,Head of Looked After Provision Permanence and Care Leavers,085957,Secure Management,Supplies and Services,324117,Provisions,02-Feb-2018,000006976917189,TESCO STORES 6329,5411,Catering costs - provisions,91.50,0.00,91.50
Children and Young Peoples Services,Head of Looked After Provision Permanence and Care Leavers,085551,Short Break Services-Park Hse Sher,Supplies and Services,324117,Provisions,02-Feb-2018,000006976917235,ICELAND,5411,Catering costs - provisions,17.25,0.00,17.25
Children and Young Peoples Services,Head of Looked After Provision Permanence and Care Leavers,085551,Short Break Services-Park Hse Sher,Supplies and Services,324117,Provisions,02-Feb-2018,000006976917239,ALDI 12 774,5411,Catering costs - provisions,73.70,0.00,73.70
Children and Young Peoples Services,Head of Looked After Provision Permanence and Care Leavers,085332,Middlestone Moor CU,Supplies and Services,324117,Provisions,02-Feb-2018,000006976917243,ASDA SUPERSTORE 4987,5411,Catering costs - provisions,52.28,0.00,52.28
Children and Young Peoples Services,Head of Looked After Provision Permanence and Care Leavers,085332,Middlestone Moor CU,Supplies and Services,324117,Provisions,02-Feb-2018,000006976917247,LAKELAND.LIMITED,5399,Catering costs - provisions,299.98,50.00,249.98
Children and Young Peoples Services,Head of Looked After Provision Permanence and Care Leavers,085334,West Rainton Satelite Home,Supplies and Services,308011,Furniture,02-Feb-2018,000006976917361,HOUGHTON CARPET CENTRE,5713,Furniture repair and replacement,165.00,0.00,165.00
Children and Young Peoples Services,Head of Looked After Provision Permanence and Care Leavers,085334,West Rainton Satelite Home,Supplies and Services,304259,Equipment and Materials,02-Feb-2018,000006976917365,B & Q 1343,5211,Equipment-purchase and rental,316.64,0.00,316.64
Regeneration and Local Services,Direct Services,020041,Bldg Serv - Business Development - General,Transport,235057,Public Transport,02-Feb-2018,000006976917369,3C_ ECML DURHAM P&D C&,7523,Staff travelling,13.50,0.00,13.50
Children and Young Peoples Services,Head of Looked After Provision Permanence and Care Leavers,085333,Coxhoe Satelite Home,Supplies and Services,324117,Provisions,02-Feb-2018,000006976917371,TESCO STORES 2371,5411,Catering costs - provisions,151.42,0.00,151.42
Children and Young Peoples Services,Head of Looked After Provision Permanence and Care Leavers,085333,Coxhoe Satelite Home,Supplies and Services,384999,Miscellaneous Expenses,02-Feb-2018,000006976917375,WWW.GETMEIN.COM,7922,Other expenses,63.15,0.00,63.15
Regeneration and Local Services,Economic Development and Housing,030737,Durham Works Flexible Fund,Transport,235057,Public Transport,02-Feb-2018,000006976917403,WWW.SIMPLYGO.COM,4131,Staff travelling,92.00,0.00,92.00
Regeneration and Local Services,Economic Development and Housing,031576,B& B - Temp Accom,Supplies and Services,364320,Grants to Voluntary Organisations,02-Feb-2018,000006976917407,TRAVELODGE,3615,Accommodation assistance,120.00,20.00,100.00
Adult and Health Services,Head of Adults,055301,Stanley Pathways,Supplies and Services,324117,Provisions,02-Feb-2018,000006976917479,ASDA SUPERSTORE,5411,Catering costs - provisions,4.36,0.00,4.36
Resources,Finance & Transactional Services,065180,Collections,Supplies and Services,338048,Services,02-Feb-2018,000006976917531,HMCOURTS-SERVICE.G,9222,Court Costs,"7,377.00",0.00,7377.00
Resources,Digital and Customer Services,011103,Service Improvement,Supplies and Services,342033,Computers and Communications,02-Feb-2018,000006976917583,DRI Cloudberry Lab TM,7372,Computer hardware,28.80,4.80,24.00
Regeneration and Local Services,Economic Development and Housing,030737,Durham Works Flexible Fund,Supplies and Services,342033,Computers and Communications,02-Feb-2018,000006976917603,WWW.NISBETS.COM,5964,Computer hardware,239.97,40.00,199.97
Regeneration and Local Services,Economic Development and Housing,030737,Durham Works Flexible Fund,Transport,235057,Public Transport,02-Feb-2018,000006976917617,GO NORTH EAST LIMITED,4131,Staff travelling,92.00,0.00,92.00
Regeneration and Local Services,Direct Services,021242,Catering - County Hall,Supplies and Services,324117,Provisions,02-Feb-2018,000006984457411,JR HOLLAND FOODSERVICE,5422,Catering costs - provisions,92.60,0.00,92.60
Regeneration and Local Services,Direct Services,021242,Catering - County Hall,Supplies and Services,324117,Provisions,02-Feb-2018,000006984457415,JR HOLLAND FOODSERVICE,5422,Catering costs - provisions,13.20,0.00,13.20
Regeneration and Local Services,Culture & Sport,011060,Hardwick Park Catering,Supplies and Services,324117,Provisions,02-Feb-2018,000006984457595,JR HOLLAND FOODSERVICE,5422,Catering costs - provisions,54.41,0.00,54.41
Adult and Health Services,Head of Adults,055643,Hawthorn House LD Respite Unit,Supplies and Services,324117,Provisions,02-Feb-2018,000006984458175,JR HOLLAND FOODSERVICE,5422,Catering costs - provisions,10.27,0.00,10.27
Adult and Health Services,Head of Adults,055643,Hawthorn House LD Respite Unit,Supplies and Services,324117,Provisions,02-Feb-2018,000006984458179,JR HOLLAND FOODSERVICE,5422,Catering costs - provisions,1.55,0.00,1.55
Regeneration and Local Services,Direct Services,021324,Catering - Meadowfield,Supplies and Services,324117,Provisions,02-Feb-2018,000006984458263,JR HOLLAND FOODSERVICE,5422,Catering costs - provisions,35.46,0.00,35.46
Regeneration and Local Services,Direct Services,021324,Catering - Meadowfield,Supplies and Services,324117,Provisions,02-Feb-2018,000006984458267,JR HOLLAND FOODSERVICE,5422,Catering costs - provisions,9.90,0.00,9.90
Regeneration and Local Services,Culture & Sport,011060,Hardwick Park Catering,Supplies and Services,324117,Provisions,02-Feb-2018,000006988061547,BATLEYS PERTH,5300,Catering costs - provisions,123.90,20.65,103.25
Regeneration and Local Services,Culture & Sport,011060,Hardwick Park Catering,Supplies and Services,324117,Provisions,02-Feb-2018,000006988061547 - 1,BATLEYS PERTH,5300,Catering costs - provisions,104.72,,104.72
Regeneration and Local Services,Culture & Sport,011060,Hardwick Park Catering,Supplies and Services,324117,Provisions,02-Feb-2018,000006988061555,BATLEYS PERTH,5300,Catering costs - provisions,4.26,0.71,3.55
Regeneration and Local Services,Culture & Sport,011060,Hardwick Park Catering,Supplies and Services,324117,Provisions,02-Feb-2018,000006988061555 - 1,BATLEYS PERTH,5300,Catering costs - provisions,12.24,,12.24
Regeneration and Local Services,Direct Services,010525,Catering - Green Lane,Supplies and Services,324117,Provisions,02-Feb-2018,000006988061603,BATLEYS PERTH,5300,Catering costs - provisions,111.48,18.58,92.90
Regeneration and Local Services,Direct Services,010525,Catering - Green Lane,Supplies and Services,324117,Provisions,02-Feb-2018,000006988061603 - 1,BATLEYS PERTH,5300,Catering costs - provisions,93.37,,93.37
Adult and Health Services,Head of Adults,055643,Hawthorn House LD Respite Unit,Supplies and Services,324117,Provisions,02-Feb-2018,000006988061765,BATLEYS PERTH,5300,Catering costs - provisions,3.72,0.62,3.10
Adult and Health Services,Head of Adults,055643,Hawthorn House LD Respite Unit,Supplies and Services,324117,Provisions,02-Feb-2018,000006988061765 - 1,BATLEYS PERTH,5300,Catering costs - provisions,62.08,,62.08
Children and Young Peoples Services,Head of Education,054640,Durham Learning Resources,Supplies and Services,312011,Newspapers Books and Periodicals,03-Feb-2018,000006976916831,Amazon UK Marketplace,5942,Books-school library,1.34,0.00,1.34
Regeneration and Local Services,Economic Development and Housing,030699,Business Growth and Innovation General,Supplies and Services,304403,Equipment and Materials,03-Feb-2018,000006976916917,ADOBE CREATIVE CLOUD,5734,Other consumables,50.57,0.00,50.57
Regeneration and Local Services,Culture & Sport,054813,Gala Theatre - Technical,Supplies and Services,328041,Clothing Uniforms and Laundry,03-Feb-2018,000006976917133,WWW.FLINTS.CO.UK,5691,Clothing uniforms and laundry,88.32,0.00,88.32
Regeneration and Local Services,Culture & Sport,054813,Gala Theatre - Technical,Supplies and Services,304259,Equipment and Materials,03-Feb-2018,000006976917137,SCREWFIX DIRECT,5211,Equipment-purchase and rental,497.76,82.96,414.80
Regeneration and Local Services,Culture & Sport,054813,Gala Theatre - Technical,Supplies and Services,304259,Equipment and Materials,03-Feb-2018,000006976917137 - 1,SCREWFIX DIRECT,5211,Equipment-purchase and rental,0.36,,0.36
Children and Young Peoples Services,Head of Looked After Provision Permanence and Care Leavers,085341,High Etherley Satelite Home,Supplies and Services,328041,Clothing Uniforms and Laundry,03-Feb-2018,000006976917141,TK MAXX,5331,Clothing uniforms and laundry,7.99,0.00,7.99
Children and Young Peoples Services,Head of Looked After Provision Permanence and Care Leavers,085341,High Etherley Satelite Home,Supplies and Services,324117,Provisions,03-Feb-2018,000006976917145,TESCO STORES 6329,5411,Catering costs - provisions,46.31,0.00,46.31
Children and Young Peoples Services,Head of Looked After Provision Permanence and Care Leavers,085957,Secure Management,Supplies and Services,324117,Provisions,03-Feb-2018,000006976917193,TESCO STORES 6329,5411,Catering costs - provisions,86.57,0.00,86.57
Regeneration and Local Services,Culture & Sport,011204,Events,Supplies and Services,304403,Equipment and Materials,03-Feb-2018,000006976917263,AMAZON EU AMAZON.CO.UK,5999,Other consumables,73.13,0.00,73.13
Regeneration and Local Services,Spatial Policy Planning Assets & Environment,031200,North Pennines Core,Supplies and Services,312011,Newspapers Books and Periodicals,03-Feb-2018,000006976917627,Amazon UK Marketplace,5942,Books-school library,15.97,0.00,15.97
Children and Young Peoples Services,Head of Looked After Provision Permanence and Care Leavers,085341,High Etherley Satelite Home,Supplies and Services,324117,Provisions,04-Feb-2018,000006976916801,TESCO STORES 6329,5411,Catering costs - provisions,25.72,0.00,25.72
Children and Young Peoples Services,Head of Education,054640,Durham Learning Resources,Supplies and Services,312011,Newspapers Books and Periodicals,04-Feb-2018,000006976916833,Amazon UK Marketplace,5942,Books-school library,9.98,0.00,9.98
Regeneration and Local Services,Direct Services,011171,Nei.Prot - Allotments,Supplies and Services,304335,Equipment and Materials,04-Feb-2018,000006976916871,Amazon UK Marketplace,5942,ICT supplies etc,54.89,0.00,54.89
Regeneration and Local Services,Economic Development and Housing,030699,Business Growth and Innovation General,Supplies and Services,304403,Equipment and Materials,04-Feb-2018,000006976916921,MEETEDGAR MONTHLY,5734,Other consumables,17.37,0.00,17.37
Regeneration and Local Services,Economic Development and Housing,030699,Business Growth and Innovation General,Supplies and Services,312011,Newspapers Books and Periodicals,04-Feb-2018,000006976916923,FASTHOSTS INTERNET,4816,Books-school library,6.34,0.00,6.34
Regeneration and Local Services,Economic Development and Housing,030737,Durham Works Flexible Fund,Transport,235057,Public Transport,04-Feb-2018,000006976917023,ARRIVA NORTH EAST,4131,Staff travelling,25.00,0.00,25.00
Children and Young Peoples Services,Head of Looked After Provision Permanence and Care Leavers,085351,Framwellgate Moor CU,Supplies and Services,324117,Provisions,04-Feb-2018,000006976917073,TESCO DELIVERY SAVER1,5411,Catering costs - provisions,3.99,0.00,3.99
Regeneration and Local Services,Economic Development and Housing,030699,Business Growth and Innovation General,Supplies and Services,304403,Equipment and Materials,05-Feb-2018,000006976916931,MEETEDGAR MONTHLY,5734,Other consumables,0.48,0.00,0.48
Children and Young Peoples Services,Head of Education,071801,Selby Cottage Childcare Centre,Supplies and Services,324117,Provisions,05-Feb-2018,000006984457303,ASDA HOME SHOPPING,5411,Catering costs - provisions,38.17,0.00,38.17
Children and Young Peoples Services,Head of Education,071801,Selby Cottage Childcare Centre,Supplies and Services,324117,Provisions,05-Feb-2018,000006984457307,TESCO STORES 2278,5411,Catering costs - provisions,18.99,0.00,18.99
Children and Young Peoples Services,Head of Education,071801,Selby Cottage Childcare Centre,Supplies and Services,324117,Provisions,05-Feb-2018,000006984457311,ASDA HOME SHOPPING,5411,Catering costs - provisions,-0.19,0.00,-0.19
Children and Young Peoples Services,Head of Early Help Assessment and Safeguarding,085100,Strategic Manager Families First Area South,Supplies and Services,384199,Miscellaneous Expenses,05-Feb-2018,000006984457315,HARTLEPOOL BC CNP,9399,Other hired and contracted services,14.00,0.00,14.00
Regeneration and Local Services,Economic Development and Housing,031576,B& B - Temp Accom,Supplies and Services,364320,Grants to Voluntary Organisations,05-Feb-2018,000006984457319,KRD ASSOCIATES,7399,Accommodation assistance,260.00,0.00,260.00
Regeneration and Local Services,Economic Development and Housing,030732,Rural Employability Project - South Durham,Supplies and Services,304259,Equipment and Materials,05-Feb-2018,000006984457337,WWW.DURHAM.GOV.UK,9399,Equipment-purchase and rental,20.00,0.00,20.00
Children and Young Peoples Services,Head of Looked After Provision Permanence and Care Leavers,085342,9 Cedar Drive Aycliffe,Supplies and Services,324117,Provisions,05-Feb-2018,000006984457365,TESCO STORES 2916,5411,Catering costs - provisions,49.33,0.00,49.33
Regeneration and Local Services,Direct Services,021242,Catering - County Hall,Supplies and Services,324117,Provisions,05-Feb-2018,000006984457419,HOPWELLS LTD,5811,Catering costs - provisions,97.18,0.00,97.18
Regeneration and Local Services,Direct Services,021242,Catering - County Hall,Supplies and Services,324117,Provisions,05-Feb-2018,000006984457421,FREEMAN CATERING BUTCH,5422,Catering costs - provisions,235.85,0.00,235.85
Regeneration and Local Services,Direct Services,021242,Catering - County Hall,Supplies and Services,324117,Provisions,05-Feb-2018,000006984457427,JR HOLLAND FOODSERVICE,5422,Catering costs - provisions,58.10,0.00,58.10
Regeneration and Local Services,Direct Services,021242,Catering - County Hall,Supplies and Services,324117,Provisions,05-Feb-2018,000006984457429,JR HOLLAND FOODSERVICE,5422,Catering costs - provisions,6.94,0.00,6.94
Resources,Digital and Customer Services,065461,Business Support,Supplies and Services,372009,Subscriptions,05-Feb-2018,000006984457443,WEB NETWORKSOLUTIONS,5968,Subscriptions,308.61,0.00,308.61
Regeneration and Local Services,Economic Development and Housing,030737,Durham Works Flexible Fund,Transport,235057,Public Transport,05-Feb-2018,000006984457449,ARRIVA NORTH EAST,4131,Staff travelling,7.00,0.00,7.00
Regeneration and Local Services,Culture & Sport,054812,Gala Theatre - Catering etc,Supplies and Services,324117,Provisions,05-Feb-2018,000006984457453,JR HOLLAND FOODSERVICE,5422,Catering costs - provisions,-2.04,0.00,-2.04
Children and Young Peoples Services,Head of Looked After Provision Permanence and Care Leavers,085362,LAC & Permanence Team 2,Supplies and Services,384871,Miscellaneous Expenses,05-Feb-2018,000006984457483,PAYPAL BATTLEZONEP,5941,Training-other activities,30.00,0.00,30.00
Children and Young Peoples Services,Head of Looked After Provision Permanence and Care Leavers,085361,LAC & Permanence Team 1,Supplies and Services,384871,Miscellaneous Expenses,05-Feb-2018,000006984457487,AMFBOWLING.CO.UK,7997,Training-other activities,26.89,0.00,26.89
Children and Young Peoples Services,Head of Looked After Provision Permanence and Care Leavers,085334,West Rainton Satelite Home,Supplies and Services,308011,Furniture,05-Feb-2018,000006984457515,DUNELM (SOFT FURNISHIN,5714,Furniture repair and replacement,93.50,0.00,93.50
Children and Young Peoples Services,Head of Looked After Provision Permanence and Care Leavers,085334,West Rainton Satelite Home,Supplies and Services,328041,Clothing Uniforms and Laundry,05-Feb-2018,000006984457521,B&M RETAIL LTD,5310,Clothing uniforms and laundry,23.46,0.00,23.46
Children and Young Peoples Services,Head of Looked After Provision Permanence and Care Leavers,085957,Secure Management,Supplies and Services,324117,Provisions,05-Feb-2018,000006984457571,TESCO STORES 6329,5411,Catering costs - provisions,161.96,0.00,161.96
Regeneration and Local Services,Direct Services,010301,C&G - North Grounds Maintenance,Supplies and Services,304221,Equipment and Materials,05-Feb-2018,000006984457583,AGRATECH SERVICES,5599,Direct materials,23.56,3.93,19.63
Regeneration and Local Services,Direct Services,010301,C&G - North Grounds Maintenance,Supplies and Services,328041,Clothing Uniforms and Laundry,05-Feb-2018,000006984457587,THOMAS OWEN & SONS /N/,5611,Clothing uniforms and laundry,84.69,0.00,84.69
Regeneration and Local Services,Direct Services,010301,C&G - North Grounds Maintenance,Supplies and Services,328041,Clothing Uniforms and Laundry,05-Feb-2018,000006984457591,THOMAS OWEN & SONS /N/,5611,Clothing uniforms and laundry,16.80,0.00,16.80
Regeneration and Local Services,Culture & Sport,011060,Hardwick Park Catering,Supplies and Services,324117,Provisions,05-Feb-2018,000006984457597,HOPWELLS LTD,5811,Catering costs - provisions,37.38,6.23,31.15
Regeneration and Local Services,Culture & Sport,011060,Hardwick Park Catering,Supplies and Services,324117,Provisions,05-Feb-2018,000006984457597 - 1,HOPWELLS LTD,5811,Catering costs - provisions,41.37,,41.37
Regeneration and Local Services,Culture & Sport,011060,Hardwick Park Catering,Supplies and Services,324117,Provisions,05-Feb-2018,000006984457601,FREEMAN CATERING BUTCH,5422,Catering costs - provisions,26.01,0.00,26.01
Regeneration and Local Services,Culture & Sport,011060,Hardwick Park Catering,Supplies and Services,324117,Provisions,05-Feb-2018,000006984457605,FREEMAN CATERING BUTCH,5422,Catering costs - provisions,24.32,0.00,24.32
Regeneration and Local Services,Culture & Sport,011060,Hardwick Park Catering,Supplies and Services,324117,Provisions,05-Feb-2018,000006984457609,FREEMAN CATERING BUTCH,5422,Catering costs - provisions,21.59,0.00,21.59
Regeneration and Local Services,Culture & Sport,011060,Hardwick Park Catering,Supplies and Services,324117,Provisions,05-Feb-2018,000006984457613,JR HOLLAND FOODSERVICE,5422,Catering costs - provisions,35.77,0.00,35.77
Regeneration and Local Services,Culture & Sport,011060,Hardwick Park Catering,Supplies and Services,324117,Provisions,05-Feb-2018,000006984457615,JR HOLLAND FOODSERVICE,5422,Catering costs - provisions,5.28,0.00,5.28
Children and Young Peoples Services,Head of Looked After Provision Permanence and Care Leavers,085551,Short Break Services-Park Hse Sher,Supplies and Services,324117,Provisions,05-Feb-2018,000006984458005,ALDI 15 774,5411,Catering costs - provisions,7.87,0.00,7.87
Children and Young Peoples Services,Head of Looked After Provision Permanence and Care Leavers,085332,Middlestone Moor CU,Supplies and Services,308011,Furniture,05-Feb-2018,000006984458009,DUNELM ONLINE ORDER,5714,Furniture repair and replacement,109.95,0.00,109.95
Regeneration and Local Services,Direct Services,021234,Catering - Locomotion,Supplies and Services,324117,Provisions,05-Feb-2018,000006984458013,FREEMAN CATERING BUTCH,5422,Catering costs - provisions,62.92,0.00,62.92
Regeneration and Local Services,Direct Services,010525,Catering - Green Lane,Supplies and Services,324117,Provisions,05-Feb-2018,000006984458039,FREEMAN CATERING BUTCH,5422,Catering costs - provisions,40.58,0.00,40.58
Regeneration and Local Services,Direct Services,010525,Catering - Green Lane,Supplies and Services,324117,Provisions,05-Feb-2018,000006984458041,JR HOLLAND FOODSERVICE,5422,Catering costs - provisions,-4.92,0.00,-4.92
Regeneration and Local Services,Direct Services,010367,C&G - South Grounds Maintenance,Supplies and Services,304259,Equipment and Materials,05-Feb-2018,000006984458105,SCREWFIX DIRECT,5211,Equipment-purchase and rental,29.99,0.00,29.99
Regeneration and Local Services,Direct Services,010367,C&G - South Grounds Maintenance,Supplies and Services,324117,Provisions,05-Feb-2018,000006984458109,J M RAINE,5399,Catering costs - provisions,236.22,39.37,196.85
Regeneration and Local Services,Direct Services,010367,C&G - South Grounds Maintenance,Supplies and Services,304999,Equipment and Materials,05-Feb-2018,000006984458111,NEW ROW FARM NURSERIES,5193,Misc equipment tools and materials,474.70,79.12,395.58
Regeneration and Local Services,Direct Services,010367,C&G - South Grounds Maintenance,Supplies and Services,304999,Equipment and Materials,05-Feb-2018,000006984458113,NEW ROW FARM NURSERIES,5193,Misc equipment tools and materials,412.09,68.68,343.41
Regeneration and Local Services,Direct Services,010367,C&G - South Grounds Maintenance,Supplies and Services,304999,Equipment and Materials,05-Feb-2018,000006984458117,NEW ROW FARM NURSERIES,5193,Misc equipment tools and materials,72.72,12.12,60.60
Regeneration and Local Services,Direct Services,020082,Bldg Serv - R&M Div 82- Lifts,Supplies and Services,384999,Miscellaneous Expenses,05-Feb-2018,000006984458135,NEWCASTLE CITY COUNCIL,4789,Other expenses,246.00,0.00,246.00
Regeneration and Local Services,Direct Services,010367,C&G - South Grounds Maintenance,Supplies and Services,384999,Miscellaneous Expenses,05-Feb-2018,000006984458143,WWW.GUSTHARTS.COM,5046,Other expenses,260.69,43.45,217.24
Regeneration and Local Services,Economic Development and Housing,031576,B& B - Temp Accom,Supplies and Services,364320,Grants to Voluntary Organisations,05-Feb-2018,000006984458165,AMRP LEISURE LTD,5813,Accommodation assistance,207.00,34.50,172.50
Regeneration and Local Services,Economic Development and Housing,031576,B& B - Temp Accom,Supplies and Services,364320,Grants to Voluntary Organisations,05-Feb-2018,000006984458169,TRAVELODGE,3615,Accommodation assistance,39.00,6.50,32.50
Regeneration and Local Services,Economic Development and Housing,031576,B& B - Temp Accom,Supplies and Services,364320,Grants to Voluntary Organisations,05-Feb-2018,000006984458171,TRAVELODGE,3615,Accommodation assistance,39.00,6.50,32.50
Regeneration and Local Services,Spatial Policy Planning Assets & Environment,031200,North Pennines Core,Supplies and Services,328041,Clothing Uniforms and Laundry,05-Feb-2018,000006984458181,WWW.BESTINTHECOUNTRY.C,5691,Clothing uniforms and laundry,15.72,2.62,13.10
Regeneration and Local Services,Culture & Sport,054235,Bishop Auckland Town Hall Cafe,Supplies and Services,324117,Provisions,05-Feb-2018,000006984458257,HOPWELLS LTD,5811,Catering costs - provisions,148.20,0.00,148.20
Regeneration and Local Services,Direct Services,021324,Catering - Meadowfield,Supplies and Services,324117,Provisions,05-Feb-2018,000006984458269,FREEMAN CATERING BUTCH,5422,Catering costs - provisions,77.49,0.00,77.49
Regeneration and Local Services,Direct Services,021235,Catering - Wharton Park,Supplies and Services,324117,Provisions,05-Feb-2018,000006984458359,HOPWELLS LTD,5811,Catering costs - provisions,151.82,25.30,126.52
Regeneration and Local Services,Spatial Policy Planning Assets & Environment,031200,North Pennines Core,Supplies and Services,340001,Postages,05-Feb-2018,000006984458407,ROYAL MAIL ONLINE SHOP,9402,Postages,131.00,0.00,131.00
Regeneration and Local Services,Culture & Sport,054812,Gala Theatre - Catering etc,Supplies and Services,324117,Provisions,05-Feb-2018,000006988061353,BATLEYS PERTH,5300,Catering costs - provisions,125.82,20.97,104.85
Regeneration and Local Services,Culture & Sport,054812,Gala Theatre - Catering etc,Supplies and Services,324117,Provisions,05-Feb-2018,000006988061353 - 1,BATLEYS PERTH,5300,Catering costs - provisions,53.23,,53.23
Regeneration and Local Services,Culture & Sport,011060,Hardwick Park Catering,Supplies and Services,324117,Provisions,05-Feb-2018,000006988061559,BATLEYS PERTH,5300,Catering costs - provisions,-12.59,0.00,-12.59
Regeneration and Local Services,Economic Development and Housing,031576,B& B - Temp Accom,Supplies and Services,364320,Grants to Voluntary Organisations,05-Feb-2018,000006988061693,HOTEL 52,7011,Accommodation assistance,100.00,0.00,100.00
Regeneration and Local Services,Economic Development and Housing,031576,B& B - Temp Accom,Supplies and Services,364320,Grants to Voluntary Organisations,05-Feb-2018,000006988061749,PREMIER INN,3811,Accommodation assistance,67.00,11.17,55.83
Regeneration and Local Services,Economic Development and Housing,031576,B& B - Temp Accom,Supplies and Services,364320,Grants to Voluntary Organisations,05-Feb-2018,000006988061751,PREMIER INN,3811,Accommodation assistance,70.00,11.67,58.33
Regeneration and Local Services,Direct Services,021235,Catering - Wharton Park,Supplies and Services,324117,Provisions,05-Feb-2018,000006988061961,BATLEYS PERTH,5300,Catering costs - provisions,80.70,13.45,67.25
Regeneration and Local Services,Direct Services,021235,Catering - Wharton Park,Supplies and Services,324117,Provisions,05-Feb-2018,000006988061961 - 1,BATLEYS PERTH,5300,Catering costs - provisions,22.89,,22.89
Resources,Digital and Customer Services,065461,Business Support,Supplies and Services,372009,Subscriptions,06-Feb-2018,000006984457445,WEB NETWORKSOLUTIONS,5968,Subscriptions,8.49,0.00,8.49
Regeneration and Local Services,Culture & Sport,011204,Events,Supplies and Services,312011,Newspapers Books and Periodicals,06-Feb-2018,000006984458019,Amazon UK Marketplace,5942,Books-school library,22.99,0.00,22.99
Children and Young Peoples Services,Head of Education,071801,Selby Cottage Childcare Centre,Supplies and Services,324117,Provisions,06-Feb-2018,000006988061203,ASDA HOME SHOPPING,5411,Catering costs - provisions,131.01,0.00,131.01
Children and Young Peoples Services,Head of Education,071801,Selby Cottage Childcare Centre,Supplies and Services,324117,Provisions,06-Feb-2018,000006988061207,TESCO STORES 2278,5411,Catering costs - provisions,6.00,0.00,6.00
Children and Young Peoples Services,Head of Education,054640,Durham Learning Resources,Supplies and Services,312011,Newspapers Books and Periodicals,06-Feb-2018,000006988061217,Amazon UK Marketplace,5942,Books-school library,5.70,0.00,5.70
Resources,Digital and Customer Services,065321,Operations - Digital & Customer Services,Supplies and Services,304335,Equipment and Materials,06-Feb-2018,000006988061221,Amazon UK Marketplace,5942,ICT supplies etc,445.50,0.00,445.50
Children and Young Peoples Services,Head of Early Help Assessment and Safeguarding,071445,Chester le Street One Point Hub,Supplies and Services,304335,Equipment and Materials,06-Feb-2018,000006988061225,Amazon UK Marketplace,5942,ICT supplies etc,24.99,4.17,20.82
Children and Young Peoples Services,Head of Early Help Assessment and Safeguarding,085612,Families First Consett,Supplies and Services,304335,Equipment and Materials,06-Feb-2018,000006988061229,Amazon UK Marketplace,5942,ICT supplies etc,24.99,4.17,20.82
Regeneration and Local Services,Economic Development and Housing,030732,Rural Employability Project - South Durham,Supplies and Services,304259,Equipment and Materials,06-Feb-2018,000006988061231,SCREWFIX DIRECT,5211,Equipment-purchase and rental,64.98,0.00,64.98
Adult and Health Services,Head of Adults,051603,OP/PD Durham & CLS,Supplies and Services,340001,Postages,06-Feb-2018,000006988061239,ROYAL MAIL ONLINE SHOP,9402,Postages,94.00,0.00,94.00
Adult and Health Services,Head of Adults,055302,Durham Pathways,Supplies and Services,304403,Equipment and Materials,06-Feb-2018,000006988061251,TIMPSON LTD,7251,Other consumables,26.00,0.00,26.00
Adult and Health Services,Head of Adults,055302,Durham Pathways,Supplies and Services,324117,Provisions,06-Feb-2018,000006988061253,SAINSBURYS SACAT 0776,5411,Catering costs - provisions,8.60,0.00,8.60
Regeneration and Local Services,Economic Development and Housing,030699,Business Growth and Innovation General,Supplies and Services,312011,Newspapers Books and Periodicals,06-Feb-2018,000006988061281,FASTHOSTS INTERNET,4816,Books-school library,44.38,0.00,44.38
Regeneration and Local Services,Economic Development and Housing,030699,Business Growth and Innovation General,Supplies and Services,312011,Newspapers Books and Periodicals,06-Feb-2018,000006988061285,FASTHOSTS INTERNET,4816,Books-school library,253.09,42.18,210.91
Regeneration and Local Services,Direct Services,021242,Catering - County Hall,Supplies and Services,324117,Provisions,06-Feb-2018,000006988061323,WWW.ADELIEFOODS.CO.UK,5499,Catering costs - provisions,180.72,0.00,180.72
Regeneration and Local Services,Direct Services,021242,Catering - County Hall,Supplies and Services,324117,Provisions,06-Feb-2018,000006988061327,JR HOLLAND FOODSERVICE,5422,Catering costs - provisions,29.41,0.00,29.41
Regeneration and Local Services,Direct Services,021242,Catering - County Hall,Supplies and Services,324117,Provisions,06-Feb-2018,000006988061329,JR HOLLAND FOODSERVICE,5422,Catering costs - provisions,23.71,0.00,23.71
Regeneration and Local Services,Direct Services,021242,Catering - County Hall,Supplies and Services,324117,Provisions,06-Feb-2018,000006988061331,JR HOLLAND FOODSERVICE,5422,Catering costs - provisions,8.18,0.00,8.18
Regeneration and Local Services,Direct Services,021242,Catering - County Hall,Supplies and Services,324117,Provisions,06-Feb-2018,000006988061333,JR HOLLAND FOODSERVICE,5422,Catering costs - provisions,6.60,0.00,6.60
Regeneration and Local Services,Direct Services,021242,Catering - County Hall,Supplies and Services,324117,Provisions,06-Feb-2018,000006988061335,JR HOLLAND FOODSERVICE,5422,Catering costs - provisions,3.40,0.00,3.40
Regeneration and Local Services,Economic Development and Housing,030737,Durham Works Flexible Fund,Transport,235057,Public Transport,06-Feb-2018,000006988061341,GO NORTH EAST LIMITED,4131,Staff travelling,6.50,0.00,6.50
Regeneration and Local Services,Economic Development and Housing,030737,Durham Works Flexible Fund,Transport,235057,Public Transport,06-Feb-2018,000006988061345,GO NORTH EAST LIMITED,4131,Staff travelling,6.50,0.00,6.50
Regeneration and Local Services,Culture & Sport,054812,Gala Theatre - Catering etc,Supplies and Services,324117,Provisions,06-Feb-2018,000006988061349,JR HOLLAND FOODSERVICE,5422,Catering costs - provisions,46.73,0.00,46.73
Children and Young Peoples Services,Head of Looked After Provision Permanence and Care Leavers,085351,Framwellgate Moor CU,Supplies and Services,324117,Provisions,06-Feb-2018,000006988061389,TESCO STORES 2371,5411,Catering costs - provisions,123.54,0.00,123.54
Regeneration and Local Services,Culture & Sport,054813,Gala Theatre - Technical,Supplies and Services,312011,Newspapers Books and Periodicals,06-Feb-2018,000006988061449,WWW.TOOLSTATION.COM,5251,Books-school library,64.90,10.82,54.08
Regeneration and Local Services,Culture & Sport,054813,Gala Theatre - Technical,Supplies and Services,340001,Postages,06-Feb-2018,000006988061451,PARCEL2GO.COM LTD,4215,Postages,11.54,1.92,9.62
Regeneration and Local Services,Culture & Sport,054813,Gala Theatre - Technical,Supplies and Services,304259,Equipment and Materials,06-Feb-2018,000006988061455,SCREWFIX DIRECT,5211,Equipment-purchase and rental,419.90,69.98,349.92
Children and Young Peoples Services,Head of Looked After Provision Permanence and Care Leavers,085341,High Etherley Satelite Home,Supplies and Services,324117,Provisions,06-Feb-2018,000006988061459,TESCO STORES 6329,5411,Catering costs - provisions,35.53,0.00,35.53
Regeneration and Local Services,Economic Development and Housing,030737,Durham Works Flexible Fund,Transport,235057,Public Transport,06-Feb-2018,000006988061513,GO NORTH EAST LIMITED,4131,Staff travelling,6.50,0.00,6.50
Children and Young Peoples Services,Head of Looked After Provision Permanence and Care Leavers,085957,Secure Management,Supplies and Services,324117,Provisions,06-Feb-2018,000006988061525,TESCO STORES 6329,5411,Catering costs - provisions,82.58,0.00,82.58
Regeneration and Local Services,Culture & Sport,026591,Hardwick Park,Supplies and Services,304259,Equipment and Materials,06-Feb-2018,000006988061529,SCREWFIX,5211,Equipment-purchase and rental,29.99,5.00,24.99
Regeneration and Local Services,Culture & Sport,011060,Hardwick Park Catering,Supplies and Services,324117,Provisions,06-Feb-2018,000006988061543,JR HOLLAND FOODSERVICE,5422,Catering costs - provisions,28.14,0.00,28.14
Children and Young Peoples Services,Head of Looked After Provision Permanence and Care Leavers,085332,Middlestone Moor CU,Supplies and Services,328041,Clothing Uniforms and Laundry,06-Feb-2018,000006988061571,NEXT RETAIL LTD,5651,Clothing uniforms and laundry,12.05,0.00,12.05
Children and Young Peoples Services,Head of Looked After Provision Permanence and Care Leavers,085332,Middlestone Moor CU,Supplies and Services,304259,Equipment and Materials,06-Feb-2018,000006988061575,B & Q 1120,5211,Equipment-purchase and rental,46.00,0.00,46.00
Children and Young Peoples Services,Head of Looked After Provision Permanence and Care Leavers,085332,Middlestone Moor CU,Supplies and Services,312011,Newspapers Books and Periodicals,06-Feb-2018,000006988061579,HOME BARGAINS,5251,Books-school library,52.12,8.69,43.43
Children and Young Peoples Services,Head of Looked After Provision Permanence and Care Leavers,085332,Middlestone Moor CU,Supplies and Services,328041,Clothing Uniforms and Laundry,06-Feb-2018,000006988061581,TK MAXX,5331,Clothing uniforms and laundry,19.98,0.00,19.98
Children and Young Peoples Services,Head of Looked After Provision Permanence and Care Leavers,085332,Middlestone Moor CU,Supplies and Services,324117,Provisions,06-Feb-2018,000006988061585,TESCO STORES 6329,5411,Catering costs - provisions,37.16,0.00,37.16
Children and Young Peoples Services,Head of Looked After Provision Permanence and Care Leavers,085332,Middlestone Moor CU,Supplies and Services,304403,Equipment and Materials,06-Feb-2018,000006988061587,TESCO - Online Kitchen,5999,Other consumables,7.15,0.00,7.15
Regeneration and Local Services,Direct Services,019100,Fleet - Strategic Fleet,Supplies and Services,304259,Equipment and Materials,06-Feb-2018,000006988061615,DVSA MOT COMP 2,9399,Equipment-purchase and rental,410.00,0.00,410.00
Children and Young Peoples Services,Head of Looked After Provision Permanence and Care Leavers,085333,Coxhoe Satelite Home,Supplies and Services,324117,Provisions,06-Feb-2018,000006988061701,TESCO STORES 2371,5411,Catering costs - provisions,100.65,0.00,100.65
Children and Young Peoples Services,Head of Looked After Provision Permanence and Care Leavers,085333,Coxhoe Satelite Home,Supplies and Services,324117,Provisions,06-Feb-2018,000006988061703,TESCO STORES 2371,5411,Catering costs - provisions,9.88,0.00,9.88
Children and Young Peoples Services,Head of Looked After Provision Permanence and Care Leavers,085333,Coxhoe Satelite Home,Supplies and Services,328041,Clothing Uniforms and Laundry,06-Feb-2018,000006988061705,B & M RETAIL,5310,Clothing uniforms and laundry,15.46,0.00,15.46
Resources,Resources Management,069000,Resources Management,Supplies and Services,324117,Provisions,06-Feb-2018,000006988061709,SAINSBURYS LOC4937,5411,Catering costs - provisions,3.30,0.00,3.30
Adult and Health Services,Head of Adults,055301,Stanley Pathways,Supplies and Services,324117,Provisions,06-Feb-2018,000006988061713,ASDA SUPERSTORE,5411,Catering costs - provisions,3.02,0.00,3.02
Adult and Health Services,Head of Adults,055643,Hawthorn House LD Respite Unit,Supplies and Services,324117,Provisions,06-Feb-2018,000006988061759,JR HOLLAND FOODSERVICE,5422,Catering costs - provisions,21.60,0.00,21.60
Adult and Health Services,Head of Adults,055643,Hawthorn House LD Respite Unit,Supplies and Services,324117,Provisions,06-Feb-2018,000006988061761,JR HOLLAND FOODSERVICE,5422,Catering costs - provisions,20.27,0.00,20.27
Regeneration and Local Services,Direct Services,010301,C&G - North Grounds Maintenance,Supplies and Services,304259,Equipment and Materials,06-Feb-2018,000006988061789,HARELAW SAWMILL,5211,Equipment-purchase and rental,500.00,0.00,500.00
Children and Young Peoples Services,Head of Looked After Provision Permanence and Care Leavers,085957,Secure Management,Supplies and Services,304403,Equipment and Materials,06-Feb-2018,000006988061799,WWW.CGPBOOKS.CO.UK,5999,Other consumables,15.50,0.00,15.50
Regeneration and Local Services,Culture & Sport,054235,Bishop Auckland Town Hall Cafe,Supplies and Services,324117,Provisions,06-Feb-2018,000006988061813,JR HOLLAND FOODSERVICE,5422,Catering costs - provisions,121.50,0.00,121.50
Regeneration and Local Services,Culture & Sport,054235,Bishop Auckland Town Hall Cafe,Supplies and Services,324117,Provisions,06-Feb-2018,000006988061819,JR HOLLAND FOODSERVICE,5422,Catering costs - provisions,59.73,0.00,59.73
Regeneration and Local Services,Transport and Contracted Services,031704,Care Connect - CCTV Countywide,Supplies and Services,384956,Miscellaneous Expenses,06-Feb-2018,000006988061825,SECURITY INDUSTRY,7393,Licences,220.00,0.00,220.00
Regeneration and Local Services,Economic Development and Housing,031576,B& B - Temp Accom,Supplies and Services,364320,Grants to Voluntary Organisations,06-Feb-2018,000006988061831,HOTEL 52,7011,Accommodation assistance,80.00,0.00,80.00
Regeneration and Local Services,Economic Development and Housing,031576,B& B - Temp Accom,Supplies and Services,364320,Grants to Voluntary Organisations,06-Feb-2018,000006988061835,AMRP LEISURE LTD,5813,Accommodation assistance,51.75,0.00,51.75
Regeneration and Local Services,Economic Development and Housing,031576,B& B - Temp Accom,Supplies and Services,364320,Grants to Voluntary Organisations,06-Feb-2018,000006988061837,TRAVELODGE,3615,Accommodation assistance,39.00,6.50,32.50
Regeneration and Local Services,Economic Development and Housing,031576,B& B - Temp Accom,Supplies and Services,364320,Grants to Voluntary Organisations,06-Feb-2018,000006988061839,TRAVELODGE,3615,Accommodation assistance,39.00,6.50,32.50
Children and Young Peoples Services,Head of Early Help Assessment and Safeguarding,074000,TTF-Attachment and Results,Supplies and Services,304403,Equipment and Materials,06-Feb-2018,000006988061935,TESCO - Seller_IST_1_2,5999,Other consumables,62.99,0.00,62.99
Regeneration and Local Services,Technical Services,025121,Strategic Highways - Drainage and Coast Protection,Supplies and Services,332047,Printing Stationery and Gen Off Exps,06-Feb-2018,000006988061939,AMAZON EU AMAZON.CO.UK,5999,Stationery,88.46,14.74,73.72
Resources,Finance & Transactional Services,066890,Operations & Data,Supplies and Services,338064,Services,06-Feb-2018,000006988061943,DISCLOSURE SCOT,9399,Disclosure & Barring (DBS) Fees,25.00,0.00,25.00
Resources,Finance & Transactional Services,065178,Awards,Supplies and Services,338064,Services,06-Feb-2018,000006988061945,DISCLOSURE SCOT,9399,Disclosure & Barring (DBS) Fees,25.00,0.00,25.00
Resources,Digital and Customer Services,065303,Design & Print - Design,Supplies and Services,372009,Subscriptions,06-Feb-2018,000006988061949,APPY PIE,5734,Subscriptions,48.00,0.00,48.00
Adult and Health Services,Head of Adults,055306,Spennymoor Pathways,Supplies and Services,328041,Clothing Uniforms and Laundry,06-Feb-2018,000006988061953,B&M RETAIL,5310,Clothing uniforms and laundry,12.98,0.00,12.98
Regeneration and Local Services,Direct Services,021235,Catering - Wharton Park,Supplies and Services,324117,Provisions,06-Feb-2018,000006988061955,JR HOLLAND FOODSERVICE,5422,Catering costs - provisions,7.00,0.00,7.00
Regeneration and Local Services,Culture & Sport,011230,Operations Locality 2,Supplies and Services,304259,Equipment and Materials,06-Feb-2018,000006988061983,WILKO RETAIL LIMIT,5722,Equipment-purchase and rental,9.65,0.00,9.65
Adult and Health Services,EnvironmentHealth & Consumer Protection,011035,Consumer Protection,Supplies and Services,384999,Miscellaneous Expenses,06-Feb-2018,000006988061997,AMAZON SVCS EU-UK AMAZ,5942,Other expenses,59.98,0.00,59.98
Resources,Digital and Customer Services,065431,Applications and Development,Supplies and Services,304335,Equipment and Materials,06-Feb-2018,000006992714771,pickplugi,7299,ICT supplies etc,20.90,0.00,20.90
Resources,Digital and Customer Services,065321,Operations - Digital & Customer Services,Supplies and Services,304335,Equipment and Materials,06-Feb-2018,000006992714775,AMAZON EU AMAZON.CO.UK,5999,ICT supplies etc,442.02,73.67,368.35
Resources,Digital and Customer Services,065321,Operations - Digital & Customer Services,Supplies and Services,304335,Equipment and Materials,06-Feb-2018,000006992714779,AMAZON EU AMAZON.CO.UK,5999,ICT supplies etc,442.02,73.67,368.35
Resources,Digital and Customer Services,065461,Business Support,Supplies and Services,304335,Equipment and Materials,06-Feb-2018,000006992714783,AMAZON EU AMAZON.CO.UK,5999,ICT supplies etc,442.02,73.67,368.35
Resources,Digital and Customer Services,065321,Operations - Digital & Customer Services,Supplies and Services,304335,Equipment and Materials,06-Feb-2018,000006992714787,AMAZON EU AMAZON.CO.UK,5999,ICT supplies etc,442.02,73.67,368.35
Resources,Digital and Customer Services,065461,Business Support,Supplies and Services,304335,Equipment and Materials,06-Feb-2018,000006992714789,AMAZON EU AMAZON.CO.UK,5999,ICT supplies etc,442.02,73.67,368.35
Children and Young Peoples Services,Head of Early Help Assessment and Safeguarding,085515,Community Support Team,Supplies and Services,332047,Printing Stationery and Gen Off Exps,06-Feb-2018,000006992714941,AMAZON SVCS EU-UK AMAZ,5942,Stationery,7.21,0.00,7.21
Children and Young Peoples Services,Head of Early Help Assessment and Safeguarding,085515,Community Support Team,Supplies and Services,332047,Printing Stationery and Gen Off Exps,06-Feb-2018,000006992714945,AMAZON SVCS EU-UK AMAZ,5942,Stationery,3.89,0.00,3.89
Children and Young Peoples Services,Head of Early Help Assessment and Safeguarding,085515,Community Support Team,Supplies and Services,332047,Printing Stationery and Gen Off Exps,06-Feb-2018,000006992714949,AMAZON SVCS EU-UK AMAZ,5942,Stationery,7.99,0.00,7.99
Regeneration and Local Services,Economic Development and Housing,031576,B& B - Temp Accom,Supplies and Services,364320,Grants to Voluntary Organisations,06-Feb-2018,000006992715571,PREMIER INN,3811,Accommodation assistance,77.00,12.83,64.17
Regeneration and Local Services,Economic Development and Housing,031576,B& B - Temp Accom,Supplies and Services,364320,Grants to Voluntary Organisations,06-Feb-2018,000006992715575,PREMIER INN,3811,Accommodation assistance,76.00,12.67,63.33
Regeneration and Local Services,Direct Services,021242,Catering - County Hall,Supplies and Services,324117,Provisions,06-Feb-2018,000007003687491,BATLEYS PERTH,5300,Catering costs - provisions,292.98,48.83,244.15
Regeneration and Local Services,Direct Services,021242,Catering - County Hall,Supplies and Services,324117,Provisions,06-Feb-2018,000007003687491 - 1,BATLEYS PERTH,5300,Catering costs - provisions,159.17,,159.17
Regeneration and Local Services,Culture & Sport,011060,Hardwick Park Catering,Supplies and Services,324117,Provisions,06-Feb-2018,000007003687885,BATLEYS PERTH,5300,Catering costs - provisions,48.84,8.14,40.70
Regeneration and Local Services,Culture & Sport,011060,Hardwick Park Catering,Supplies and Services,324117,Provisions,06-Feb-2018,000007003687885 - 1,BATLEYS PERTH,5300,Catering costs - provisions,39.64,,39.64
Regeneration and Local Services,Direct Services,021324,Catering - Meadowfield,Supplies and Services,324117,Provisions,06-Feb-2018,000007003688483,BATLEYS PERTH,5300,Catering costs - provisions,34.20,5.70,28.50
Regeneration and Local Services,Direct Services,021324,Catering - Meadowfield,Supplies and Services,324117,Provisions,06-Feb-2018,000007003688483 - 1,BATLEYS PERTH,5300,Catering costs - provisions,116.70,,116.70
Children and Young Peoples Services,Head of Education,075021,Youth Employment Initiative,Supplies and Services,304999,Equipment and Materials,07-Feb-2018,000006988061235,GOOGLE ADWS7021127990,5968,Misc equipment tools and materials,500.00,0.00,500.00
Children and Young Peoples Services,Head of Looked After Provision Permanence and Care Leavers,085341,High Etherley Satelite Home,Supplies and Services,324117,Provisions,07-Feb-2018,000006992714725,TESCO STORES 6329,5411,Catering costs - provisions,131.78,0.00,131.78
Children and Young Peoples Services,Head of Looked After Provision Permanence and Care Leavers,085341,High Etherley Satelite Home,Supplies and Services,324117,Provisions,07-Feb-2018,000006992714729,TESCO STORES 6329,5411,Catering costs - provisions,21.10,0.00,21.10
Children and Young Peoples Services,Head of Education,071801,Selby Cottage Childcare Centre,Supplies and Services,324117,Provisions,07-Feb-2018,000006992714745,ASDA STORES LTD 4313,5411,Catering costs - provisions,62.10,0.00,62.10
Resources,Digital and Customer Services,069010,Administration,Supplies and Services,344033,Telephones,07-Feb-2018,000006992714755,Amazon UK Marketplace,5942,Telephones general-all costs,44.44,7.41,37.03
Resources,Digital and Customer Services,069010,Administration,Supplies and Services,344033,Telephones,07-Feb-2018,000006992714759,Amazon UK Marketplace,5942,Telephones general-all costs,44.44,7.41,37.03
Resources,Digital and Customer Services,069010,Administration,Supplies and Services,344033,Telephones,07-Feb-2018,000006992714763,Amazon UK Marketplace,5942,Telephones general-all costs,44.44,7.41,37.03
Resources,Digital and Customer Services,069010,Administration,Supplies and Services,344033,Telephones,07-Feb-2018,000006992714765,Amazon UK Marketplace,5942,Telephones general-all costs,24.24,4.04,20.20
Resources,Digital and Customer Services,069010,Administration,Supplies and Services,344033,Telephones,07-Feb-2018,000006992714769,Amazon UK Marketplace,5942,Telephones general-all costs,44.44,7.41,37.03
Regeneration and Local Services,Economic Development and Housing,030705,Visit County Durham,Supplies and Services,312011,Newspapers Books and Periodicals,07-Feb-2018,000006992714841,Amazon EU,5969,Books-school library,23.98,0.00,23.98
Children and Young Peoples Services,Head of Looked After Provision Permanence and Care Leavers,085342,9 Cedar Drive Aycliffe,Supplies and Services,348037,Subsistence,07-Feb-2018,000006992714869,STARBUCKS,5814,Subsistence,6.50,0.00,6.50
Children and Young Peoples Services,Head of Looked After Provision Permanence and Care Leavers,085342,9 Cedar Drive Aycliffe,Supplies and Services,348037,Subsistence,07-Feb-2018,000006992714873,NANDOS METROCENTRE GA,5812,Subsistence,25.02,0.00,25.02
Children and Young Peoples Services,Head of Looked After Provision Permanence and Care Leavers,085342,9 Cedar Drive Aycliffe,Supplies and Services,304259,Equipment and Materials,07-Feb-2018,000006992714877,JD SPORTS 193,5941,Equipment-purchase and rental,50.05,0.00,50.05
Children and Young Peoples Services,Head of Early Help Assessment and Safeguarding,085515,Community Support Team,Supplies and Services,332047,Printing Stationery and Gen Off Exps,07-Feb-2018,000006992714951,AMAZON SVCS EU-UK AMAZ,5942,Stationery,5.78,0.00,5.78
Children and Young Peoples Services,Head of Early Help Assessment and Safeguarding,085515,Community Support Team,Supplies and Services,332047,Printing Stationery and Gen Off Exps,07-Feb-2018,000006992714953,AMAZON SVCS EU-UK AMAZ,5942,Stationery,13.88,0.00,13.88
Children and Young Peoples Services,Head of Early Help Assessment and Safeguarding,085515,Community Support Team,Supplies and Services,332047,Printing Stationery and Gen Off Exps,07-Feb-2018,000006992714957,AMAZON SVCS EU-UK AMAZ,5942,Stationery,1.53,0.00,1.53
Children and Young Peoples Services,Head of Early Help Assessment and Safeguarding,085515,Community Support Team,Supplies and Services,332047,Printing Stationery and Gen Off Exps,07-Feb-2018,000006992714959,AMAZON SVCS EU-UK AMAZ,5942,Stationery,3.38,0.00,3.38
Children and Young Peoples Services,Head of Early Help Assessment and Safeguarding,085515,Community Support Team,Supplies and Services,332047,Printing Stationery and Gen Off Exps,07-Feb-2018,000006992714963,AMAZON SVCS EU-UK AMAZ,5942,Stationery,15.05,0.00,15.05
Children and Young Peoples Services,Head of Early Help Assessment and Safeguarding,085515,Community Support Team,Supplies and Services,332047,Printing Stationery and Gen Off Exps,07-Feb-2018,000006992714965,AMAZON SVCS EU-UK AMAZ,5942,Stationery,4.95,0.00,4.95
Children and Young Peoples Services,Head of Early Help Assessment and Safeguarding,085515,Community Support Team,Supplies and Services,332047,Printing Stationery and Gen Off Exps,07-Feb-2018,000006992714967,AMAZON SVCS EU-UK AMAZ,5942,Stationery,11.40,0.00,11.40
Regeneration and Local Services,Direct Services,021242,Catering - County Hall,Supplies and Services,324117,Provisions,07-Feb-2018,000006992714973,WWW.ADELIEFOODS.CO.UK,5499,Catering costs - provisions,183.64,0.00,183.64
Regeneration and Local Services,Direct Services,021242,Catering - County Hall,Supplies and Services,324117,Provisions,07-Feb-2018,000006992714977,WWW.ADELIEFOODS.CO.UK,5499,Catering costs - provisions,154.64,0.00,154.64
Regeneration and Local Services,Direct Services,021242,Catering - County Hall,Supplies and Services,324117,Provisions,07-Feb-2018,000006992714979,WWW.ADELIEFOODS.CO.UK,5499,Catering costs - provisions,121.80,0.00,121.80
Regeneration and Local Services,Direct Services,021242,Catering - County Hall,Supplies and Services,324117,Provisions,07-Feb-2018,000006992714983,WWW.ADELIEFOODS.CO.UK,5499,Catering costs - provisions,114.88,0.00,114.88
Regeneration and Local Services,Direct Services,021242,Catering - County Hall,Supplies and Services,324117,Provisions,07-Feb-2018,000006992714987,WWW.ADELIEFOODS.CO.UK,5499,Catering costs - provisions,108.72,0.00,108.72
Regeneration and Local Services,Direct Services,021242,Catering - County Hall,Supplies and Services,324117,Provisions,07-Feb-2018,000006992714991,WWW.ADELIEFOODS.CO.UK,5499,Catering costs - provisions,97.98,0.00,97.98
Regeneration and Local Services,Direct Services,021242,Catering - County Hall,Supplies and Services,324117,Provisions,07-Feb-2018,000006992714993,WWW.ADELIEFOODS.CO.UK,5499,Catering costs - provisions,48.28,0.00,48.28
Regeneration and Local Services,Direct Services,021242,Catering - County Hall,Supplies and Services,324117,Provisions,07-Feb-2018,000006992714997,JR HOLLAND FOODSERVICE,5422,Catering costs - provisions,127.07,0.00,127.07
Regeneration and Local Services,Direct Services,021242,Catering - County Hall,Supplies and Services,324117,Provisions,07-Feb-2018,000006992715001,JR HOLLAND FOODSERVICE,5422,Catering costs - provisions,30.14,0.00,30.14
Regeneration and Local Services,Direct Services,021242,Catering - County Hall,Supplies and Services,324117,Provisions,07-Feb-2018,000006992715005,JR HOLLAND FOODSERVICE,5422,Catering costs - provisions,23.24,0.00,23.24
Regeneration and Local Services,Culture & Sport,054233,Bishop Auckland Town Hall Library,Supplies and Services,312011,Newspapers Books and Periodicals,07-Feb-2018,000006992715009,Amazon EU,5969,Books-school library,36.29,0.00,36.29
Regeneration and Local Services,Economic Development and Housing,030544,Rural Employability - Client Engagement,Supplies and Services,304259,Equipment and Materials,07-Feb-2018,000006992715013,CURRYS ONLINE,5732,Equipment-purchase and rental,79.97,13.33,66.64
Regeneration and Local Services,Economic Development and Housing,030737,Durham Works Flexible Fund,Transport,235057,Public Transport,07-Feb-2018,000006992715021,ARRIVA NORTH EAST,4131,Staff travelling,85.50,0.00,85.50
Regeneration and Local Services,Economic Development and Housing,030737,Durham Works Flexible Fund,Transport,235057,Public Transport,07-Feb-2018,000006992715027,GO NORTH EAST LIMITED,4131,Staff travelling,13.00,0.00,13.00
Regeneration and Local Services,Economic Development and Housing,030737,Durham Works Flexible Fund,Transport,235057,Public Transport,07-Feb-2018,000006992715031,GO NORTH EAST LIMITED,4131,Staff travelling,13.00,0.00,13.00
Regeneration and Local Services,Economic Development and Housing,030737,Durham Works Flexible Fund,Transport,235057,Public Transport,07-Feb-2018,000006992715035,GO NORTH EAST LIMITED,4131,Staff travelling,6.50,0.00,6.50
Regeneration and Local Services,Economic Development and Housing,031576,B& B - Temp Accom,Supplies and Services,364320,Grants to Voluntary Organisations,07-Feb-2018,000006992715039,AMRP LEISURE LTD,5813,Accommodation assistance,51.75,8.63,43.12
Regeneration and Local Services,Economic Development and Housing,031576,B& B - Temp Accom,Supplies and Services,364320,Grants to Voluntary Organisations,07-Feb-2018,000006992715043,TRAVELODGE,3615,Accommodation assistance,43.00,7.17,35.83
Regeneration and Local Services,Direct Services,010900,Fleet - Meadowfield Fleet,Transport,215013,Running Costs of Vehicles,07-Feb-2018,000006992715129,DVLA VEHICLE TAX,9399,Vehicle Excise Duty (VED),167.50,0.00,167.50
Regeneration and Local Services,Direct Services,010900,Fleet - Meadowfield Fleet,Transport,215013,Running Costs of Vehicles,07-Feb-2018,000006992715133,DVLA VEHICLE TAX,9399,Vehicle Excise Duty (VED),167.50,0.00,167.50
Regeneration and Local Services,Direct Services,010900,Fleet - Meadowfield Fleet,Transport,215013,Running Costs of Vehicles,07-Feb-2018,000006992715137,DVLA VEHICLE TAX,9399,Vehicle Excise Duty (VED),167.50,0.00,167.50
Regeneration and Local Services,Direct Services,010900,Fleet - Meadowfield Fleet,Transport,215013,Running Costs of Vehicles,07-Feb-2018,000006992715139,DVLA VEHICLE TAX,9399,Vehicle Excise Duty (VED),167.50,0.00,167.50
Regeneration and Local Services,Direct Services,010864,Fleet - Hackworth Road Fleet,Transport,215013,Running Costs of Vehicles,07-Feb-2018,000006992715143,DVLA VEHICLE TAX,9399,Vehicle Excise Duty (VED),167.50,0.00,167.50
Regeneration and Local Services,Direct Services,010900,Fleet - Meadowfield Fleet,Transport,215013,Running Costs of Vehicles,07-Feb-2018,000006992715147,DVLA VEHICLE TAX,9399,Vehicle Excise Duty (VED),167.50,0.00,167.50
Regeneration and Local Services,Direct Services,010864,Fleet - Hackworth Road Fleet,Transport,215013,Running Costs of Vehicles,07-Feb-2018,000006992715151,DVLA VEHICLE TAX,9399,Vehicle Excise Duty (VED),167.50,0.00,167.50
Regeneration and Local Services,Direct Services,010900,Fleet - Meadowfield Fleet,Transport,215013,Running Costs of Vehicles,07-Feb-2018,000006992715153,DVLA VEHICLE TAX,9399,Vehicle Excise Duty (VED),12.50,0.00,12.50
Regeneration and Local Services,Direct Services,010900,Fleet - Meadowfield Fleet,Transport,215013,Running Costs of Vehicles,07-Feb-2018,000006992715157,DVLA VEHICLE TAX,9399,Vehicle Excise Duty (VED),167.50,0.00,167.50
Regeneration and Local Services,Direct Services,010900,Fleet - Meadowfield Fleet,Transport,215013,Running Costs of Vehicles,07-Feb-2018,000006992715161,DVLA VEHICLE TAX,9399,Vehicle Excise Duty (VED),167.50,0.00,167.50
Regeneration and Local Services,Direct Services,010864,Fleet - Hackworth Road Fleet,Transport,215013,Running Costs of Vehicles,07-Feb-2018,000006992715165,DVLA VEHICLE TAX,9399,Vehicle Excise Duty (VED),167.50,0.00,167.50
Regeneration and Local Services,Direct Services,010561,Fleet - Morrison Busty Fleet,Transport,215013,Running Costs of Vehicles,07-Feb-2018,000006992715167,DVLA VEHICLE TAX,9399,Vehicle Excise Duty (VED),167.50,0.00,167.50
Regeneration and Local Services,Direct Services,010900,Fleet - Meadowfield Fleet,Transport,215013,Running Costs of Vehicles,07-Feb-2018,000006992715169,DVLA VEHICLE TAX,9399,Vehicle Excise Duty (VED),167.50,0.00,167.50
Regeneration and Local Services,Direct Services,010900,Fleet - Meadowfield Fleet,Transport,215013,Running Costs of Vehicles,07-Feb-2018,000006992715171,DVLA VEHICLE TAX,9399,Vehicle Excise Duty (VED),167.50,0.00,167.50
Regeneration and Local Services,Direct Services,010900,Fleet - Meadowfield Fleet,Transport,215013,Running Costs of Vehicles,07-Feb-2018,000006992715175,DVLA VEHICLE TAX,9399,Vehicle Excise Duty (VED),167.50,0.00,167.50
Regeneration and Local Services,Direct Services,010900,Fleet - Meadowfield Fleet,Transport,215013,Running Costs of Vehicles,07-Feb-2018,000006992715177,DVLA VEHICLE TAX,9399,Vehicle Excise Duty (VED),167.50,0.00,167.50
Children and Young Peoples Services,Head of Early Help Assessment and Safeguarding,088037,One Point YEI,Supplies and Services,304403,Equipment and Materials,07-Feb-2018,000006992715229,GRO HM PASSPORT OFFICE,9399,Other consumables,9.25,0.00,9.25
Children and Young Peoples Services,Head of Early Help Assessment and Safeguarding,071445,Chester le Street One Point Hub,Supplies and Services,324117,Provisions,07-Feb-2018,000006992715235,JR HOLLAND FOODSERVICE,5422,Catering costs - provisions,14.08,0.00,14.08
Children and Young Peoples Services,Head of Early Help Assessment and Safeguarding,071445,Chester le Street One Point Hub,Supplies and Services,324117,Provisions,07-Feb-2018,000006992715239,JR HOLLAND FOODSERVICE,5422,Catering costs - provisions,11.44,0.00,11.44
Regeneration and Local Services,Direct Services,010301,C&G - North Grounds Maintenance,Supplies and Services,304259,Equipment and Materials,07-Feb-2018,000006992715261,SCREWFIX DIRECT,5211,Equipment-purchase and rental,108.76,18.13,90.63
Regeneration and Local Services,Direct Services,010301,C&G - North Grounds Maintenance,Supplies and Services,304999,Equipment and Materials,07-Feb-2018,000006992715267,NEW ROW FARM NURSERIES,5193,Misc equipment tools and materials,129.60,0.00,129.60
Regeneration and Local Services,Culture & Sport,011060,Hardwick Park Catering,Supplies and Services,324117,Provisions,07-Feb-2018,000006992715269,JR HOLLAND FOODSERVICE,5422,Catering costs - provisions,58.90,0.00,58.90
Regeneration and Local Services,Culture & Sport,011060,Hardwick Park Catering,Supplies and Services,324117,Provisions,07-Feb-2018,000006992715275,JR HOLLAND FOODSERVICE,5422,Catering costs - provisions,2.35,0.00,2.35
Regeneration and Local Services,Culture & Sport,054815,Gala Theatre Stage School,Supplies and Services,304259,Equipment and Materials,07-Feb-2018,000006992715287,WP-MUSICBACKINGTRA,5733,Equipment-purchase and rental,3.99,0.00,3.99
Regeneration and Local Services,Culture & Sport,054815,Gala Theatre Stage School,Supplies and Services,304259,Equipment and Materials,07-Feb-2018,000006992715291,WP-AMERITZ MUSIC L,5735,Equipment-purchase and rental,2.88,0.00,2.88
Regeneration and Local Services,Culture & Sport,054815,Gala Theatre Stage School,Supplies and Services,304259,Equipment and Materials,07-Feb-2018,000006992715295,BANDCAMP SONGS OF THE,5735,Equipment-purchase and rental,10.80,0.00,10.80
Regeneration and Local Services,Culture & Sport,054815,Gala Theatre Stage School,Supplies and Services,304403,Equipment and Materials,07-Feb-2018,000006992715297,PAYPAL PUMP ROOM,5999,Other consumables,35.48,0.00,35.48
Regeneration and Local Services,Culture & Sport,054815,Gala Theatre Stage School,Supplies and Services,304259,Equipment and Materials,07-Feb-2018,000006992715299,7DIGITAL EUROPE SARL,5735,Equipment-purchase and rental,0.99,0.00,0.99
Regeneration and Local Services,Culture & Sport,054815,Gala Theatre Stage School,Supplies and Services,304259,Equipment and Materials,07-Feb-2018,000006992715303,LONDON ARRANGEMENTS LT,5733,Equipment-purchase and rental,22.00,0.00,22.00
Children and Young Peoples Services,Head of Looked After Provision Permanence and Care Leavers,085332,Middlestone Moor CU,Supplies and Services,324117,Provisions,07-Feb-2018,000006992715307,TESCO STORES 2916,5411,Catering costs - provisions,37.54,0.00,37.54
Regeneration and Local Services,Direct Services,021234,Catering - Locomotion,Supplies and Services,324117,Provisions,07-Feb-2018,000006992715311,WWW.ADELIEFOODS.CO.UK,5499,Catering costs - provisions,437.65,0.00,437.65
Regeneration and Local Services,Direct Services,021234,Catering - Locomotion,Supplies and Services,324117,Provisions,07-Feb-2018,000006992715315,WWW.ADELIEFOODS.CO.UK,5499,Catering costs - provisions,102.00,0.00,102.00
Regeneration and Local Services,Direct Services,021234,Catering - Locomotion,Supplies and Services,324117,Provisions,07-Feb-2018,000006992715317,WWW.ADELIEFOODS.CO.UK,5499,Catering costs - provisions,89.42,0.00,89.42
Regeneration and Local Services,Direct Services,021234,Catering - Locomotion,Supplies and Services,324117,Provisions,07-Feb-2018,000006992715319,WWW.ADELIEFOODS.CO.UK,5499,Catering costs - provisions,79.54,0.00,79.54
Regeneration and Local Services,Direct Services,021234,Catering - Locomotion,Supplies and Services,324117,Provisions,07-Feb-2018,000006992715323,WWW.ADELIEFOODS.CO.UK,5499,Catering costs - provisions,73.02,0.00,73.02
Regeneration and Local Services,Direct Services,021234,Catering - Locomotion,Supplies and Services,324117,Provisions,07-Feb-2018,000006992715327,WWW.ADELIEFOODS.CO.UK,5499,Catering costs - provisions,58.01,0.00,58.01
Regeneration and Local Services,Direct Services,021234,Catering - Locomotion,Supplies and Services,324117,Provisions,07-Feb-2018,000006992715329,WWW.ADELIEFOODS.CO.UK,5499,Catering costs - provisions,51.88,0.00,51.88
Regeneration and Local Services,Direct Services,021234,Catering - Locomotion,Supplies and Services,324117,Provisions,07-Feb-2018,000006992715333,WWW.ADELIEFOODS.CO.UK,5499,Catering costs - provisions,45.35,0.00,45.35
Regeneration and Local Services,Direct Services,021234,Catering - Locomotion,Supplies and Services,324117,Provisions,07-Feb-2018,000006992715335,JR HOLLAND FOODSERVICE,5422,Catering costs - provisions,59.62,0.00,59.62
Regeneration and Local Services,Direct Services,010525,Catering - Green Lane,Supplies and Services,324117,Provisions,07-Feb-2018,000006992715349,WWW.ADELIEFOODS.CO.UK,5499,Catering costs - provisions,64.00,0.00,64.00
Regeneration and Local Services,Direct Services,010525,Catering - Green Lane,Supplies and Services,324117,Provisions,07-Feb-2018,000006992715353,WWW.ADELIEFOODS.CO.UK,5499,Catering costs - provisions,57.65,0.00,57.65
Regeneration and Local Services,Direct Services,010525,Catering - Green Lane,Supplies and Services,324117,Provisions,07-Feb-2018,000006992715355,WWW.ADELIEFOODS.CO.UK,5499,Catering costs - provisions,47.64,0.00,47.64
Regeneration and Local Services,Direct Services,010525,Catering - Green Lane,Supplies and Services,324117,Provisions,07-Feb-2018,000006992715359,WWW.ADELIEFOODS.CO.UK,5499,Catering costs - provisions,43.26,0.00,43.26
Regeneration and Local Services,Direct Services,010525,Catering - Green Lane,Supplies and Services,324117,Provisions,07-Feb-2018,000006992715363,WWW.ADELIEFOODS.CO.UK,5499,Catering costs - provisions,34.14,0.00,34.14
Regeneration and Local Services,Direct Services,010525,Catering - Green Lane,Supplies and Services,324117,Provisions,07-Feb-2018,000006992715365,WWW.ADELIEFOODS.CO.UK,5499,Catering costs - provisions,8.01,0.00,8.01
Regeneration and Local Services,Direct Services,010525,Catering - Green Lane,Supplies and Services,324117,Provisions,07-Feb-2018,000006992715369,JR HOLLAND FOODSERVICE,5422,Catering costs - provisions,45.54,0.00,45.54
Regeneration and Local Services,Direct Services,020051,Bldg Serv - CONS - Building General,Supplies and Services,304221,Equipment and Materials,07-Feb-2018,000006992715399,GIRODMEDICAL,5976,Direct materials,58.51,9.75,48.76
Regeneration and Local Services,Direct Services,020051,Bldg Serv - CONS - Building General,Supplies and Services,304221,Equipment and Materials,07-Feb-2018,000006992715401,WWW.PCWB.COM,5734,Direct materials,113.32,18.89,94.43
Adult and Health Services,Head of Adults,055643,Hawthorn House LD Respite Unit,Supplies and Services,324117,Provisions,07-Feb-2018,000006992715469,JR HOLLAND FOODSERVICE,5422,Catering costs - provisions,19.20,0.00,19.20
Adult and Health Services,Head of Adults,055643,Hawthorn House LD Respite Unit,Supplies and Services,324117,Provisions,07-Feb-2018,000006992715475,JR HOLLAND FOODSERVICE,5422,Catering costs - provisions,8.71,0.00,8.71
Children and Young Peoples Services,Head of Looked After Provision Permanence and Care Leavers,085957,Secure Management,Supplies and Services,312011,Newspapers Books and Periodicals,07-Feb-2018,000006992715501,Amazon UK Marketplace,5942,Books-school library,4.59,0.00,4.59
Children and Young Peoples Services,Head of Looked After Provision Permanence and Care Leavers,085957,Secure Management,Supplies and Services,384999,Miscellaneous Expenses,07-Feb-2018,000006992715503,SP SKINTASTIC AESTHE,5977,Other expenses,7.99,0.00,7.99
Children and Young Peoples Services,Head of Looked After Provision Permanence and Care Leavers,085957,Secure Management,Supplies and Services,312011,Newspapers Books and Periodicals,07-Feb-2018,000006992715507,AMAZON SVCS EU-UK AMAZ,5942,Books-school library,9.50,0.00,9.50
Children and Young Peoples Services,Head of Looked After Provision Permanence and Care Leavers,085957,Secure Management,Supplies and Services,312011,Newspapers Books and Periodicals,07-Feb-2018,000006992715509,AMAZON SVCS EU-UK AMAZ,5942,Books-school library,8.00,0.00,8.00
Children and Young Peoples Services,Head of Looked After Provision Permanence and Care Leavers,085957,Secure Management,Supplies and Services,304259,Equipment and Materials,07-Feb-2018,000006992715513,www.ultimateoutdoo,5941,Equipment-purchase and rental,112.00,0.00,112.00
Children and Young Peoples Services,Head of Looked After Provision Permanence and Care Leavers,085957,Secure Management,Supplies and Services,324117,Provisions,07-Feb-2018,000006992715515,TESCO STORES 6329,5411,Catering costs - provisions,122.76,0.00,122.76
Children and Young Peoples Services,Head of Looked After Provision Permanence and Care Leavers,085957,Secure Management,Supplies and Services,342033,Computers and Communications,07-Feb-2018,000006992715519,VERY,5964,Computer hardware,48.99,0.00,48.99
Children and Young Peoples Services,Head of Looked After Provision Permanence and Care Leavers,085957,Secure Management,Supplies and Services,328041,Clothing Uniforms and Laundry,07-Feb-2018,000006992715521,WWW.FOOTLOCKER.EU,5661,Clothing uniforms and laundry,134.99,22.50,112.49
Regeneration and Local Services,Culture & Sport,054235,Bishop Auckland Town Hall Cafe,Supplies and Services,324117,Provisions,07-Feb-2018,000006992715537,JR HOLLAND FOODSERVICE,5422,Catering costs - provisions,22.17,0.00,22.17
Regeneration and Local Services,Direct Services,021324,Catering - Meadowfield,Supplies and Services,324117,Provisions,07-Feb-2018,000006992715547,JR HOLLAND FOODSERVICE,5422,Catering costs - provisions,27.10,0.00,27.10
Regeneration and Local Services,Direct Services,021324,Catering - Meadowfield,Supplies and Services,324117,Provisions,07-Feb-2018,000006992715549,JR HOLLAND FOODSERVICE,5422,Catering costs - provisions,13.89,0.00,13.89
Regeneration and Local Services,Business Support,010832,Business Support,Supplies and Services,338064,Services,07-Feb-2018,000006992715689,DISCLOSURE SCOT,9399,Disclosure & Barring (DBS) Fees,25.00,0.00,25.00
Regeneration and Local Services,Direct Services,021235,Catering - Wharton Park,Supplies and Services,324117,Provisions,07-Feb-2018,000006992715693,WWW.ADELIEFOODS.CO.UK,5499,Catering costs - provisions,64.52,0.00,64.52
Regeneration and Local Services,Direct Services,021235,Catering - Wharton Park,Supplies and Services,324117,Provisions,07-Feb-2018,000006992715699,WWW.ADELIEFOODS.CO.UK,5499,Catering costs - provisions,53.70,0.00,53.70
Regeneration and Local Services,Direct Services,021235,Catering - Wharton Park,Supplies and Services,324117,Provisions,07-Feb-2018,000006992715701,JR HOLLAND FOODSERVICE,5422,Catering costs - provisions,19.14,0.00,19.14
Regeneration and Local Services,Economic Development and Housing,030737,Durham Works Flexible Fund,Supplies and Services,304259,Equipment and Materials,07-Feb-2018,000006992715741,GRO HM PASSPORT OFFICE,9399,Equipment-purchase and rental,23.40,0.00,23.40
Regeneration and Local Services,Spatial Policy Planning Assets & Environment,031200,North Pennines Core,Supplies and Services,340001,Postages,07-Feb-2018,000006992715747,THE POST OFFICE,9402,Postages,5.80,0.00,5.80
Regeneration and Local Services,Economic Development and Housing,030692,Durham Dales Centre - Management and Admin,Supplies and Services,324117,Provisions,07-Feb-2018,000006992715757,Castle Bank Butchers,5422,Catering costs - provisions,208.59,0.00,208.59
Regeneration and Local Services,Economic Development and Housing,030692,Durham Dales Centre - Management and Admin,Supplies and Services,324117,Provisions,07-Feb-2018,000006992715763,W Peat,5422,Catering costs - provisions,69.55,0.00,69.55
Regeneration and Local Services,Economic Development and Housing,030554,International Relations,Supplies and Services,384926,Miscellaneous Expenses,07-Feb-2018,000006992715767,PRINCE BISHOP SHOPPING,7523,International visits,2.10,0.00,2.10
Regeneration and Local Services,Economic Development and Housing,031576,B& B - Temp Accom,Supplies and Services,364320,Grants to Voluntary Organisations,07-Feb-2018,000006997694715,PREMIER INN,3811,Accommodation assistance,78.00,13.00,65.00
Regeneration and Local Services,Economic Development and Housing,031576,B& B - Temp Accom,Supplies and Services,364320,Grants to Voluntary Organisations,07-Feb-2018,000006997694717,PREMIER INN,3811,Accommodation assistance,74.00,12.33,61.67
Resources,Digital and Customer Services,065431,Applications and Development,Supplies and Services,304335,Equipment and Materials,08-Feb-2018,000006992714791,pickplugi,7299,ICT supplies etc,0.57,0.00,0.57
Children and Young Peoples Services,Head of Early Help Assessment and Safeguarding,085624,Families First Crook,Supplies and Services,304335,Equipment and Materials,08-Feb-2018,000006997694613,Amazon UK Marketplace,5942,ICT supplies etc,124.95,20.83,104.12
Children and Young Peoples Services,Head of Early Help Assessment and Safeguarding,085624,Families First Crook,Supplies and Services,304335,Equipment and Materials,08-Feb-2018,000006997694617,Amazon UK Marketplace,5942,ICT supplies etc,33.95,5.66,28.29
Resources,Digital and Customer Services,065449,Internal Applications Group,Supplies and Services,304335,Equipment and Materials,08-Feb-2018,000006997694619,BLS POWERMAPPER,5734,ICT supplies etc,332.65,55.44,277.21
Regeneration and Local Services,Economic Development and Housing,031576,B& B - Temp Accom,Supplies and Services,364320,Grants to Voluntary Organisations,08-Feb-2018,000006997694625,TRAVELODGE,3615,Accommodation assistance,46.00,7.67,38.33
Regeneration and Local Services,Economic Development and Housing,031576,B& B - Temp Accom,Supplies and Services,364320,Grants to Voluntary Organisations,08-Feb-2018,000006997694627,AMRP LEISURE LTD,5813,Accommodation assistance,51.75,0.00,51.75
Regeneration and Local Services,Economic Development and Housing,030732,Rural Employability Project - South Durham,Supplies and Services,304259,Equipment and Materials,08-Feb-2018,000006997694637,SCREWFIX CHESTER L,5211,Equipment-purchase and rental,39.99,0.00,39.99
Regeneration and Local Services,Direct Services,010367,C&G - South Grounds Maintenance,Supplies and Services,304259,Equipment and Materials,08-Feb-2018,000006997694679,SCREWFIX,5211,Equipment-purchase and rental,7.98,0.00,7.98
Regeneration and Local Services,Economic Development and Housing,030737,Durham Works Flexible Fund,Transport,235057,Public Transport,08-Feb-2018,000006997694691,ARRIVA NORTH EAST,4131,Staff travelling,7.00,0.00,7.00
Regeneration and Local Services,Economic Development and Housing,030737,Durham Works Flexible Fund,Transport,235057,Public Transport,08-Feb-2018,000006997694693,ARRIVA NORTH EAST,4131,Staff travelling,5.00,0.00,5.00
Regeneration and Local Services,Economic Development and Housing,030737,Durham Works Flexible Fund,Supplies and Services,304259,Equipment and Materials,08-Feb-2018,000006997694695,SPORTSDIRECT 290,5941,Equipment-purchase and rental,25.99,0.00,25.99
Regeneration and Local Services,Direct Services,021242,Catering - County Hall,Supplies and Services,324117,Provisions,08-Feb-2018,000006997694699,JR HOLLAND FOODSERVICE,5422,Catering costs - provisions,83.88,0.00,83.88
Regeneration and Local Services,Direct Services,021242,Catering - County Hall,Supplies and Services,324117,Provisions,08-Feb-2018,000006997694701,JR HOLLAND FOODSERVICE,5422,Catering costs - provisions,13.20,0.00,13.20
Regeneration and Local Services,Economic Development and Housing,030544,Rural Employability - Client Engagement,Supplies and Services,324117,Provisions,08-Feb-2018,000006997694703,ASDA STORES LTD,5411,Catering costs - provisions,51.50,0.00,51.50
Resources,Digital and Customer Services,065461,Business Support,Supplies and Services,372009,Subscriptions,08-Feb-2018,000006997694705,NOMINET UK,5734,Subscriptions,58.50,9.75,48.75
Resources,Digital and Customer Services,065461,Business Support,Supplies and Services,372009,Subscriptions,08-Feb-2018,000006997694707,NOMINET UK,5734,Subscriptions,45.00,0.00,45.00
Regeneration and Local Services,Direct Services,010367,C&G - South Grounds Maintenance,Supplies and Services,304259,Equipment and Materials,08-Feb-2018,000006997694709,JT ATKINSON & SONS LTD,5211,Equipment-purchase and rental,17.50,2.92,14.58
Regeneration and Local Services,Culture & Sport,054812,Gala Theatre - Catering etc,Supplies and Services,324117,Provisions,08-Feb-2018,000006997694713,JR HOLLAND FOODSERVICE,5422,Catering costs - provisions,53.44,0.00,53.44
Regeneration and Local Services,Direct Services,021242,Catering - County Hall,Supplies and Services,324117,Provisions,08-Feb-2018,000006997694727,TESCO STORES 6334,5411,Catering costs - provisions,6.15,0.00,6.15
Regeneration and Local Services,Culture & Sport,011217,Commercial Management,Supplies and Services,332047,Printing Stationery and Gen Off Exps,08-Feb-2018,000006997694735,OFFICE NEEDS DIRECT (U,5943,Stationery,494.33,82.39,411.94
Children and Young Peoples Services,Head of Looked After Provision Permanence and Care Leavers,085334,West Rainton Satelite Home,Supplies and Services,312011,Newspapers Books and Periodicals,08-Feb-2018,000006997694751,HOME BARGAINS,5251,Books-school library,7.22,0.00,7.22
Children and Young Peoples Services,Head of Looked After Provision Permanence and Care Leavers,085334,West Rainton Satelite Home,Supplies and Services,324117,Provisions,08-Feb-2018,000006997694755,TESCO STORES 2371,5411,Catering costs - provisions,47.90,0.00,47.90
Children and Young Peoples Services,Head of Looked After Provision Permanence and Care Leavers,085334,West Rainton Satelite Home,Supplies and Services,324117,Provisions,08-Feb-2018,000006997694757,ALDI 12 774,5411,Catering costs - provisions,103.36,0.00,103.36
Regeneration and Local Services,Spatial Policy Planning Assets & Environment,030051,Strategy and Project Development,Third Party Payments,430100,Rendered by Private Contractors,08-Feb-2018,000006997694765,EB ACTION ON APPRENTI,7399,Payments to sub-contractors,30.00,0.00,30.00
Children and Young Peoples Services,Head of Looked After Provision Permanence and Care Leavers,085957,Secure Management,Supplies and Services,312011,Newspapers Books and Periodicals,08-Feb-2018,000006997694789,Amazon UK Marketplace,5942,Books-school library,11.24,0.00,11.24
Regeneration and Local Services,Culture & Sport,026591,Hardwick Park,Supplies and Services,304259,Equipment and Materials,08-Feb-2018,000006997694791,SCREWFIX,5211,Equipment-purchase and rental,5.98,1.00,4.98
Children and Young Peoples Services,Head of Early Help Assessment and Safeguarding,071746,Newton Aycliffe Childrens Centre,Supplies and Services,324117,Provisions,08-Feb-2018,000006997694793,TESCO STORES 2916,5411,Catering costs - provisions,20.50,0.00,20.50
Children and Young Peoples Services,Head of Looked After Provision Permanence and Care Leavers,085551,Short Break Services-Park Hse Sher,Supplies and Services,304259,Equipment and Materials,08-Feb-2018,000006997694797,CURRYS,5732,Equipment-purchase and rental,109.99,0.00,109.99
Children and Young Peoples Services,Head of Looked After Provision Permanence and Care Leavers,085332,Middlestone Moor CU,Supplies and Services,304259,Equipment and Materials,08-Feb-2018,000006997694799,B & Q 1120,5211,Equipment-purchase and rental,45.00,0.00,45.00
Children and Young Peoples Services,Head of Looked After Provision Permanence and Care Leavers,085957,Secure Management,Supplies and Services,312011,Newspapers Books and Periodicals,08-Feb-2018,000006997694863,Amazon UK Marketplace,5942,Books-school library,4.95,0.00,4.95
Children and Young Peoples Services,Head of Looked After Provision Permanence and Care Leavers,085957,Secure Management,Supplies and Services,328041,Clothing Uniforms and Laundry,08-Feb-2018,000006997694865,WWW.ARGOS.CO.UK,5310,Clothing uniforms and laundry,29.93,4.99,24.94
Children and Young Peoples Services,Head of Looked After Provision Permanence and Care Leavers,085957,Secure Management,Supplies and Services,324117,Provisions,08-Feb-2018,000006997694867,TESCO STORES 6329,5411,Catering costs - provisions,94.58,0.00,94.58
Adult and Health Services,Head of Adults,055807,Newton Aycliffe Pathways,Supplies and Services,324117,Provisions,08-Feb-2018,000006997694935,TAYLORS NEWSFORCE 2567,5411,Catering costs - provisions,5.97,0.00,5.97
Children and Young Peoples Services,Head of Early Help Assessment and Safeguarding,074000,TTF-Attachment and Results,Supplies and Services,312011,Newspapers Books and Periodicals,08-Feb-2018,000006997694949,Amazon UK Marketplace,5942,Books-school library,15.99,0.00,15.99
Children and Young Peoples Services,Head of Early Help Assessment and Safeguarding,074000,TTF-Attachment and Results,Supplies and Services,312011,Newspapers Books and Periodicals,08-Feb-2018,000006997694951,Amazon UK Marketplace,5942,Books-school library,15.99,0.00,15.99
Children and Young Peoples Services,Head of Early Help Assessment and Safeguarding,074000,TTF-Attachment and Results,Supplies and Services,312011,Newspapers Books and Periodicals,08-Feb-2018,000006997694953,Amazon UK Marketplace,5942,Books-school library,6.48,0.00,6.48
Children and Young Peoples Services,Head of Early Help Assessment and Safeguarding,074000,TTF-Attachment and Results,Supplies and Services,308011,Furniture,08-Feb-2018,000006997694957,FRANKS THE FLOORING ST,5713,Furniture repair and replacement,150.00,0.00,150.00
Children and Young Peoples Services,Head of Early Help Assessment and Safeguarding,074000,TTF-Attachment and Results,Supplies and Services,304403,Equipment and Materials,08-Feb-2018,000006997694959,TESCO - Seller_IST_1_2,5999,Other consumables,26.99,0.00,26.99
Children and Young Peoples Services,Head of Early Help Assessment and Safeguarding,074000,TTF-Attachment and Results,Supplies and Services,304403,Equipment and Materials,08-Feb-2018,000006997694961,TESCO - Seller_IST_1_2,5999,Other consumables,26.99,0.00,26.99
Children and Young Peoples Services,Head of Early Help Assessment and Safeguarding,074000,TTF-Attachment and Results,Supplies and Services,304403,Equipment and Materials,08-Feb-2018,000006997694963,TESCO DIRECT,5999,Other consumables,43.00,0.00,43.00
Children and Young Peoples Services,Head of Early Help Assessment and Safeguarding,074000,TTF-Attachment and Results,Supplies and Services,304403,Equipment and Materials,08-Feb-2018,000006997694965,TESCO DIRECT,5999,Other consumables,43.00,0.00,43.00
Children and Young Peoples Services,Head of Early Help Assessment and Safeguarding,074000,TTF-Attachment and Results,Supplies and Services,304403,Equipment and Materials,08-Feb-2018,000006997694967,TESCO DIRECT,5999,Other consumables,19.00,0.00,19.00
Transformation and Partnerships,Comms & Information Management,060270,Communications and Marketing,Supplies and Services,336005,Advertising,08-Feb-2018,000006997694969,FACEBK 39B72FSQL2,7311,Advertising other than for staff,20.00,3.33,16.67
Regeneration and Local Services,Transport and Contracted Services,032253,Public Right of Way,Supplies and Services,312009,Newspapers Books and Periodicals,08-Feb-2018,000006997694971,TNA BOOK SHOP,9399,Newspapers books and periodicals,32.00,0.00,32.00
Transformation and Partnerships,Comms & Information Management,060131,County Records,Supplies and Services,372009,Subscriptions,08-Feb-2018,000006997694973,THEPRINTSPACE,2741,Subscriptions,49.02,8.17,40.85
Regeneration and Local Services,Direct Services,021235,Catering - Wharton Park,Supplies and Services,324117,Provisions,08-Feb-2018,000006997694975,JR HOLLAND FOODSERVICE,5422,Catering costs - provisions,18.68,0.00,18.68
Regeneration and Local Services,Economic Development and Housing,030737,Durham Works Flexible Fund,Transport,235057,Public Transport,08-Feb-2018,000006997694997,GO NORTH EAST LIMITED,4131,Staff travelling,92.00,0.00,92.00
Regeneration and Local Services,Economic Development and Housing,030737,Durham Works Flexible Fund,Transport,235057,Public Transport,08-Feb-2018,000006997694999,GO NORTH EAST LIMITED,4131,Staff travelling,92.00,0.00,92.00
Children and Young Peoples Services,Head of Early Help Assessment and Safeguarding,085801,CDYOS - Support,Supplies and Services,304259,Equipment and Materials,08-Feb-2018,000006997695003,GRO HM PASSPORT OFFICE,9399,Equipment-purchase and rental,9.25,0.00,9.25
Regeneration and Local Services,Economic Development and Housing,031576,B& B - Temp Accom,Supplies and Services,364320,Grants to Voluntary Organisations,08-Feb-2018,000007003687303,PREMIER INN,3811,Accommodation assistance,66.00,11.00,55.00
Regeneration and Local Services,Economic Development and Housing,031576,B& B - Temp Accom,Supplies and Services,364320,Grants to Voluntary Organisations,08-Feb-2018,000007003687313,PREMIER INN,3811,Accommodation assistance,65.00,10.83,54.17
Regeneration and Local Services,Culture & Sport,011060,Hardwick Park Catering,Supplies and Services,324117,Provisions,08-Feb-2018,000007003687895,BATLEYS PERTH,5300,Catering costs - provisions,89.40,14.90,74.50
Regeneration and Local Services,Culture & Sport,011060,Hardwick Park Catering,Supplies and Services,324117,Provisions,08-Feb-2018,000007003687895 - 1,BATLEYS PERTH,5300,Catering costs - provisions,200.62,,200.62
Regeneration and Local Services,Culture & Sport,011060,Hardwick Park Catering,Supplies and Services,324117,Provisions,08-Feb-2018,000007003687907,BATLEYS PERTH,5300,Catering costs - provisions,20.94,3.49,17.45
Regeneration and Local Services,Culture & Sport,011060,Hardwick Park Catering,Supplies and Services,324117,Provisions,08-Feb-2018,000007003687907 - 1,BATLEYS PERTH,5300,Catering costs - provisions,9.87,,9.87
Regeneration and Local Services,Culture & Sport,011060,Hardwick Park Catering,Supplies and Services,324117,Provisions,08-Feb-2018,000007003687911,BATLEYS PERTH,5300,Catering costs - provisions,4.69,0.00,4.69
Regeneration and Local Services,Direct Services,021234,Catering - Locomotion,Supplies and Services,324117,Provisions,08-Feb-2018,000007003687963,BATLEYS PERTH,5300,Catering costs - provisions,349.50,58.25,291.25
Regeneration and Local Services,Direct Services,021234,Catering - Locomotion,Supplies and Services,324117,Provisions,08-Feb-2018,000007003687963 - 1,BATLEYS PERTH,5300,Catering costs - provisions,48.25,,48.25
Regeneration and Local Services,Direct Services,020051,Bldg Serv - CONS - Building General,Supplies and Services,304221,Equipment and Materials,08-Feb-2018,000007003688187,WWW.ARGOS.CO.UK,5310,Direct materials,123.93,0.00,123.93
Regeneration and Local Services,Direct Services,010383,C&G - South Street Cleansing,Supplies and Services,304221,Equipment and Materials,09-Feb-2018,000007003687345,WWW.ARCO.CO.UK,5085,Direct materials,51.52,8.59,42.93
Children and Young Peoples Services,Head of Looked After Provision Permanence and Care Leavers,085342,9 Cedar Drive Aycliffe,Supplies and Services,324117,Provisions,09-Feb-2018,000007003687413,TESCO STORES 2916,5411,Catering costs - provisions,230.68,0.00,230.68
Regeneration and Local Services,Culture & Sport,054233,Bishop Auckland Town Hall Library,Supplies and Services,324117,Provisions,09-Feb-2018,000007003687515,ASDA STORES,5411,Catering costs - provisions,14.31,0.00,14.31
Children and Young Peoples Services,Head of Looked After Provision Permanence and Care Leavers,085361,LAC & Permanence Team 1,Supplies and Services,384999,Miscellaneous Expenses,09-Feb-2018,000007003687581,GRO HM PASSPORT OFFICE,9399,Other expenses,18.50,0.00,18.50
Children and Young Peoples Services,Head of Looked After Provision Permanence and Care Leavers,085361,LAC & Permanence Team 1,Supplies and Services,384999,Miscellaneous Expenses,09-Feb-2018,000007003687585,GRO HM PASSPORT OFFICE,9399,Other expenses,9.25,1.54,7.71
Children and Young Peoples Services,Head of Looked After Provision Permanence and Care Leavers,085352,Tow Law CU,Supplies and Services,312011,Newspapers Books and Periodicals,09-Feb-2018,000007003687629,Amazon UK Marketplace,5942,Books-school library,8.99,0.00,8.99
Children and Young Peoples Services,Head of Looked After Provision Permanence and Care Leavers,085352,Tow Law CU,Supplies and Services,304403,Equipment and Materials,09-Feb-2018,000007003687633,AMAZON EU AMAZON.CO.UK,5999,Other consumables,38.39,0.00,38.39
Regeneration and Local Services,Direct Services,010900,Fleet - Meadowfield Fleet,Transport,215013,Running Costs of Vehicles,09-Feb-2018,000007003687637,DVLA VEHICLE TAX,9399,Vehicle Excise Duty (VED),167.50,0.00,167.50
Regeneration and Local Services,Direct Services,010864,Fleet - Hackworth Road Fleet,Transport,215013,Running Costs of Vehicles,09-Feb-2018,000007003687643,DVLA VEHICLE TAX,9399,Vehicle Excise Duty (VED),167.50,0.00,167.50
Regeneration and Local Services,Direct Services,010900,Fleet - Meadowfield Fleet,Transport,215013,Running Costs of Vehicles,09-Feb-2018,000007003687647,DVLA VEHICLE TAX,9399,Vehicle Excise Duty (VED),242.50,0.00,242.50
Regeneration and Local Services,Direct Services,010900,Fleet - Meadowfield Fleet,Transport,215013,Running Costs of Vehicles,09-Feb-2018,000007003687649,DVLA VEHICLE TAX,9399,Vehicle Excise Duty (VED),242.50,0.00,242.50
Regeneration and Local Services,Direct Services,010900,Fleet - Meadowfield Fleet,Transport,215013,Running Costs of Vehicles,09-Feb-2018,000007003687653,DVLA VEHICLE TAX,9399,Vehicle Excise Duty (VED),242.50,0.00,242.50
Regeneration and Local Services,Direct Services,010900,Fleet - Meadowfield Fleet,Transport,215013,Running Costs of Vehicles,09-Feb-2018,000007003687659,DVLA VEHICLE TAX,9399,Vehicle Excise Duty (VED),242.50,0.00,242.50
Regeneration and Local Services,Direct Services,010551,Fleet - Chilton Fleet,Transport,215013,Running Costs of Vehicles,09-Feb-2018,000007003687665,DVLA VEHICLE TAX,9399,Vehicle Excise Duty (VED),242.50,0.00,242.50
Regeneration and Local Services,Direct Services,010551,Fleet - Chilton Fleet,Transport,215013,Running Costs of Vehicles,09-Feb-2018,000007003687667,DVLA VEHICLE TAX,9399,Vehicle Excise Duty (VED),242.50,0.00,242.50
Regeneration and Local Services,Direct Services,010864,Fleet - Hackworth Road Fleet,Transport,215013,Running Costs of Vehicles,09-Feb-2018,000007003687673,DVLA VEHICLE TAX,9399,Vehicle Excise Duty (VED),242.50,0.00,242.50
Regeneration and Local Services,Direct Services,010900,Fleet - Meadowfield Fleet,Transport,215013,Running Costs of Vehicles,09-Feb-2018,000007003687677,DVLA VEHICLE TAX,9399,Vehicle Excise Duty (VED),242.50,0.00,242.50
Regeneration and Local Services,Direct Services,010900,Fleet - Meadowfield Fleet,Transport,215013,Running Costs of Vehicles,09-Feb-2018,000007003687681,DVLA VEHICLE TAX,9399,Vehicle Excise Duty (VED),242.50,0.00,242.50
Regeneration and Local Services,Direct Services,010900,Fleet - Meadowfield Fleet,Transport,215013,Running Costs of Vehicles,09-Feb-2018,000007003687685,DVLA VEHICLE TAX,9399,Vehicle Excise Duty (VED),242.50,0.00,242.50
Regeneration and Local Services,Direct Services,010900,Fleet - Meadowfield Fleet,Transport,215013,Running Costs of Vehicles,09-Feb-2018,000007003687687,DVLA VEHICLE TAX,9399,Vehicle Excise Duty (VED),242.50,0.00,242.50
Regeneration and Local Services,Direct Services,010900,Fleet - Meadowfield Fleet,Transport,215013,Running Costs of Vehicles,09-Feb-2018,000007003687691,DVLA VEHICLE TAX,9399,Vehicle Excise Duty (VED),242.50,0.00,242.50
Regeneration and Local Services,Direct Services,010561,Fleet - Morrison Busty Fleet,Transport,215013,Running Costs of Vehicles,09-Feb-2018,000007003687693,DVLA VEHICLE TAX,9399,Vehicle Excise Duty (VED),242.50,0.00,242.50
Regeneration and Local Services,Direct Services,010864,Fleet - Hackworth Road Fleet,Transport,215013,Running Costs of Vehicles,09-Feb-2018,000007003687699,DVLA VEHICLE TAX,9399,Vehicle Excise Duty (VED),242.50,0.00,242.50
Regeneration and Local Services,Direct Services,010900,Fleet - Meadowfield Fleet,Transport,215013,Running Costs of Vehicles,09-Feb-2018,000007003687701,DVLA VEHICLE TAX,9399,Vehicle Excise Duty (VED),242.50,0.00,242.50
Regeneration and Local Services,Direct Services,010900,Fleet - Meadowfield Fleet,Transport,215013,Running Costs of Vehicles,09-Feb-2018,000007003687705,DVLA VEHICLE TAX,9399,Vehicle Excise Duty (VED),242.50,0.00,242.50
Regeneration and Local Services,Direct Services,010551,Fleet - Chilton Fleet,Transport,215013,Running Costs of Vehicles,09-Feb-2018,000007003687711,DVLA VEHICLE TAX,9399,Vehicle Excise Duty (VED),352.50,0.00,352.50
Regeneration and Local Services,Direct Services,010900,Fleet - Meadowfield Fleet,Transport,215013,Running Costs of Vehicles,09-Feb-2018,000007003687715,DVLA VEHICLE TAX,9399,Vehicle Excise Duty (VED),242.50,0.00,242.50
Regeneration and Local Services,Direct Services,010551,Fleet - Chilton Fleet,Transport,215013,Running Costs of Vehicles,09-Feb-2018,000007003687723,DVLA VEHICLE TAX,9399,Vehicle Excise Duty (VED),242.50,0.00,242.50
Regeneration and Local Services,Direct Services,010900,Fleet - Meadowfield Fleet,Transport,215013,Running Costs of Vehicles,09-Feb-2018,000007003687727,DVLA VEHICLE TAX,9399,Vehicle Excise Duty (VED),242.50,0.00,242.50
Regeneration and Local Services,Direct Services,010900,Fleet - Meadowfield Fleet,Transport,215013,Running Costs of Vehicles,09-Feb-2018,000007003687733,DVLA VEHICLE TAX,9399,Vehicle Excise Duty (VED),242.50,0.00,242.50
Regeneration and Local Services,Direct Services,010864,Fleet - Hackworth Road Fleet,Transport,215013,Running Costs of Vehicles,09-Feb-2018,000007003687737,DVLA VEHICLE TAX,9399,Vehicle Excise Duty (VED),352.50,0.00,352.50
Regeneration and Local Services,Direct Services,010900,Fleet - Meadowfield Fleet,Transport,215013,Running Costs of Vehicles,09-Feb-2018,000007003687743,DVLA VEHICLE TAX,9399,Vehicle Excise Duty (VED),242.50,0.00,242.50
Regeneration and Local Services,Direct Services,010900,Fleet - Meadowfield Fleet,Transport,215013,Running Costs of Vehicles,09-Feb-2018,000007003687747,DVLA VEHICLE TAX,9399,Vehicle Excise Duty (VED),242.50,0.00,242.50
Regeneration and Local Services,Direct Services,010900,Fleet - Meadowfield Fleet,Transport,215013,Running Costs of Vehicles,09-Feb-2018,000007003687753,DVLA VEHICLE TAX,9399,Vehicle Excise Duty (VED),242.50,0.00,242.50
Regeneration and Local Services,Direct Services,010900,Fleet - Meadowfield Fleet,Transport,215013,Running Costs of Vehicles,09-Feb-2018,000007003687755,DVLA VEHICLE TAX,9399,Vehicle Excise Duty (VED),242.50,0.00,242.50
Regeneration and Local Services,Direct Services,010900,Fleet - Meadowfield Fleet,Transport,215013,Running Costs of Vehicles,09-Feb-2018,000007003687761,DVLA VEHICLE TAX,9399,Vehicle Excise Duty (VED),167.50,0.00,167.50
Children and Young Peoples Services,Head of Looked After Provision Permanence and Care Leavers,085341,High Etherley Satelite Home,Supplies and Services,324117,Provisions,09-Feb-2018,000007003687777,TESCO STORES 6329,5411,Catering costs - provisions,9.85,0.00,9.85
Children and Young Peoples Services,Head of Looked After Provision Permanence and Care Leavers,085341,High Etherley Satelite Home,Supplies and Services,384999,Miscellaneous Expenses,09-Feb-2018,000007003687781,TICKETMASTER UK,7922,Other expenses,65.65,0.00,65.65
Children and Young Peoples Services,Head of Looked After Provision Permanence and Care Leavers,085341,High Etherley Satelite Home,Supplies and Services,312011,Newspapers Books and Periodicals,09-Feb-2018,000007003687783,AMAZON SVCS EU-UK AMAZ,5942,Books-school library,20.40,0.00,20.40
Children and Young Peoples Services,Head of Looked After Provision Permanence and Care Leavers,085332,Middlestone Moor CU,Supplies and Services,324117,Provisions,09-Feb-2018,000007003687929,THE MEAT MARKET,5499,Catering costs - provisions,22.50,0.00,22.50
Children and Young Peoples Services,Head of Looked After Provision Permanence and Care Leavers,085332,Middlestone Moor CU,Supplies and Services,312011,Newspapers Books and Periodicals,09-Feb-2018,000007003687939,HOME BARGAINS SPENNYMO,5251,Books-school library,36.85,6.14,30.71
Children and Young Peoples Services,Head of Looked After Provision Permanence and Care Leavers,085332,Middlestone Moor CU,Supplies and Services,324117,Provisions,09-Feb-2018,000007003687943,ASDA SUPERSTORE 4987,5411,Catering costs - provisions,62.72,0.00,62.72
Children and Young Peoples Services,Head of Looked After Provision Permanence and Care Leavers,085332,Middlestone Moor CU,Supplies and Services,308011,Furniture,09-Feb-2018,000007003687947,DUNELM LTD,5714,Furniture repair and replacement,109.00,0.00,109.00
Regeneration and Local Services,Direct Services,021234,Catering - Locomotion,Supplies and Services,324117,Provisions,09-Feb-2018,000007003687953,JR HOLLAND FOODSERVICE,5422,Catering costs - provisions,84.21,0.00,84.21
Regeneration and Local Services,Economic Development and Housing,030714,Salvus House,Supplies and Services,324117,Provisions,09-Feb-2018,000007003687987,CO-OP GROUP FOOD,5411,Catering costs - provisions,2.00,0.00,2.00
Regeneration and Local Services,Economic Development and Housing,031576,B& B - Temp Accom,Supplies and Services,364320,Grants to Voluntary Organisations,09-Feb-2018,000007003688045,TRAVELODGE,3615,Accommodation assistance,212.00,35.33,176.67
Regeneration and Local Services,Economic Development and Housing,031576,B& B - Temp Accom,Supplies and Services,364320,Grants to Voluntary Organisations,09-Feb-2018,000007003688049,AMRP LEISURE LTD,5813,Accommodation assistance,155.25,0.00,155.25
Regeneration and Local Services,Economic Development and Housing,031576,B& B - Temp Accom,Supplies and Services,364320,Grants to Voluntary Organisations,09-Feb-2018,000007003688055,PREMIER INN,3811,Accommodation assistance,173.50,0.00,173.50
Regeneration and Local Services,Economic Development and Housing,031576,B& B - Temp Accom,Supplies and Services,364320,Grants to Voluntary Organisations,09-Feb-2018,000007003688059,PREMIER INN,3811,Accommodation assistance,161.50,0.00,161.50
Regeneration and Local Services,Direct Services,010525,Catering - Green Lane,Supplies and Services,324117,Provisions,09-Feb-2018,000007003688065,JR HOLLAND FOODSERVICE,5422,Catering costs - provisions,48.44,0.00,48.44
Regeneration and Local Services,Direct Services,010525,Catering - Green Lane,Supplies and Services,324117,Provisions,09-Feb-2018,000007003688069,JR HOLLAND FOODSERVICE,5422,Catering costs - provisions,10.54,0.00,10.54
Regeneration and Local Services,Economic Development and Housing,030749,Employability - Youth Contract,Transport,235057,Public Transport,09-Feb-2018,000007003688181,ARRIVA NORTH EAST,4131,Staff travelling,6.50,0.00,6.50
Children and Young Peoples Services,Head of Looked After Provision Permanence and Care Leavers,085333,Coxhoe Satelite Home,Supplies and Services,324117,Provisions,09-Feb-2018,000007003688199,TESCO STORES 2371,5411,Catering costs - provisions,142.72,0.00,142.72
Children and Young Peoples Services,Head of Looked After Provision Permanence and Care Leavers,085333,Coxhoe Satelite Home,Supplies and Services,324117,Provisions,09-Feb-2018,000007003688205,TESCO STORES 2371,5411,Catering costs - provisions,116.00,0.00,116.00
Children and Young Peoples Services,Head of Looked After Provision Permanence and Care Leavers,085957,Secure Management,Supplies and Services,312011,Newspapers Books and Periodicals,09-Feb-2018,000007003688427,Amazon UK Marketplace,5942,Books-school library,16.96,0.00,16.96
Children and Young Peoples Services,Head of Looked After Provision Permanence and Care Leavers,085957,Secure Management,Supplies and Services,342033,Computers and Communications,09-Feb-2018,000007003688433,SP STEVEN BROWN ART,7333,Computer hardware,164.95,27.49,137.46
Children and Young Peoples Services,Head of Looked After Provision Permanence and Care Leavers,085957,Secure Management,Supplies and Services,324117,Provisions,09-Feb-2018,000007003688437,TESCO STORES 6329,5411,Catering costs - provisions,92.51,0.00,92.51
Children and Young Peoples Services,Head of Looked After Provision Permanence and Care Leavers,085957,Secure Management,Supplies and Services,328041,Clothing Uniforms and Laundry,09-Feb-2018,000007003688445,WWW.ARGOS.CO.UK,5310,Clothing uniforms and laundry,43.94,7.32,36.62
Adult and Health Services,Head of Adults,055301,Stanley Pathways,Supplies and Services,308011,Furniture,09-Feb-2018,000007003688531,POUNDSTRETCHER 354,5714,Furniture repair and replacement,10.00,0.00,10.00
Adult and Health Services,Head of Adults,055301,Stanley Pathways,Supplies and Services,324117,Provisions,09-Feb-2018,000007003688537,ASDA SUPERSTORE,5411,Catering costs - provisions,6.97,0.00,6.97
Children and Young Peoples Services,Head of Early Help Assessment and Safeguarding,074000,TTF-Attachment and Results,Supplies and Services,312011,Newspapers Books and Periodicals,09-Feb-2018,000007003688689,Amazon UK Marketplace,5942,Books-school library,2.35,0.00,2.35
Children and Young Peoples Services,Head of Early Help Assessment and Safeguarding,074000,TTF-Attachment and Results,Supplies and Services,312011,Newspapers Books and Periodicals,09-Feb-2018,000007003688695,Amazon UK Marketplace,5942,Books-school library,2.79,0.00,2.79
Resources,Corporate Finance & Commercial Services,066820,Occupational Health Service,Supplies and Services,372009,Subscriptions,09-Feb-2018,000007003688705,SurveyMonkey,7372,Subscriptions,336.00,56.00,280.00
Adult and Health Services,Head of Adults,051575,Reablement South,Supplies and Services,340001,Postages,09-Feb-2018,000007003688745,ROYAL MAIL ONLINE SHOP,9402,Postages,130.00,0.00,130.00
Regeneration and Local Services,Business Support,010832,Business Support,Supplies and Services,338064,Services,09-Feb-2018,000007003688751,DISCLOSURE SCOT,9399,Disclosure & Barring (DBS) Fees,25.00,0.00,25.00
Children and Young Peoples Services,Head of Early Help Assessment and Safeguarding,085801,CDYOS - Support,Supplies and Services,304999,Equipment and Materials,09-Feb-2018,000007003688817,THE LOUISA CENTRE,7032,Misc equipment tools and materials,8.40,0.00,8.40
Regeneration and Local Services,Direct Services,021242,Catering - County Hall,Supplies and Services,324117,Provisions,09-Feb-2018,000007011106161,BATLEYS PERTH,5300,Catering costs - provisions,696.00,116.00,580.00
Regeneration and Local Services,Direct Services,021242,Catering - County Hall,Supplies and Services,324117,Provisions,09-Feb-2018,000007011106161 - 1,BATLEYS PERTH,5300,Catering costs - provisions,269.02,,269.02
Regeneration and Local Services,Direct Services,021242,Catering - County Hall,Supplies and Services,324117,Provisions,09-Feb-2018,000007011106199,BATLEYS PERTH,5300,Catering costs - provisions,-10.87,0.00,-10.87
Regeneration and Local Services,Culture & Sport,011060,Hardwick Park Catering,Supplies and Services,324117,Provisions,09-Feb-2018,000007011106455,BATLEYS PERTH,5300,Catering costs - provisions,132.18,22.03,110.15
Regeneration and Local Services,Culture & Sport,011060,Hardwick Park Catering,Supplies and Services,324117,Provisions,09-Feb-2018,000007011106455 - 1,BATLEYS PERTH,5300,Catering costs - provisions,149.16,,149.16
Regeneration and Local Services,Direct Services,010525,Catering - Green Lane,Supplies and Services,324117,Provisions,09-Feb-2018,000007011106501,BATLEYS PERTH,5300,Catering costs - provisions,220.80,36.80,184.00
Regeneration and Local Services,Direct Services,010525,Catering - Green Lane,Supplies and Services,324117,Provisions,09-Feb-2018,000007011106501 - 1,BATLEYS PERTH,5300,Catering costs - provisions,83.88,,83.88
Regeneration and Local Services,Direct Services,010525,Catering - Green Lane,Supplies and Services,324117,Provisions,09-Feb-2018,000007011106503,BATLEYS PERTH,5300,Catering costs - provisions,5.05,0.00,5.05
Adult and Health Services,Head of Adults,055643,Hawthorn House LD Respite Unit,Supplies and Services,324117,Provisions,09-Feb-2018,000007011106621,BATLEYS PERTH,5300,Catering costs - provisions,7.50,1.25,6.25
Adult and Health Services,Head of Adults,055643,Hawthorn House LD Respite Unit,Supplies and Services,324117,Provisions,09-Feb-2018,000007011106621 - 1,BATLEYS PERTH,5300,Catering costs - provisions,99.01,,99.01
Children and Young Peoples Services,Head of Looked After Provision Permanence and Care Leavers,085361,LAC & Permanence Team 1,Supplies and Services,384999,Miscellaneous Expenses,09-Feb-2018,000007091389183,GRO HM PASSPORT OFFICE,9399,Other expenses,-9.25,0.00,-9.25
Children and Young Peoples Services,Head of Looked After Provision Permanence and Care Leavers,085342,9 Cedar Drive Aycliffe,Supplies and Services,328041,Clothing Uniforms and Laundry,10-Feb-2018,000007003687379,B&M RETAIL LTD,5310,Clothing uniforms and laundry,7.42,0.00,7.42
Children and Young Peoples Services,Head of Looked After Provision Permanence and Care Leavers,085342,9 Cedar Drive Aycliffe,Supplies and Services,348037,Subsistence,10-Feb-2018,000007003687385,MCDONALDS,5812,Subsistence,8.56,0.00,8.56
Children and Young Peoples Services,Head of Looked After Provision Permanence and Care Leavers,085342,9 Cedar Drive Aycliffe,Supplies and Services,348037,Subsistence,10-Feb-2018,000007003687389,MCDONALDS,5812,Subsistence,5.56,0.00,5.56
Children and Young Peoples Services,Head of Looked After Provision Permanence and Care Leavers,085342,9 Cedar Drive Aycliffe,Supplies and Services,312011,Newspapers Books and Periodicals,10-Feb-2018,000007003687395,HOME BARGAINS,5251,Books-school library,11.76,0.00,11.76
Children and Young Peoples Services,Head of Education,071903,EYDCP-Sustainability EDS,Supplies and Services,304403,Equipment and Materials,10-Feb-2018,000007003687861,AMAZON EU AMAZON.CO.UK,5999,Other consumables,20.58,0.00,20.58
Children and Young Peoples Services,Head of Looked After Provision Permanence and Care Leavers,085352,Tow Law CU,Supplies and Services,324117,Provisions,10-Feb-2018,000007003688087,TESCO STORES 2371,5411,Catering costs - provisions,251.47,0.00,251.47
Resources,Resources Management,069000,Resources Management,Supplies and Services,324117,Provisions,10-Feb-2018,000007003688225,SAINSBURYS (2303),5411,Catering costs - provisions,10.65,0.00,10.65
Children and Young Peoples Services,Head of Looked After Provision Permanence and Care Leavers,085957,Secure Management,Supplies and Services,312011,Newspapers Books and Periodicals,10-Feb-2018,000007003688441,Amazon UK Marketplace,5942,Books-school library,5.98,0.00,5.98
Children and Young Peoples Services,Head of Looked After Provision Permanence and Care Leavers,085957,Secure Management,Supplies and Services,324117,Provisions,10-Feb-2018,000007003688447,TESCO STORES 6329,5411,Catering costs - provisions,89.13,0.00,89.13
Children and Young Peoples Services,Head of Early Help Assessment and Safeguarding,074000,TTF-Attachment and Results,Supplies and Services,312011,Newspapers Books and Periodicals,10-Feb-2018,000007003688701,AMAZON SVCS EU-UK AMAZ,5942,Books-school library,2.79,0.00,2.79
Children and Young Peoples Services,Head of Looked After Provision Permanence and Care Leavers,085334,West Rainton Satelite Home,Supplies and Services,328041,Clothing Uniforms and Laundry,11-Feb-2018,000007003687619,ARGOS LTD,5310,Clothing uniforms and laundry,69.98,0.00,69.98
Children and Young Peoples Services,Head of Looked After Provision Permanence and Care Leavers,085341,High Etherley Satelite Home,Supplies and Services,324117,Provisions,12-Feb-2018,000007011105927,SAINSBURYS 2199,5411,Catering costs - provisions,17.75,0.00,17.75
Children and Young Peoples Services,Head of Education,071801,Selby Cottage Childcare Centre,Supplies and Services,304259,Equipment and Materials,12-Feb-2018,000007011105955,WILKO RETAIL LIMIT,5722,Equipment-purchase and rental,12.05,0.00,12.05
Children and Young Peoples Services,Head of Education,071801,Selby Cottage Childcare Centre,Supplies and Services,324117,Provisions,12-Feb-2018,000007011105957,ASDA HOME SHOPPING,5411,Catering costs - provisions,76.57,0.00,76.57
Children and Young Peoples Services,Head of Education,071801,Selby Cottage Childcare Centre,Supplies and Services,324117,Provisions,12-Feb-2018,000007011105959,W M MORRISON PLC,5411,Catering costs - provisions,28.40,0.00,28.40
Adult and Health Services,Head of Adults,055302,Durham Pathways,Supplies and Services,324117,Provisions,12-Feb-2018,000007011106015,LIDL UK,5411,Catering costs - provisions,2.18,0.00,2.18
Children and Young Peoples Services,Head of Looked After Provision Permanence and Care Leavers,085342,9 Cedar Drive Aycliffe,Supplies and Services,348037,Subsistence,12-Feb-2018,000007011106037,COSTA @ NEXT 43041645,5814,Subsistence,9.55,0.00,9.55
Children and Young Peoples Services,Head of Looked After Provision Permanence and Care Leavers,085342,9 Cedar Drive Aycliffe,Supplies and Services,304259,Equipment and Materials,12-Feb-2018,000007011106039,SPORTSDIRECT 246,5941,Equipment-purchase and rental,84.03,0.00,84.03
Dedicated Schools Grant,Dedicated Schools Grant,079063,Partial Hearing-Belmont Comp,Supplies and Services,304649,Equipment and Materials,12-Feb-2018,000007011106043,AMAZON SVCS EU-UK AMAZ,5942,Toys,19.99,0.00,19.99
Dedicated Schools Grant,Dedicated Schools Grant,079063,Partial Hearing-Belmont Comp,Supplies and Services,312011,Newspapers Books and Periodicals,12-Feb-2018,000007011106047,AMAZON SVCS EU-UK AMAZ,5942,Books-school library,23.87,0.00,23.87
Dedicated Schools Grant,Dedicated Schools Grant,079063,Partial Hearing-Belmont Comp,Supplies and Services,332047,Printing Stationery and Gen Off Exps,12-Feb-2018,000007011106051,ARGOS RETAIL GROUP,5310,Stationery,14.99,0.00,14.99
Dedicated Schools Grant,Dedicated Schools Grant,079063,Partial Hearing-Belmont Comp,Supplies and Services,312011,Newspapers Books and Periodicals,12-Feb-2018,000007011106055,AMAZON SVCS EU-UK AMAZ,5942,Books-school library,23.01,0.00,23.01
Dedicated Schools Grant,Dedicated Schools Grant,079063,Partial Hearing-Belmont Comp,Supplies and Services,304649,Equipment and Materials,12-Feb-2018,000007011106057,WWW.THEWORKS.CO.UK,5310,Toys,20.97,0.00,20.97
Regeneration and Local Services,Economic Development and Housing,030699,Business Growth and Innovation General,Supplies and Services,312011,Newspapers Books and Periodicals,12-Feb-2018,000007011106077,FASTHOSTS INTERNET,4816,Books-school library,8.39,1.40,6.99
Children and Young Peoples Services,Head of Early Help Assessment and Safeguarding,085515,Community Support Team,Supplies and Services,304403,Equipment and Materials,12-Feb-2018,000007011106135,AMAZON EU AMAZON.CO.UK,5999,Other consumables,29.95,0.00,29.95
Regeneration and Local Services,Direct Services,021242,Catering - County Hall,Supplies and Services,324117,Provisions,12-Feb-2018,000007011106149,JR HOLLAND FOODSERVICE,5422,Catering costs - provisions,136.25,0.00,136.25
Regeneration and Local Services,Direct Services,021242,Catering - County Hall,Supplies and Services,324117,Provisions,12-Feb-2018,000007011106153,JR HOLLAND FOODSERVICE,5422,Catering costs - provisions,49.15,0.00,49.15
Regeneration and Local Services,Direct Services,021242,Catering - County Hall,Supplies and Services,324117,Provisions,12-Feb-2018,000007011106159,JR HOLLAND FOODSERVICE,5422,Catering costs - provisions,13.54,0.00,13.54
Regeneration and Local Services,Economic Development and Housing,030544,Rural Employability - Client Engagement,Supplies and Services,304259,Equipment and Materials,12-Feb-2018,000007011106203,MACHINE MART LTD,5722,Equipment-purchase and rental,19.80,3.30,16.50
Regeneration and Local Services,Economic Development and Housing,030544,Rural Employability - Client Engagement,Supplies and Services,328041,Clothing Uniforms and Laundry,12-Feb-2018,000007011106203 - 1,MACHINE MART LTD,5722,Clothing uniforms and laundry,29.97,,29.97
Regeneration and Local Services,Economic Development and Housing,030737,Durham Works Flexible Fund,Transport,235057,Public Transport,12-Feb-2018,000007011106209,ARRIVA NORTH EAST,4131,Staff travelling,7.00,0.00,7.00
Regeneration and Local Services,Economic Development and Housing,031576,B& B - Temp Accom,Supplies and Services,364320,Grants to Voluntary Organisations,12-Feb-2018,000007011106217,AMRP LEISURE LTD,5813,Accommodation assistance,51.75,8.63,43.12
Regeneration and Local Services,Economic Development and Housing,031576,B& B - Temp Accom,Supplies and Services,364320,Grants to Voluntary Organisations,12-Feb-2018,000007011106219,TRAVELODGE,3615,Accommodation assistance,39.00,6.50,32.50
Regeneration and Local Services,Economic Development and Housing,031576,B& B - Temp Accom,Supplies and Services,364320,Grants to Voluntary Organisations,12-Feb-2018,000007011106223,TRAVELODGE,3615,Accommodation assistance,41.00,6.83,34.17
Regeneration and Local Services,Economic Development and Housing,031576,B& B - Temp Accom,Supplies and Services,364320,Grants to Voluntary Organisations,12-Feb-2018,000007011106227,TRAVELODGE,3615,Accommodation assistance,46.00,7.67,38.33
Regeneration and Local Services,Direct Services,021242,Catering - County Hall,Supplies and Services,324117,Provisions,12-Feb-2018,000007011106235,LIDL UK,5411,Catering costs - provisions,10.52,0.00,10.52
Children and Young Peoples Services,Head of Looked After Provision Permanence and Care Leavers,085352,Tow Law CU,Supplies and Services,304403,Equipment and Materials,12-Feb-2018,000007011106247,AMAZON EU AMAZON.CO.UK,5999,Other consumables,29.99,0.00,29.99
Regeneration and Local Services,Direct Services,010864,Fleet - Hackworth Road Fleet,Transport,215013,Running Costs of Vehicles,12-Feb-2018,000007011106261,DVLA VEHICLE TAX,9399,Vehicle Excise Duty (VED),652.50,0.00,652.50
Regeneration and Local Services,Direct Services,010551,Fleet - Chilton Fleet,Transport,215013,Running Costs of Vehicles,12-Feb-2018,000007011106267,DVLA VEHICLE TAX,9399,Vehicle Excise Duty (VED),652.50,0.00,652.50
Regeneration and Local Services,Direct Services,010551,Fleet - Chilton Fleet,Transport,215013,Running Costs of Vehicles,12-Feb-2018,000007011106269,DVLA VEHICLE TAX,9399,Vehicle Excise Duty (VED),652.50,0.00,652.50
Regeneration and Local Services,Direct Services,010864,Fleet - Hackworth Road Fleet,Transport,215013,Running Costs of Vehicles,12-Feb-2018,000007011106271,DVLA VEHICLE TAX,9399,Vehicle Excise Duty (VED),652.50,0.00,652.50
Regeneration and Local Services,Direct Services,010561,Fleet - Morrison Busty Fleet,Transport,215013,Running Costs of Vehicles,12-Feb-2018,000007011106273,DVLA VEHICLE TAX,9399,Vehicle Excise Duty (VED),652.50,0.00,652.50
Regeneration and Local Services,Direct Services,010551,Fleet - Chilton Fleet,Transport,215013,Running Costs of Vehicles,12-Feb-2018,000007011106277,DVLA VEHICLE TAX,9399,Vehicle Excise Duty (VED),652.50,0.00,652.50
Regeneration and Local Services,Direct Services,010561,Fleet - Morrison Busty Fleet,Transport,215013,Running Costs of Vehicles,12-Feb-2018,000007011106279,DVLA VEHICLE TAX,9399,Vehicle Excise Duty (VED),652.50,0.00,652.50
Regeneration and Local Services,Direct Services,010561,Fleet - Morrison Busty Fleet,Transport,215013,Running Costs of Vehicles,12-Feb-2018,000007011106283,DVLA VEHICLE TAX,9399,Vehicle Excise Duty (VED),242.50,0.00,242.50
Regeneration and Local Services,Direct Services,010900,Fleet - Meadowfield Fleet,Transport,215013,Running Costs of Vehicles,12-Feb-2018,000007011106285,DVLA VEHICLE TAX,9399,Vehicle Excise Duty (VED),242.50,0.00,242.50
Regeneration and Local Services,Direct Services,010561,Fleet - Morrison Busty Fleet,Transport,215013,Running Costs of Vehicles,12-Feb-2018,000007011106287,DVLA VEHICLE TAX,9399,Vehicle Excise Duty (VED),242.50,0.00,242.50
Regeneration and Local Services,Direct Services,010561,Fleet - Morrison Busty Fleet,Transport,215013,Running Costs of Vehicles,12-Feb-2018,000007011106291,DVLA VEHICLE TAX,9399,Vehicle Excise Duty (VED),652.50,0.00,652.50
Regeneration and Local Services,Direct Services,010561,Fleet - Morrison Busty Fleet,Transport,215013,Running Costs of Vehicles,12-Feb-2018,000007011106293,DVLA VEHICLE TAX,9399,Vehicle Excise Duty (VED),242.50,0.00,242.50
Regeneration and Local Services,Direct Services,010864,Fleet - Hackworth Road Fleet,Transport,215013,Running Costs of Vehicles,12-Feb-2018,000007011106295,DVLA VEHICLE TAX,9399,Vehicle Excise Duty (VED),242.50,0.00,242.50
Regeneration and Local Services,Direct Services,010561,Fleet - Morrison Busty Fleet,Transport,215013,Running Costs of Vehicles,12-Feb-2018,000007011106299,DVLA VEHICLE TAX,9399,Vehicle Excise Duty (VED),242.50,0.00,242.50
Regeneration and Local Services,Direct Services,010900,Fleet - Meadowfield Fleet,Transport,215013,Running Costs of Vehicles,12-Feb-2018,000007011106301,DVLA VEHICLE TAX,9399,Vehicle Excise Duty (VED),242.50,0.00,242.50
Regeneration and Local Services,Direct Services,010551,Fleet - Chilton Fleet,Transport,215013,Running Costs of Vehicles,12-Feb-2018,000007011106305,DVLA VEHICLE TAX,9399,Vehicle Excise Duty (VED),652.50,0.00,652.50
Regeneration and Local Services,Direct Services,010900,Fleet - Meadowfield Fleet,Transport,215013,Running Costs of Vehicles,12-Feb-2018,000007011106307,DVLA VEHICLE TAX,9399,Vehicle Excise Duty (VED),242.50,0.00,242.50
Regeneration and Local Services,Direct Services,010900,Fleet - Meadowfield Fleet,Transport,215013,Running Costs of Vehicles,12-Feb-2018,000007011106311,DVLA VEHICLE TAX,9399,Vehicle Excise Duty (VED),242.50,0.00,242.50
Regeneration and Local Services,Direct Services,010864,Fleet - Hackworth Road Fleet,Transport,215013,Running Costs of Vehicles,12-Feb-2018,000007011106313,DVLA VEHICLE TAX,9399,Vehicle Excise Duty (VED),242.50,0.00,242.50
Regeneration and Local Services,Direct Services,010900,Fleet - Meadowfield Fleet,Transport,215013,Running Costs of Vehicles,12-Feb-2018,000007011106317,DVLA VEHICLE TAX,9399,Vehicle Excise Duty (VED),242.50,0.00,242.50
Regeneration and Local Services,Direct Services,010900,Fleet - Meadowfield Fleet,Transport,215013,Running Costs of Vehicles,12-Feb-2018,000007011106319,DVLA VEHICLE TAX,9399,Vehicle Excise Duty (VED),242.50,0.00,242.50
Regeneration and Local Services,Direct Services,010561,Fleet - Morrison Busty Fleet,Transport,215013,Running Costs of Vehicles,12-Feb-2018,000007011106323,DVLA VEHICLE TAX,9399,Vehicle Excise Duty (VED),652.50,0.00,652.50
Regeneration and Local Services,Direct Services,010900,Fleet - Meadowfield Fleet,Transport,215013,Running Costs of Vehicles,12-Feb-2018,000007011106325,DVLA VEHICLE TAX,9399,Vehicle Excise Duty (VED),242.50,0.00,242.50
Regeneration and Local Services,Direct Services,010900,Fleet - Meadowfield Fleet,Transport,215013,Running Costs of Vehicles,12-Feb-2018,000007011106329,DVLA VEHICLE TAX,9399,Vehicle Excise Duty (VED),242.50,0.00,242.50
Regeneration and Local Services,Direct Services,010561,Fleet - Morrison Busty Fleet,Transport,215013,Running Costs of Vehicles,12-Feb-2018,000007011106331,DVLA VEHICLE TAX,9399,Vehicle Excise Duty (VED),242.50,0.00,242.50
Regeneration and Local Services,Direct Services,010864,Fleet - Hackworth Road Fleet,Transport,215013,Running Costs of Vehicles,12-Feb-2018,000007011106335,DVLA VEHICLE TAX,9399,Vehicle Excise Duty (VED),652.50,0.00,652.50
Regeneration and Local Services,Direct Services,010900,Fleet - Meadowfield Fleet,Transport,215013,Running Costs of Vehicles,12-Feb-2018,000007011106337,DVLA VEHICLE TAX,9399,Vehicle Excise Duty (VED),242.50,0.00,242.50
Regeneration and Local Services,Direct Services,010551,Fleet - Chilton Fleet,Transport,215013,Running Costs of Vehicles,12-Feb-2018,000007011106341,DVLA VEHICLE TAX,9399,Vehicle Excise Duty (VED),652.50,0.00,652.50
Regeneration and Local Services,Direct Services,010900,Fleet - Meadowfield Fleet,Transport,215013,Running Costs of Vehicles,12-Feb-2018,000007011106343,DVLA VEHICLE TAX,9399,Vehicle Excise Duty (VED),242.50,0.00,242.50
Regeneration and Local Services,Direct Services,010900,Fleet - Meadowfield Fleet,Transport,215013,Running Costs of Vehicles,12-Feb-2018,000007011106347,DVLA VEHICLE TAX,9399,Vehicle Excise Duty (VED),242.50,0.00,242.50
Regeneration and Local Services,Direct Services,010864,Fleet - Hackworth Road Fleet,Transport,215013,Running Costs of Vehicles,12-Feb-2018,000007011106351,DVLA VEHICLE TAX,9399,Vehicle Excise Duty (VED),242.50,0.00,242.50
Regeneration and Local Services,Direct Services,010551,Fleet - Chilton Fleet,Transport,215013,Running Costs of Vehicles,12-Feb-2018,000007011106353,DVLA VEHICLE TAX,9399,Vehicle Excise Duty (VED),652.50,0.00,652.50
Regeneration and Local Services,Direct Services,010900,Fleet - Meadowfield Fleet,Transport,215013,Running Costs of Vehicles,12-Feb-2018,000007011106355,DVLA VEHICLE TAX,9399,Vehicle Excise Duty (VED),242.50,0.00,242.50
Regeneration and Local Services,Direct Services,010551,Fleet - Chilton Fleet,Transport,215013,Running Costs of Vehicles,12-Feb-2018,000007011106359,DVLA VEHICLE TAX,9399,Vehicle Excise Duty (VED),242.50,0.00,242.50
Regeneration and Local Services,Direct Services,010900,Fleet - Meadowfield Fleet,Transport,215013,Running Costs of Vehicles,12-Feb-2018,000007011106363,DVLA VEHICLE TAX,9399,Vehicle Excise Duty (VED),242.50,0.00,242.50
Regeneration and Local Services,Direct Services,010900,Fleet - Meadowfield Fleet,Transport,215013,Running Costs of Vehicles,12-Feb-2018,000007011106365,DVLA VEHICLE TAX,9399,Vehicle Excise Duty (VED),242.50,0.00,242.50
Regeneration and Local Services,Direct Services,010561,Fleet - Morrison Busty Fleet,Transport,215013,Running Costs of Vehicles,12-Feb-2018,000007011106369,DVLA VEHICLE TAX,9399,Vehicle Excise Duty (VED),242.50,0.00,242.50
Regeneration and Local Services,Direct Services,010864,Fleet - Hackworth Road Fleet,Transport,215013,Running Costs of Vehicles,12-Feb-2018,000007011106371,DVLA VEHICLE TAX,9399,Vehicle Excise Duty (VED),652.50,0.00,652.50
Regeneration and Local Services,Direct Services,010551,Fleet - Chilton Fleet,Transport,215013,Running Costs of Vehicles,12-Feb-2018,000007011106375,DVLA VEHICLE TAX,9399,Vehicle Excise Duty (VED),652.50,0.00,652.50
Regeneration and Local Services,Direct Services,010367,C&G - South Grounds Maintenance,Supplies and Services,304259,Equipment and Materials,12-Feb-2018,000007011106379,S&A BUILDERS MERCHANTS,5211,Equipment-purchase and rental,270.20,45.03,225.17
Regeneration and Local Services,Culture & Sport,054813,Gala Theatre - Technical,Supplies and Services,304403,Equipment and Materials,12-Feb-2018,000007011106395,WWW.BUTTERCUPFARM.,5947,Other consumables,136.14,22.69,113.45
Children and Young Peoples Services,Head of Looked After Provision Permanence and Care Leavers,085341,High Etherley Satelite Home,Supplies and Services,304403,Equipment and Materials,12-Feb-2018,000007011106403,AMAZON EU AMAZON.CO.UK,5999,Other consumables,43.22,0.00,43.22
Children and Young Peoples Services,Head of Early Help Assessment and Safeguarding,071445,Chester le Street One Point Hub,Supplies and Services,304259,Equipment and Materials,12-Feb-2018,000007011106427,PAYPAL INFINITEAIR,5941,Equipment-purchase and rental,83.65,0.00,83.65
Regeneration and Local Services,Culture & Sport,011060,Hardwick Park Catering,Supplies and Services,324117,Provisions,12-Feb-2018,000007011106439,JR HOLLAND FOODSERVICE,5422,Catering costs - provisions,22.83,0.00,22.83
Regeneration and Local Services,Culture & Sport,011060,Hardwick Park Catering,Supplies and Services,324117,Provisions,12-Feb-2018,000007011106443,JR HOLLAND FOODSERVICE,5422,Catering costs - provisions,20.42,0.00,20.42
Resources,Digital and Customer Services,065335,School Services - Implementations,Supplies and Services,304639,Equipment and Materials,12-Feb-2018,000007011106463,Amazon UK Marketplace,5942,Technicians-supplies,5.98,0.00,5.98
Children and Young Peoples Services,Head of Looked After Provision Permanence and Care Leavers,085332,Middlestone Moor CU,Supplies and Services,324117,Provisions,12-Feb-2018,000007011106471,ALDI 59 774,5411,Catering costs - provisions,28.21,0.00,28.21
Regeneration and Local Services,Direct Services,021234,Catering - Locomotion,Supplies and Services,324117,Provisions,12-Feb-2018,000007011106473,JR HOLLAND FOODSERVICE,5422,Catering costs - provisions,46.65,0.00,46.65
Regeneration and Local Services,Direct Services,010525,Catering - Green Lane,Supplies and Services,324117,Provisions,12-Feb-2018,000007011106497,JR HOLLAND FOODSERVICE,5422,Catering costs - provisions,76.63,0.00,76.63
Regeneration and Local Services,Direct Services,010367,C&G - South Grounds Maintenance,Supplies and Services,304259,Equipment and Materials,12-Feb-2018,000007011106575,SCREWFIX,5211,Equipment-purchase and rental,39.27,0.00,39.27
Children and Young Peoples Services,Head of Looked After Provision Permanence and Care Leavers,085333,Coxhoe Satelite Home,Supplies and Services,312011,Newspapers Books and Periodicals,12-Feb-2018,000007011106597,HOME BARGAINS SPENNYMO,5251,Books-school library,31.62,5.27,26.35
Children and Young Peoples Services,Head of Looked After Provision Permanence and Care Leavers,085333,Coxhoe Satelite Home,Supplies and Services,312011,Newspapers Books and Periodicals,12-Feb-2018,000007011106597 - 1,HOME BARGAINS SPENNYMO,5251,Books-school library,7.08,,7.08
Children and Young Peoples Services,Head of Looked After Provision Permanence and Care Leavers,085333,Coxhoe Satelite Home,Supplies and Services,324117,Provisions,12-Feb-2018,000007011106601,ASDA SUPERSTORE 4987,5411,Catering costs - provisions,40.86,0.00,40.86
Adult and Health Services,Head of Adults,055643,Hawthorn House LD Respite Unit,Supplies and Services,324117,Provisions,12-Feb-2018,000007011106615,JR HOLLAND FOODSERVICE,5422,Catering costs - provisions,8.83,0.00,8.83
Adult and Health Services,Head of Adults,055643,Hawthorn House LD Respite Unit,Supplies and Services,324117,Provisions,12-Feb-2018,000007011106617,JR HOLLAND FOODSERVICE,5422,Catering costs - provisions,1.23,0.00,1.23
Children and Young Peoples Services,Head of Looked After Provision Permanence and Care Leavers,085957,Secure Management,Supplies and Services,312011,Newspapers Books and Periodicals,12-Feb-2018,000007011106671,Amazon UK Marketplace,5942,Books-school library,14.96,0.00,14.96
Children and Young Peoples Services,Head of Looked After Provision Permanence and Care Leavers,085957,Secure Management,Supplies and Services,312011,Newspapers Books and Periodicals,12-Feb-2018,000007011106677,AMAZON SVCS EU-UK AMAZ,5942,Books-school library,12.05,0.00,12.05
Children and Young Peoples Services,Head of Looked After Provision Permanence and Care Leavers,085957,Secure Management,Supplies and Services,304403,Equipment and Materials,12-Feb-2018,000007011106679,AMAZON EU AMAZON.CO.UK,5999,Other consumables,2.95,0.00,2.95
Regeneration and Local Services,Direct Services,021324,Catering - Meadowfield,Supplies and Services,324117,Provisions,12-Feb-2018,000007011106687,JR HOLLAND FOODSERVICE,5422,Catering costs - provisions,53.15,0.00,53.15
Regeneration and Local Services,Direct Services,021324,Catering - Meadowfield,Supplies and Services,324117,Provisions,12-Feb-2018,000007011106691,JR HOLLAND FOODSERVICE,5422,Catering costs - provisions,9.90,0.00,9.90
Adult and Health Services,Head of Adults,055301,Stanley Pathways,Supplies and Services,324117,Provisions,12-Feb-2018,000007011106703,ASDA SUPERSTORE,5411,Catering costs - provisions,2.18,0.00,2.18
Children and Young Peoples Services,Head of Looked After Provision Permanence and Care Leavers,085363,LAC & Permanence Team 3,Supplies and Services,304259,Equipment and Materials,12-Feb-2018,000007011106719,DARLINGTON BC INTERNET,9399,Equipment-purchase and rental,12.00,0.00,12.00
Children and Young Peoples Services,Head of Looked After Provision Permanence and Care Leavers,085331,New Lea Childrens Home,Supplies and Services,304403,Equipment and Materials,12-Feb-2018,000007011106765,WWW.JTF.COM,5999,Other consumables,144.98,0.00,144.98
Children and Young Peoples Services,Head of Early Help Assessment and Safeguarding,074000,TTF-Attachment and Results,Supplies and Services,312011,Newspapers Books and Periodicals,12-Feb-2018,000007011106769,AMAZON SVCS EU-UK AMAZ,5942,Books-school library,3.49,0.00,3.49
Children and Young Peoples Services,Head of Early Help Assessment and Safeguarding,074000,TTF-Attachment and Results,Supplies and Services,312011,Newspapers Books and Periodicals,12-Feb-2018,000007011106771,AMAZON SVCS EU-UK AMAZ,5942,Books-school library,2.35,0.00,2.35
Children and Young Peoples Services,Head of Early Help Assessment and Safeguarding,074000,TTF-Attachment and Results,Supplies and Services,312011,Newspapers Books and Periodicals,12-Feb-2018,000007011106773,AMAZON SVCS EU-UK AMAZ,5942,Books-school library,15.99,0.00,15.99
Adult and Health Services,Head of Adults,056601,Substance Misuse,Supplies and Services,338048,Services,12-Feb-2018,000007011106777,HMCOURTS-SERVICE.G,9222,Court Costs,75.00,0.00,75.00
Regeneration and Local Services,Economic Development and Housing,030737,Durham Works Flexible Fund,Supplies and Services,304259,Equipment and Materials,12-Feb-2018,000007011106783,GRO HM PASSPORT OFFICE,9399,Equipment-purchase and rental,9.25,0.00,9.25
Children and Young Peoples Services,Head of Early Help Assessment and Safeguarding,085801,CDYOS - Support,Supplies and Services,348037,Subsistence,12-Feb-2018,000007011106801,GREGGS,5812,Subsistence,27.60,0.00,27.60
Children and Young Peoples Services,Head of Early Help Assessment and Safeguarding,085801,CDYOS - Support,Supplies and Services,324117,Provisions,12-Feb-2018,000007011106803,ASDA HOME SHOPPING,5411,Catering costs - provisions,88.27,0.00,88.27
Dedicated Schools Grant,Dedicated Schools Grant,079063,Partial Hearing-Belmont Comp,Supplies and Services,312011,Newspapers Books and Periodicals,12-Feb-2018,000007014886281,AMAZON SVCS EU-UK AMAZ,5942,Books-school library,28.80,0.00,28.80
Dedicated Schools Grant,Dedicated Schools Grant,079063,Partial Hearing-Belmont Comp,Supplies and Services,304649,Equipment and Materials,12-Feb-2018,000007014886291,AMAZON SVCS EU-UK AMAZ,5942,Toys,6.90,0.00,6.90
Regeneration and Local Services,Culture & Sport,054812,Gala Theatre - Catering etc,Supplies and Services,324117,Provisions,12-Feb-2018,000007014886323,BATLEYS PERTH,5300,Catering costs - provisions,15.12,2.52,12.60
Regeneration and Local Services,Culture & Sport,054812,Gala Theatre - Catering etc,Supplies and Services,324117,Provisions,12-Feb-2018,000007014886323 - 1,BATLEYS PERTH,5300,Catering costs - provisions,110.01,,110.01
Regeneration and Local Services,Economic Development and Housing,031576,B& B - Temp Accom,Supplies and Services,364320,Grants to Voluntary Organisations,12-Feb-2018,000007014886325,PREMIER INN,3811,Accommodation assistance,67.00,11.17,55.83
Regeneration and Local Services,Economic Development and Housing,031576,B& B - Temp Accom,Supplies and Services,364320,Grants to Voluntary Organisations,12-Feb-2018,000007014886327,PREMIER INN,3811,Accommodation assistance,70.00,11.67,58.33
Resources,Resources Management,069000,Resources Management,Supplies and Services,332047,Printing Stationery and Gen Off Exps,12-Feb-2018,000007014886613,AMAZON EU AMAZON.CO.UK,5999,Stationery,21.73,3.62,18.11
Regeneration and Local Services,Direct Services,021235,Catering - Wharton Park,Supplies and Services,324117,Provisions,12-Feb-2018,000007014886623,BATLEYS PERTH,5300,Catering costs - provisions,95.70,15.95,79.75
Regeneration and Local Services,Direct Services,021235,Catering - Wharton Park,Supplies and Services,324117,Provisions,12-Feb-2018,000007014886623 - 1,BATLEYS PERTH,5300,Catering costs - provisions,20.03,,20.03
Regeneration and Local Services,Economic Development and Housing,030737,Durham Works Flexible Fund,Supplies and Services,304259,Equipment and Materials,12-Feb-2018,000007083505979,GRO HM PASSPORT OFFICE,9399,Equipment-purchase and rental,-9.25,0.00,-9.25
Children and Young Peoples Services,Head of Education,071801,Selby Cottage Childcare Centre,Supplies and Services,324117,Provisions,13-Feb-2018,000007014886245,TESCO STORES 2278,5411,Catering costs - provisions,3.13,0.00,3.13
Children and Young Peoples Services,Head of Education,078411,16-19 Education & Training,Supplies and Services,340001,Postages,13-Feb-2018,000007014886255,ROYAL MAIL ONLINE SHOP,9402,Postages,391.00,0.00,391.00
Regeneration and Local Services,Economic Development and Housing,030705,Visit County Durham,Supplies and Services,342033,Computers and Communications,13-Feb-2018,000007014886267,STK SHUTTERSTOCK.COM,7333,Computer hardware,28.80,0.00,28.80
Dedicated Schools Grant,Dedicated Schools Grant,079063,Partial Hearing-Belmont Comp,Supplies and Services,304649,Equipment and Materials,13-Feb-2018,000007014886277,AMAZON SVCS EU-UK AMAZ,5942,Toys,5.14,0.00,5.14
Dedicated Schools Grant,Dedicated Schools Grant,079063,Partial Hearing-Belmont Comp,Supplies and Services,332047,Printing Stationery and Gen Off Exps,13-Feb-2018,000007014886285,AMAZON SVCS EU-UK AMAZ,5942,Stationery,19.49,0.00,19.49
Dedicated Schools Grant,Dedicated Schools Grant,079063,Partial Hearing-Belmont Comp,Supplies and Services,304259,Equipment and Materials,13-Feb-2018,000007014886287,AMAZON SVCS EU-UK AMAZ,5942,Equipment-purchase and rental,18.29,0.00,18.29
Dedicated Schools Grant,Dedicated Schools Grant,079063,Partial Hearing-Belmont Comp,Supplies and Services,312009,Newspapers Books and Periodicals,13-Feb-2018,000007014886289,WWW.TPOICAL-RESOURCES.,5942,Newspapers books and periodicals,204.00,0.00,204.00
Children and Young Peoples Services,Head of Early Help Assessment and Safeguarding,071670,Willington Childrens Centre,Supplies and Services,324117,Provisions,13-Feb-2018,000007014886297,BESTWAY WHOLESALE,5451,Catering costs - provisions,45.50,0.00,45.50
Children and Young Peoples Services,Head of Early Help Assessment and Safeguarding,071670,Willington Childrens Centre,Supplies and Services,324117,Provisions,13-Feb-2018,000007014886301,JR HOLLAND FOODSERVICE,5422,Catering costs - provisions,50.16,0.00,50.16
Regeneration and Local Services,Economic Development and Housing,030737,Durham Works Flexible Fund,Transport,235057,Public Transport,13-Feb-2018,000007014886305,ARRIVA NORTH EAST,4131,Staff travelling,10.00,0.00,10.00
Regeneration and Local Services,Direct Services,021242,Catering - County Hall,Supplies and Services,324117,Provisions,13-Feb-2018,000007014886307,HOPWELLS LTD,5811,Catering costs - provisions,289.93,0.00,289.93
Regeneration and Local Services,Direct Services,021242,Catering - County Hall,Supplies and Services,324117,Provisions,13-Feb-2018,000007014886309,HOPWELLS LTD,5811,Catering costs - provisions,194.51,0.00,194.51
Regeneration and Local Services,Direct Services,021242,Catering - County Hall,Supplies and Services,324117,Provisions,13-Feb-2018,000007014886311,HOPWELLS LTD,5811,Catering costs - provisions,135.57,0.00,135.57
Regeneration and Local Services,Direct Services,021242,Catering - County Hall,Supplies and Services,324117,Provisions,13-Feb-2018,000007014886313,JR HOLLAND FOODSERVICE,5422,Catering costs - provisions,40.47,0.00,40.47
Regeneration and Local Services,Direct Services,021242,Catering - County Hall,Supplies and Services,324117,Provisions,13-Feb-2018,000007014886315,JR HOLLAND FOODSERVICE,5422,Catering costs - provisions,6.60,0.00,6.60
Regeneration and Local Services,Culture & Sport,054812,Gala Theatre - Catering etc,Supplies and Services,324117,Provisions,13-Feb-2018,000007014886321,JR HOLLAND FOODSERVICE,5422,Catering costs - provisions,31.48,0.00,31.48
Regeneration and Local Services,Economic Development and Housing,031576,B& B - Temp Accom,Supplies and Services,364320,Grants to Voluntary Organisations,13-Feb-2018,000007014886329,AMRP LEISURE LTD,5813,Accommodation assistance,51.75,0.00,51.75
Regeneration and Local Services,Economic Development and Housing,030749,Employability - Youth Contract,Transport,235057,Public Transport,13-Feb-2018,000007014886337,ARRIVA NORTH EAST,4131,Staff travelling,5.00,0.00,5.00
Regeneration and Local Services,Economic Development and Housing,030737,Durham Works Flexible Fund,Supplies and Services,384999,Miscellaneous Expenses,13-Feb-2018,000007014886351,GROOMERS LTD,5995,Other expenses,33.25,0.00,33.25
Regeneration and Local Services,Spatial Policy Planning Assets & Environment,031221,North Pennines - Bowlees,Supplies and Services,312011,Newspapers Books and Periodicals,13-Feb-2018,000007014886353,Amazon UK Marketplace,5942,Books-school library,9.89,0.00,9.89
Regeneration and Local Services,Spatial Policy Planning Assets & Environment,031221,North Pennines - Bowlees,Supplies and Services,324117,Provisions,13-Feb-2018,000007014886355,TESCO STORES 4358,5411,Catering costs - provisions,13.25,0.00,13.25
Children and Young Peoples Services,Head of Education,071903,EYDCP-Sustainability EDS,Supplies and Services,304403,Equipment and Materials,13-Feb-2018,000007014886361,AMAZON EU AMAZON.CO.UK,5999,Other consumables,15.84,0.00,15.84
Children and Young Peoples Services,Head of Early Help Assessment and Safeguarding,071445,Chester le Street One Point Hub,Supplies and Services,324117,Provisions,13-Feb-2018,000007014886363,BESTWAY WHOLESALE,5451,Catering costs - provisions,86.51,0.00,86.51
Children and Young Peoples Services,Head of Early Help Assessment and Safeguarding,071445,Chester le Street One Point Hub,Supplies and Services,324117,Provisions,13-Feb-2018,000007014886365,BESTWAY WHOLESALE,5451,Catering costs - provisions,18.93,0.00,18.93
Children and Young Peoples Services,Head of Early Help Assessment and Safeguarding,071445,Chester le Street One Point Hub,Supplies and Services,304259,Equipment and Materials,13-Feb-2018,000007014886367,PAYPAL INFINITEAIR,5941,Equipment-purchase and rental,11.95,0.00,11.95
Children and Young Peoples Services,Head of Early Help Assessment and Safeguarding,071746,Newton Aycliffe Childrens Centre,Supplies and Services,324117,Provisions,13-Feb-2018,000007014886369,TESCO STORES 2916,5411,Catering costs - provisions,17.20,0.00,17.20
Regeneration and Local Services,Spatial Policy Planning Assets & Environment,031222,North Pennines Allen Valleys Landscape Partnership,Supplies and Services,324117,Provisions,13-Feb-2018,000007014886375,ALLENDALE CO-OPERATIVE,5499,Catering costs - provisions,3.38,0.00,3.38
Regeneration and Local Services,Culture & Sport,011060,Hardwick Park Catering,Supplies and Services,324117,Provisions,13-Feb-2018,000007014886379,HOPWELLS LTD,5811,Catering costs - provisions,359.52,59.92,299.60
Regeneration and Local Services,Culture & Sport,011060,Hardwick Park Catering,Supplies and Services,324117,Provisions,13-Feb-2018,000007014886379 - 1,HOPWELLS LTD,5811,Catering costs - provisions,172.55,,172.55
Regeneration and Local Services,Culture & Sport,011060,Hardwick Park Catering,Supplies and Services,324117,Provisions,13-Feb-2018,000007014886381,HOPWELLS LTD,5811,Catering costs - provisions,22.92,3.82,19.10
Regeneration and Local Services,Culture & Sport,011060,Hardwick Park Catering,Supplies and Services,324117,Provisions,13-Feb-2018,000007014886381 - 1,HOPWELLS LTD,5811,Catering costs - provisions,78.65,,78.65
Regeneration and Local Services,Culture & Sport,011060,Hardwick Park Catering,Supplies and Services,324117,Provisions,13-Feb-2018,000007014886385,JR HOLLAND FOODSERVICE,5422,Catering costs - provisions,43.30,0.00,43.30
Regeneration and Local Services,Culture & Sport,011060,Hardwick Park Catering,Supplies and Services,324117,Provisions,13-Feb-2018,000007014886387,JR HOLLAND FOODSERVICE,5422,Catering costs - provisions,4.32,0.00,4.32
Regeneration and Local Services,Economic Development and Housing,030755,Durham Employment & Skills - Other Training,Employees,040149,Recruitment Instruction and Training,13-Feb-2018,000007014886401,NCS VUE CITB HS&E REV,8299,Training-all costs,487.50,0.00,487.50
Regeneration and Local Services,Direct Services,021234,Catering - Locomotion,Supplies and Services,324117,Provisions,13-Feb-2018,000007014886405,HOPWELLS LTD,5811,Catering costs - provisions,57.42,9.57,47.85
Regeneration and Local Services,Direct Services,021234,Catering - Locomotion,Supplies and Services,324117,Provisions,13-Feb-2018,000007014886405 - 1,HOPWELLS LTD,5811,Catering costs - provisions,184.67,,184.67
Regeneration and Local Services,Direct Services,021234,Catering - Locomotion,Supplies and Services,324117,Provisions,13-Feb-2018,000007014886421,JR HOLLAND FOODSERVICE,5422,Catering costs - provisions,113.42,0.00,113.42
Regeneration and Local Services,Direct Services,010525,Catering - Green Lane,Supplies and Services,324117,Provisions,13-Feb-2018,000007014886425,HOPWELLS LTD,5811,Catering costs - provisions,122.01,0.00,122.01
Regeneration and Local Services,Direct Services,010525,Catering - Green Lane,Supplies and Services,324117,Provisions,13-Feb-2018,000007014886431,HOPWELLS LTD,5811,Catering costs - provisions,100.75,0.00,100.75
Regeneration and Local Services,Direct Services,010525,Catering - Green Lane,Supplies and Services,324117,Provisions,13-Feb-2018,000007014886433,HOPWELLS LTD,5811,Catering costs - provisions,-2.85,0.00,-2.85
Regeneration and Local Services,Direct Services,019100,Fleet - Strategic Fleet,Supplies and Services,304259,Equipment and Materials,13-Feb-2018,000007014886449,EA WASTE CARRIERS,9399,Equipment-purchase and rental,145.00,0.00,145.00
Regeneration and Local Services,Economic Development and Housing,031581,Prevention Fund,Supplies and Services,384999,Miscellaneous Expenses,13-Feb-2018,000007014886469,ADJUDICATOR OFFICE,9399,Other expenses,680.00,0.00,680.00
Children and Young Peoples Services,Head of Looked After Provision Permanence and Care Leavers,085333,Coxhoe Satelite Home,Supplies and Services,304259,Equipment and Materials,13-Feb-2018,000007014886489,M and M Direct Ltd,5941,Equipment-purchase and rental,65.97,0.00,65.97
Adult and Health Services,Head of Adults,055643,Hawthorn House LD Respite Unit,Supplies and Services,324117,Provisions,13-Feb-2018,000007014886495,JR HOLLAND FOODSERVICE,5422,Catering costs - provisions,26.69,0.00,26.69
Adult and Health Services,Head of Adults,055643,Hawthorn House LD Respite Unit,Supplies and Services,324117,Provisions,13-Feb-2018,000007014886499,JR HOLLAND FOODSERVICE,5422,Catering costs - provisions,21.60,0.00,21.60
Adult and Health Services,Head of Adults,055643,Hawthorn House LD Respite Unit,Supplies and Services,324117,Provisions,13-Feb-2018,000007014886501,JR HOLLAND FOODSERVICE,5422,Catering costs - provisions,4.71,0.00,4.71
Regeneration and Local Services,Spatial Policy Planning Assets & Environment,031200,North Pennines Core,Supplies and Services,304259,Equipment and Materials,13-Feb-2018,000007014886505,SCREWFIX DIRECT,5211,Equipment-purchase and rental,14.99,2.50,12.49
Regeneration and Local Services,Direct Services,010301,C&G - North Grounds Maintenance,Supplies and Services,304999,Equipment and Materials,13-Feb-2018,000007014886517,NEW ROW FARM NURSERIES,5193,Misc equipment tools and materials,464.40,77.40,387.00
Regeneration and Local Services,Direct Services,010301,C&G - North Grounds Maintenance,Supplies and Services,304999,Equipment and Materials,13-Feb-2018,000007014886521,NEW ROW FARM NURSERIES,5193,Misc equipment tools and materials,211.20,35.20,176.00
Children and Young Peoples Services,Head of Looked After Provision Permanence and Care Leavers,085957,Secure Management,Supplies and Services,312011,Newspapers Books and Periodicals,13-Feb-2018,000007014886527,Amazon UK Marketplace,5942,Books-school library,37.14,0.00,37.14
Children and Young Peoples Services,Head of Looked After Provision Permanence and Care Leavers,085957,Secure Management,Supplies and Services,304259,Equipment and Materials,13-Feb-2018,000007014886529,M and M Direct Ltd,5941,Equipment-purchase and rental,59.97,0.00,59.97
Children and Young Peoples Services,Head of Looked After Provision Permanence and Care Leavers,085957,Secure Management,Supplies and Services,328041,Clothing Uniforms and Laundry,13-Feb-2018,000007014886531,WWW.ARGOS.CO.UK,5310,Clothing uniforms and laundry,41.91,6.99,34.92
Children and Young Peoples Services,Head of Looked After Provision Permanence and Care Leavers,085957,Secure Management,Supplies and Services,328041,Clothing Uniforms and Laundry,13-Feb-2018,000007014886533,FLANNELSFASHION.,5691,Clothing uniforms and laundry,18.99,0.00,18.99
Children and Young Peoples Services,Head of Looked After Provision Permanence and Care Leavers,085957,Secure Management,Supplies and Services,304259,Equipment and Materials,13-Feb-2018,000007014886535,FOOTASYLUM PLC,5941,Equipment-purchase and rental,38.94,0.00,38.94
Children and Young Peoples Services,Head of Looked After Provision Permanence and Care Leavers,085957,Secure Management,Supplies and Services,342033,Computers and Communications,13-Feb-2018,000007014886537,VERY,5964,Computer hardware,43.99,0.00,43.99
Children and Young Peoples Services,Head of Looked After Provision Permanence and Care Leavers,085957,Secure Management,Supplies and Services,328041,Clothing Uniforms and Laundry,13-Feb-2018,000007014886539,SIK SILK,5691,Clothing uniforms and laundry,167.00,0.00,167.00
Children and Young Peoples Services,Head of Looked After Provision Permanence and Care Leavers,085957,Secure Management,Supplies and Services,328041,Clothing Uniforms and Laundry,13-Feb-2018,000007014886541,WWW.FOOTLOCKER.EU,5661,Clothing uniforms and laundry,134.99,22.50,112.49
Transformation and Partnerships,Strategy,060050,Service Management,Supplies and Services,364320,Grants to Voluntary Organisations,13-Feb-2018,000007014886545,IMPERIAL LONDON HOTELS,7011,Accommodation assistance,103.00,0.00,103.00
Regeneration and Local Services,Transport and Contracted Services,031701,Care Connect All Localities,Supplies and Services,344033,Telephones,13-Feb-2018,000007014886547,BT BILL PAYMENT 2,4812,Telephones general-all costs,129.35,21.56,107.79
Regeneration and Local Services,Transport and Contracted Services,031701,Care Connect All Localities,Supplies and Services,344033,Telephones,13-Feb-2018,000007014886549,BT BILL PAYMENT 2,4812,Telephones general-all costs,129.35,21.56,107.79
Regeneration and Local Services,Direct Services,021324,Catering - Meadowfield,Supplies and Services,324117,Provisions,13-Feb-2018,000007014886553,HOPWELLS LTD,5811,Catering costs - provisions,77.30,0.00,77.30
Regeneration and Local Services,Direct Services,021324,Catering - Meadowfield,Supplies and Services,324117,Provisions,13-Feb-2018,000007014886555,HOPWELLS LTD,5811,Catering costs - provisions,65.41,0.00,65.41
Regeneration and Local Services,Economic Development and Housing,031576,B& B - Temp Accom,Supplies and Services,364320,Grants to Voluntary Organisations,13-Feb-2018,000007014886561,TRAVELODGE,3615,Accommodation assistance,45.00,7.50,37.50
Regeneration and Local Services,Economic Development and Housing,031576,B& B - Temp Accom,Supplies and Services,364320,Grants to Voluntary Organisations,13-Feb-2018,000007014886565,TRAVELODGE,3615,Accommodation assistance,45.00,7.50,37.50
Adult and Health Services,Head of Adults,055807,Newton Aycliffe Pathways,Supplies and Services,304259,Equipment and Materials,13-Feb-2018,000007014886607,WILKO RETAIL LIMIT,5722,Equipment-purchase and rental,8.50,0.00,8.50
Resources,Digital and Customer Services,065482,Data Centres,Supplies and Services,304403,Equipment and Materials,13-Feb-2018,000007014886617,CLC,5732,Other consumables,295.20,0.00,295.20
Regeneration and Local Services,Economic Development and Housing,030737,Durham Works Flexible Fund,Transport,235057,Public Transport,13-Feb-2018,000007014886627,WWW.SIMPLYGO.COM,4131,Staff travelling,27.00,0.00,27.00
Regeneration and Local Services,Economic Development and Housing,030737,Durham Works Flexible Fund,Transport,235057,Public Transport,13-Feb-2018,000007014886641,GO NORTH EAST LIMITED,4131,Staff travelling,70.00,0.00,70.00
Regeneration and Local Services,Economic Development and Housing,030737,Durham Works Flexible Fund,Transport,235057,Public Transport,13-Feb-2018,000007019422105,ARRIVA NORTH EAST,4131,Staff travelling,21.00,0.00,21.00
Regeneration and Local Services,Culture & Sport,011060,Hardwick Park Catering,Supplies and Services,324117,Provisions,13-Feb-2018,000007019422183,BATLEYS PERTH,5300,Catering costs - provisions,355.62,59.27,296.35
Regeneration and Local Services,Culture & Sport,011060,Hardwick Park Catering,Supplies and Services,324117,Provisions,13-Feb-2018,000007019422183 - 1,BATLEYS PERTH,5300,Catering costs - provisions,238.09,,238.09
Regeneration and Local Services,Direct Services,021234,Catering - Locomotion,Supplies and Services,324117,Provisions,13-Feb-2018,000007019422215,BATLEYS PERTH,5300,Catering costs - provisions,118.68,19.78,98.90
Regeneration and Local Services,Direct Services,021234,Catering - Locomotion,Supplies and Services,324117,Provisions,13-Feb-2018,000007019422215 - 1,BATLEYS PERTH,5300,Catering costs - provisions,20.17,,20.17
Regeneration and Local Services,Culture & Sport,054235,Bishop Auckland Town Hall Cafe,Supplies and Services,324117,Provisions,13-Feb-2018,000007019422353,BATLEYS PERTH,5300,Catering costs - provisions,61.68,10.28,51.40
Regeneration and Local Services,Culture & Sport,054235,Bishop Auckland Town Hall Cafe,Supplies and Services,324117,Provisions,13-Feb-2018,000007019422353 - 1,BATLEYS PERTH,5300,Catering costs - provisions,82.24,,82.24
Regeneration and Local Services,Direct Services,021324,Catering - Meadowfield,Supplies and Services,324117,Provisions,13-Feb-2018,000007019422373,BATLEYS PERTH,5300,Catering costs - provisions,27.66,4.61,23.05
Regeneration and Local Services,Direct Services,021324,Catering - Meadowfield,Supplies and Services,324117,Provisions,13-Feb-2018,000007019422373 - 1,BATLEYS PERTH,5300,Catering costs - provisions,148.41,,148.41
Regeneration and Local Services,Economic Development and Housing,031576,B& B - Temp Accom,Supplies and Services,364320,Grants to Voluntary Organisations,13-Feb-2018,000007019422395,PREMIER INN,3811,Accommodation assistance,75.00,12.50,62.50
Regeneration and Local Services,Economic Development and Housing,031576,B& B - Temp Accom,Supplies and Services,364320,Grants to Voluntary Organisations,13-Feb-2018,000007019422397,PREMIER INN,3811,Accommodation assistance,76.00,12.67,63.33
Children and Young Peoples Services,Head of Education,071801,Selby Cottage Childcare Centre,Supplies and Services,324117,Provisions,14-Feb-2018,000007019421917,TESCO STORES 2278,5411,Catering costs - provisions,9.00,0.00,9.00
Regeneration and Local Services,Economic Development and Housing,031576,B& B - Temp Accom,Supplies and Services,364320,Grants to Voluntary Organisations,14-Feb-2018,000007019421923,TRAVELODGE,3615,Accommodation assistance,57.00,9.50,47.50
Regeneration and Local Services,Economic Development and Housing,031576,B& B - Temp Accom,Supplies and Services,364320,Grants to Voluntary Organisations,14-Feb-2018,000007019421925,AMRP LEISURE LTD,5813,Accommodation assistance,51.75,0.00,51.75
Children and Young Peoples Services,Head of Education,075021,Youth Employment Initiative,Supplies and Services,312011,Newspapers Books and Periodicals,14-Feb-2018,000007019421931,Amazon UK Marketplace,5942,Books-school library,62.52,0.00,62.52
Children and Young Peoples Services,Head of Looked After Provision Permanence and Care Leavers,085342,9 Cedar Drive Aycliffe,Supplies and Services,324117,Provisions,14-Feb-2018,000007019421963,TESCO STORES 2916,5411,Catering costs - provisions,107.91,0.00,107.91
Dedicated Schools Grant,Dedicated Schools Grant,079052,Part Sighted-Belmont Comp,Supplies and Services,304649,Equipment and Materials,14-Feb-2018,000007019421967,Amazon UK Marketplace,5942,Toys,14.99,0.00,14.99
Dedicated Schools Grant,Dedicated Schools Grant,079052,Part Sighted-Belmont Comp,Supplies and Services,332047,Printing Stationery and Gen Off Exps,14-Feb-2018,000007019421971,Amazon UK Marketplace,5942,Stationery,91.75,0.00,91.75
Dedicated Schools Grant,Dedicated Schools Grant,079052,Part Sighted-Belmont Comp,Supplies and Services,304649,Equipment and Materials,14-Feb-2018,000007019421975,Amazon UK Marketplace,5942,Toys,13.04,0.00,13.04
Dedicated Schools Grant,Dedicated Schools Grant,079052,Part Sighted-Belmont Comp,Supplies and Services,332047,Printing Stationery and Gen Off Exps,14-Feb-2018,000007019421977,Amazon UK Marketplace,5942,Stationery,28.17,0.00,28.17
Children and Young Peoples Services,Head of Early Help Assessment and Safeguarding,071440,Barnard Castle One Point Hub,Supplies and Services,332047,Printing Stationery and Gen Off Exps,14-Feb-2018,000007019422003,Amazon EU,5969,Stationery,23.46,0.00,23.46
Regeneration and Local Services,Direct Services,021242,Catering - County Hall,Supplies and Services,324117,Provisions,14-Feb-2018,000007019422009,HOPWELLS LTD,5811,Catering costs - provisions,250.92,0.00,250.92
Regeneration and Local Services,Direct Services,021242,Catering - County Hall,Supplies and Services,324117,Provisions,14-Feb-2018,000007019422015,FREEMAN CATERING BUTCH,5422,Catering costs - provisions,210.81,0.00,210.81
Regeneration and Local Services,Direct Services,021242,Catering - County Hall,Supplies and Services,324117,Provisions,14-Feb-2018,000007019422019,JR HOLLAND FOODSERVICE,5422,Catering costs - provisions,115.72,0.00,115.72
Regeneration and Local Services,Direct Services,021242,Catering - County Hall,Supplies and Services,324117,Provisions,14-Feb-2018,000007019422027,JR HOLLAND FOODSERVICE,5422,Catering costs - provisions,30.14,0.00,30.14
Regeneration and Local Services,Culture & Sport,054812,Gala Theatre - Catering etc,Supplies and Services,324117,Provisions,14-Feb-2018,000007019422047,HOPWELLS LTD,5811,Catering costs - provisions,22.08,0.00,22.08
Regeneration and Local Services,Culture & Sport,054812,Gala Theatre - Catering etc,Supplies and Services,324117,Provisions,14-Feb-2018,000007019422051,FREEMAN CATERING BUTCH,5422,Catering costs - provisions,66.19,0.00,66.19
Children and Young Peoples Services,Head of Education,079599,Psychological-HQ,Supplies and Services,312011,Newspapers Books and Periodicals,14-Feb-2018,000007019422061,Amazon EU,5969,Books-school library,22.70,0.00,22.70
Regeneration and Local Services,Direct Services,010900,Fleet - Meadowfield Fleet,Transport,215013,Running Costs of Vehicles,14-Feb-2018,000007019422087,DVLA VEHICLE TAX,9399,Vehicle Excise Duty (VED),242.50,0.00,242.50
Regeneration and Local Services,Direct Services,010900,Fleet - Meadowfield Fleet,Transport,215013,Running Costs of Vehicles,14-Feb-2018,000007019422089,DVLA VEHICLE TAX,9399,Vehicle Excise Duty (VED),222.50,0.00,222.50
Regeneration and Local Services,Economic Development and Housing,030737,Durham Works Flexible Fund,Transport,235057,Public Transport,14-Feb-2018,000007019422111,ARRIVA NORTH EAST,4131,Staff travelling,28.00,0.00,28.00
Regeneration and Local Services,Spatial Policy Planning Assets & Environment,031221,North Pennines - Bowlees,Supplies and Services,312011,Newspapers Books and Periodicals,14-Feb-2018,000007019422115,Amazon UK Marketplace,5942,Books-school library,5.24,0.00,5.24
Regeneration and Local Services,Spatial Policy Planning Assets & Environment,031221,North Pennines - Bowlees,Supplies and Services,312011,Newspapers Books and Periodicals,14-Feb-2018,000007019422117,Amazon UK Marketplace,5942,Books-school library,3.55,0.00,3.55
Children and Young Peoples Services,Head of Education,071903,EYDCP-Sustainability EDS,Supplies and Services,312011,Newspapers Books and Periodicals,14-Feb-2018,000007019422125,Amazon UK Marketplace,5942,Books-school library,10.99,0.00,10.99
Children and Young Peoples Services,Head of Education,071903,EYDCP-Sustainability EDS,Supplies and Services,312011,Newspapers Books and Periodicals,14-Feb-2018,000007019422129,Amazon UK Marketplace,5942,Books-school library,27.00,0.00,27.00
Children and Young Peoples Services,Head of Education,071903,EYDCP-Sustainability EDS,Supplies and Services,312011,Newspapers Books and Periodicals,14-Feb-2018,000007019422131,Amazon UK Marketplace,5942,Books-school library,62.52,0.00,62.52
Regeneration and Local Services,Economic Development and Housing,030737,Durham Works Flexible Fund,Supplies and Services,348037,Subsistence,14-Feb-2018,000007019422145,GO NORTH EAST LIMITED,4131,Subsistence,5.10,0.00,5.10
Regeneration and Local Services,Direct Services,010367,C&G - South Grounds Maintenance,Supplies and Services,324117,Provisions,14-Feb-2018,000007019422149,J M RAINE,5399,Catering costs - provisions,35.00,0.00,35.00
Regeneration and Local Services,Direct Services,010301,C&G - North Grounds Maintenance,Supplies and Services,328041,Clothing Uniforms and Laundry,14-Feb-2018,000007019422155,THOMAS OWEN & SONS /N/,5611,Clothing uniforms and laundry,274.62,45.77,228.85
Regeneration and Local Services,Culture & Sport,011060,Hardwick Park Catering,Supplies and Services,324117,Provisions,14-Feb-2018,000007019422159,FREEMAN CATERING BUTCH,5422,Catering costs - provisions,43.75,0.00,43.75
Regeneration and Local Services,Culture & Sport,011060,Hardwick Park Catering,Supplies and Services,324117,Provisions,14-Feb-2018,000007019422163,FREEMAN CATERING BUTCH,5422,Catering costs - provisions,32.65,0.00,32.65
Regeneration and Local Services,Culture & Sport,011060,Hardwick Park Catering,Supplies and Services,324117,Provisions,14-Feb-2018,000007019422165,FREEMAN CATERING BUTCH,5422,Catering costs - provisions,26.01,0.00,26.01
Regeneration and Local Services,Culture & Sport,011060,Hardwick Park Catering,Supplies and Services,324117,Provisions,14-Feb-2018,000007019422169,FREEMAN CATERING BUTCH,5422,Catering costs - provisions,14.85,0.00,14.85
Regeneration and Local Services,Culture & Sport,011060,Hardwick Park Catering,Supplies and Services,324117,Provisions,14-Feb-2018,000007019422173,JR HOLLAND FOODSERVICE,5422,Catering costs - provisions,57.28,0.00,57.28
Regeneration and Local Services,Culture & Sport,011060,Hardwick Park Catering,Supplies and Services,324117,Provisions,14-Feb-2018,000007019422177,JR HOLLAND FOODSERVICE,5422,Catering costs - provisions,49.45,0.00,49.45
Resources,Digital and Customer Services,065321,Operations - Digital & Customer Services,Supplies and Services,342033,Computers and Communications,14-Feb-2018,000007019422193,Amazon UK Marketplace,5942,Computer hardware,103.92,0.00,103.92
Regeneration and Local Services,Economic Development and Housing,030755,Durham Employment & Skills - Other Training,Employees,040149,Recruitment Instruction and Training,14-Feb-2018,000007019422195,CITB,8220,Training-all costs,30.00,5.00,25.00
Regeneration and Local Services,Economic Development and Housing,030755,Durham Employment & Skills - Other Training,Employees,040149,Recruitment Instruction and Training,14-Feb-2018,000007019422199,CITB,8220,Training-all costs,30.00,5.00,25.00
Children and Young Peoples Services,Head of Looked After Provision Permanence and Care Leavers,085332,Middlestone Moor CU,Supplies and Services,304259,Equipment and Materials,14-Feb-2018,000007019422201,WILKO RETAIL LIMIT,5722,Equipment-purchase and rental,12.60,0.00,12.60
Children and Young Peoples Services,Head of Looked After Provision Permanence and Care Leavers,085332,Middlestone Moor CU,Supplies and Services,324117,Provisions,14-Feb-2018,000007019422203,TESCO STORES 2916,5411,Catering costs - provisions,55.96,0.00,55.96
Regeneration and Local Services,Direct Services,021234,Catering - Locomotion,Supplies and Services,324117,Provisions,14-Feb-2018,000007019422205,HOPWELLS LTD,5811,Catering costs - provisions,228.50,0.00,228.50
Regeneration and Local Services,Direct Services,021234,Catering - Locomotion,Supplies and Services,324117,Provisions,14-Feb-2018,000007019422209,FREEMAN CATERING BUTCH,5422,Catering costs - provisions,62.92,0.00,62.92
Regeneration and Local Services,Direct Services,021234,Catering - Locomotion,Supplies and Services,324117,Provisions,14-Feb-2018,000007019422211,JR HOLLAND FOODSERVICE,5422,Catering costs - provisions,91.70,0.00,91.70
Regeneration and Local Services,Direct Services,021234,Catering - Locomotion,Supplies and Services,324117,Provisions,14-Feb-2018,000007019422213,JR HOLLAND FOODSERVICE,5422,Catering costs - provisions,10.20,0.00,10.20
Regeneration and Local Services,Direct Services,010525,Catering - Green Lane,Supplies and Services,324117,Provisions,14-Feb-2018,000007019422219,FREEMAN CATERING BUTCH,5422,Catering costs - provisions,81.04,0.00,81.04
Regeneration and Local Services,Direct Services,010525,Catering - Green Lane,Supplies and Services,324117,Provisions,14-Feb-2018,000007019422223,JR HOLLAND FOODSERVICE,5422,Catering costs - provisions,83.98,0.00,83.98
Transformation and Partnerships,Comms & Information Management,060131,County Records,Supplies and Services,384999,Miscellaneous Expenses,14-Feb-2018,000007019422235,IWM ONLINE SHOP,7999,Other expenses,11.95,1.99,9.96
Transformation and Partnerships,Comms & Information Management,060131,County Records,Supplies and Services,312009,Newspapers Books and Periodicals,14-Feb-2018,000007019422239,SKR AbeBooks 4YKHLM,5942,Newspapers books and periodicals,12.30,0.00,12.30
Regeneration and Local Services,Direct Services,010367,C&G - South Grounds Maintenance,Supplies and Services,324117,Provisions,14-Feb-2018,000007019422249,J M RAINE,5399,Catering costs - provisions,43.40,7.23,36.17
Adult and Health Services,Head of Adults,055643,Hawthorn House LD Respite Unit,Supplies and Services,324117,Provisions,14-Feb-2018,000007019422279,JR HOLLAND FOODSERVICE,5422,Catering costs - provisions,19.20,0.00,19.20
Children and Young Peoples Services,Head of Education,078100,Curric and Professional Development,Supplies and Services,312011,Newspapers Books and Periodicals,14-Feb-2018,000007019422289,CHARLES DICKENS (SPENN,5251,Books-school library,5.27,0.88,4.39
Regeneration and Local Services,Direct Services,010301,C&G - North Grounds Maintenance,Supplies and Services,328041,Clothing Uniforms and Laundry,14-Feb-2018,000007019422297,THOMAS OWEN & SONS /N/,5611,Clothing uniforms and laundry,275.33,45.89,229.44
Children and Young Peoples Services,Head of Looked After Provision Permanence and Care Leavers,085957,Secure Management,Supplies and Services,308011,Furniture,14-Feb-2018,000007019422317,PAYPAL LE,5712,Furniture repair and replacement,255.98,42.66,213.32
Children and Young Peoples Services,Head of Looked After Provision Permanence and Care Leavers,085957,Secure Management,Supplies and Services,324117,Provisions,14-Feb-2018,000007019422319,TESCO STORES 6329,5411,Catering costs - provisions,152.74,0.00,152.74
Regeneration and Local Services,Spatial Policy Planning Assets & Environment,031115,Business Energy Efficiency Project (BEEP),Supplies and Services,344033,Telephones,14-Feb-2018,000007019422325,EE TOP UP VESTA,4814,Telephones general-all costs,10.00,0.00,10.00
Regeneration and Local Services,Spatial Policy Planning Assets & Environment,031115,Business Energy Efficiency Project (BEEP),Supplies and Services,344033,Telephones,14-Feb-2018,000007019422329,EE TOP UP VESTA,4814,Telephones general-all costs,10.00,0.00,10.00
Children and Young Peoples Services,Head of Education,071903,EYDCP-Sustainability EDS,Supplies and Services,324117,Provisions,14-Feb-2018,000007019422333,SAINSBURYS 0776,5411,Catering costs - provisions,51.05,0.00,51.05
Children and Young Peoples Services,Head of Education,071903,EYDCP-Sustainability EDS,Supplies and Services,384999,Miscellaneous Expenses,14-Feb-2018,000007019422337,SMYTHS TOYS UK LTD,5945,Other expenses,31.92,0.00,31.92
Children and Young Peoples Services,Head of Education,071903,EYDCP-Sustainability EDS,Supplies and Services,324117,Provisions,14-Feb-2018,000007019422339,ASDA STORES LTD 4313,5411,Catering costs - provisions,28.00,0.00,28.00
Regeneration and Local Services,Culture & Sport,054235,Bishop Auckland Town Hall Cafe,Supplies and Services,324117,Provisions,14-Feb-2018,000007019422349,JR HOLLAND FOODSERVICE,5422,Catering costs - provisions,19.49,0.00,19.49
Regeneration and Local Services,Direct Services,021324,Catering - Meadowfield,Supplies and Services,324117,Provisions,14-Feb-2018,000007019422359,FREEMAN CATERING BUTCH,5422,Catering costs - provisions,84.16,0.00,84.16
Regeneration and Local Services,Direct Services,021324,Catering - Meadowfield,Supplies and Services,324117,Provisions,14-Feb-2018,000007019422363,JR HOLLAND FOODSERVICE,5422,Catering costs - provisions,34.76,0.00,34.76
Regeneration and Local Services,Direct Services,021324,Catering - Meadowfield,Supplies and Services,324117,Provisions,14-Feb-2018,000007019422367,JR HOLLAND FOODSERVICE,5422,Catering costs - provisions,13.89,0.00,13.89
Adult and Health Services,Head of Adults,055301,Stanley Pathways,Supplies and Services,324117,Provisions,14-Feb-2018,000007019422383,ASDA SUPERSTORE,5411,Catering costs - provisions,18.19,0.00,18.19
Adult and Health Services,Head of Adults,055306,Spennymoor Pathways,Supplies and Services,324117,Provisions,14-Feb-2018,000007019422469,ASDA SUPERSTORE 4987,5411,Catering costs - provisions,4.29,0.00,4.29
Regeneration and Local Services,Direct Services,021235,Catering - Wharton Park,Supplies and Services,324117,Provisions,14-Feb-2018,000007019422473,HOPWELLS LTD,5811,Catering costs - provisions,22.92,3.82,19.10
Regeneration and Local Services,Direct Services,021235,Catering - Wharton Park,Supplies and Services,324117,Provisions,14-Feb-2018,000007019422473 - 1,HOPWELLS LTD,5811,Catering costs - provisions,115.81,,115.81
Regeneration and Local Services,Direct Services,021235,Catering - Wharton Park,Supplies and Services,324117,Provisions,14-Feb-2018,000007019422477,JR HOLLAND FOODSERVICE,5422,Catering costs - provisions,21.51,0.00,21.51
Children and Young Peoples Services,Head of Looked After Provision Permanence and Care Leavers,085363,LAC & Permanence Team 3,Supplies and Services,304259,Equipment and Materials,14-Feb-2018,000007019422481,WWW.DURHAM.GOV.UK,9399,Equipment-purchase and rental,24.00,0.00,24.00
Regeneration and Local Services,Economic Development and Housing,030737,Durham Works Flexible Fund,Supplies and Services,304259,Equipment and Materials,14-Feb-2018,000007019422495,WWW.DURHAM.GOV.UK,9399,Equipment-purchase and rental,12.00,0.00,12.00
Regeneration and Local Services,Economic Development and Housing,031576,B& B - Temp Accom,Supplies and Services,364320,Grants to Voluntary Organisations,14-Feb-2018,000007024122795,PREMIER INN,3811,Accommodation assistance,73.00,12.17,60.83
Regeneration and Local Services,Economic Development and Housing,031576,B& B - Temp Accom,Supplies and Services,364320,Grants to Voluntary Organisations,14-Feb-2018,000007024122799,PREMIER INN,3811,Accommodation assistance,74.00,12.33,61.67
Regeneration and Local Services,Economic Development and Housing,030699,Business Growth and Innovation General,Supplies and Services,342033,Computers and Communications,14-Feb-2018,000007024122829,WATCHFULPAYPAL,7379,Computer hardware,14.48,0.00,14.48
Regeneration and Local Services,Culture & Sport,010661,Meadowfield Leisure Centre,Supplies and Services,384956,Miscellaneous Expenses,14-Feb-2018,000007024123009,TVLICENSING.CO.UK,7392,Licences,147.00,0.00,147.00
Regeneration and Local Services,Direct Services,010367,C&G - South Grounds Maintenance,Transport,215995,Running Costs of Vehicles,14-Feb-2018,000007029705215,SNOWBALLS (RAILWAY,5533,Vehicle running expenses,116.52,19.42,97.10
Children and Young Peoples Services,Head of Education,071903,EYDCP-Sustainability EDS,Supplies and Services,312011,Newspapers Books and Periodicals,15-Feb-2018,000007019422133,Amazon UK Marketplace,5942,Books-school library,8.96,0.00,8.96
Children and Young Peoples Services,Head of Looked After Provision Permanence and Care Leavers,085341,High Etherley Satelite Home,Supplies and Services,384999,Miscellaneous Expenses,15-Feb-2018,000007024122739,ROSE AND HYDE,7230,Other expenses,60.50,0.00,60.50
Children and Young Peoples Services,Head of Education,071801,Selby Cottage Childcare Centre,Supplies and Services,324117,Provisions,15-Feb-2018,000007024122765,ASDA HOME SHOPPING,5411,Catering costs - provisions,5.00,0.00,5.00
Regeneration and Local Services,Economic Development and Housing,031576,B& B - Temp Accom,Supplies and Services,364320,Grants to Voluntary Organisations,15-Feb-2018,000007024122769,TRAVELODGE,3615,Accommodation assistance,53.00,0.00,53.00
Adult and Health Services,EnvironmentHealth & Consumer Protection,010934,Works in Default Holding Code,Income,720130,Fees and Charges,15-Feb-2018,000007024122775,WWW.MONEYCLAIM.GOV,9399,Fees-legal,60.00,0.00,60.00
Regeneration and Local Services,Direct Services,010328,R&R - North Refuse Collection,Income,720130,Fees and Charges,15-Feb-2018,000007024122777,WWW.MONEYCLAIM.GOV,9399,Fees-legal,60.00,0.00,60.00
Regeneration and Local Services,Direct Services,010301,C&G - North Grounds Maintenance,Third Party Payments,430100,Rendered by Private Contractors,15-Feb-2018,000007024122781,WILLOWCRETE MAN,5039,Payments to sub-contractors,124.80,20.80,104.00
Regeneration and Local Services,Direct Services,010301,C&G - North Grounds Maintenance,Supplies and Services,304403,Equipment and Materials,15-Feb-2018,000007024122785,BESCOL,5231,Other consumables,108.98,18.16,90.82
Regeneration and Local Services,Direct Services,010301,C&G - North Grounds Maintenance,Supplies and Services,304403,Equipment and Materials,15-Feb-2018,000007024122789,BESCOL,5231,Other consumables,80.29,13.38,66.91
Regeneration and Local Services,Direct Services,010301,C&G - North Grounds Maintenance,Supplies and Services,304403,Equipment and Materials,15-Feb-2018,000007024122791,BESCOL,5231,Other consumables,22.40,3.73,18.67
Dedicated Schools Grant,Dedicated Schools Grant,079050,SENSS-Sensory,Supplies and Services,312011,Newspapers Books and Periodicals,15-Feb-2018,000007024122819,Amazon UK Marketplace,5942,Books-school library,25.09,0.00,25.09
Dedicated Schools Grant,Dedicated Schools Grant,079050,SENSS-Sensory,Supplies and Services,312011,Newspapers Books and Periodicals,15-Feb-2018,000007024122821,Amazon UK Marketplace,5942,Books-school library,29.21,0.00,29.21
Dedicated Schools Grant,Dedicated Schools Grant,079050,SENSS-Sensory,Supplies and Services,312011,Newspapers Books and Periodicals,15-Feb-2018,000007024122825,AMAZON SVCS EU-UK AMAZ,5942,Books-school library,81.67,0.00,81.67
Children and Young Peoples Services,Head of Early Help Assessment and Safeguarding,085515,Community Support Team,Supplies and Services,332047,Printing Stationery and Gen Off Exps,15-Feb-2018,000007024122863,AMAZON SVCS EU-UK AMAZ,5942,Stationery,20.16,0.00,20.16
Children and Young Peoples Services,Head of Early Help Assessment and Safeguarding,071440,Barnard Castle One Point Hub,Supplies and Services,332047,Printing Stationery and Gen Off Exps,15-Feb-2018,000007024122865,AMAZON SVCS EU-UK AMAZ,5942,Stationery,50.40,0.00,50.40
Regeneration and Local Services,Economic Development and Housing,030737,Durham Works Flexible Fund,Transport,235057,Public Transport,15-Feb-2018,000007024122869,ARRIVA NORTH EAST,4131,Staff travelling,28.00,0.00,28.00
Regeneration and Local Services,Economic Development and Housing,030737,Durham Works Flexible Fund,Transport,235057,Public Transport,15-Feb-2018,000007024122873,ARRIVA NORTH EAST,4131,Staff travelling,23.00,0.00,23.00
Regeneration and Local Services,Culture & Sport,054233,Bishop Auckland Town Hall Library,Supplies and Services,312011,Newspapers Books and Periodicals,15-Feb-2018,000007024122875,Amazon UK Marketplace,5942,Books-school library,44.83,0.00,44.83
Regeneration and Local Services,Culture & Sport,054233,Bishop Auckland Town Hall Library,Supplies and Services,304259,Equipment and Materials,15-Feb-2018,000007024122879,WILKO RETAIL LIMIT,5722,Equipment-purchase and rental,45.55,0.00,45.55
Regeneration and Local Services,Economic Development and Housing,030544,Rural Employability - Client Engagement,Supplies and Services,328041,Clothing Uniforms and Laundry,15-Feb-2018,000007024122883,ASDA STORES LTD,5411,Clothing uniforms and laundry,54.00,0.00,54.00
Regeneration and Local Services,Economic Development and Housing,030544,Rural Employability - Client Engagement,Supplies and Services,324117,Provisions,15-Feb-2018,000007024122887,ASDA STORES LTD,5411,Catering costs - provisions,52.00,0.00,52.00
Children and Young Peoples Services,Head of Early Help Assessment and Safeguarding,085622,Families First Ferryhill,Supplies and Services,338048,Services,15-Feb-2018,000007024122895,WWW.DURHAM.GOV.UK,9399,Court Costs,12.00,0.00,12.00
Regeneration and Local Services,Economic Development and Housing,030725,Community Economic Development,Transport,235057,Public Transport,15-Feb-2018,000007024122927,ARRIVA NORTH EAST,4131,Staff travelling,85.50,0.00,85.50
Regeneration and Local Services,Economic Development and Housing,030749,Employability - Youth Contract,Transport,235057,Public Transport,15-Feb-2018,000007024122931,ARRIVA NORTH EAST,4131,Staff travelling,6.50,0.00,6.50
Regeneration and Local Services,Culture & Sport,054813,Gala Theatre - Technical,Supplies and Services,342053,Computers and Communications,15-Feb-2018,000007024122951,STORMFRONT DURHAM,5045,Computer software,69.00,11.50,57.50
Regeneration and Local Services,Culture & Sport,054813,Gala Theatre - Technical,Supplies and Services,328041,Clothing Uniforms and Laundry,15-Feb-2018,000007024122955,WWW.FLINTS.CO.UK,5691,Clothing uniforms and laundry,98.93,16.49,82.44
Children and Young Peoples Services,Head of Education,071903,EYDCP-Sustainability EDS,Supplies and Services,312011,Newspapers Books and Periodicals,15-Feb-2018,000007024122959,Amazon UK Marketplace,5942,Books-school library,4.12,0.00,4.12
Children and Young Peoples Services,Head of Education,071903,EYDCP-Sustainability EDS,Supplies and Services,312011,Newspapers Books and Periodicals,15-Feb-2018,000007024122961,Amazon UK Marketplace,5942,Books-school library,26.94,0.00,26.94
Regeneration and Local Services,Spatial Policy Planning Assets & Environment,031222,North Pennines Allen Valleys Landscape Partnership,Supplies and Services,324117,Provisions,15-Feb-2018,000007024122985,ALLENDALE CO-OPERATIVE,5499,Catering costs - provisions,8.86,0.00,8.86
Children and Young Peoples Services,Head of Looked After Provision Permanence and Care Leavers,085332,Middlestone Moor CU,Supplies and Services,324117,Provisions,15-Feb-2018,000007024122993,ASDA SUPERSTORE 4987,5411,Catering costs - provisions,69.47,0.00,69.47
Regeneration and Local Services,Economic Development and Housing,030714,Salvus House,Supplies and Services,324117,Provisions,15-Feb-2018,000007024122997,SAINSBURYS SACAT 0776,5411,Catering costs - provisions,1.10,0.00,1.10
Regeneration and Local Services,Economic Development and Housing,030553,Europe Direct Scheme,Supplies and Services,332047,Printing Stationery and Gen Off Exps,15-Feb-2018,000007024123013,STAMPS4U.CO.UK,5734,Stationery,29.95,4.99,24.96
Regeneration and Local Services,Economic Development and Housing,030553,Europe Direct Scheme,Supplies and Services,348037,Subsistence,15-Feb-2018,000007024123015,SIX RIVER TERRACE,5812,Subsistence,10.10,0.00,10.10
Regeneration and Local Services,Economic Development and Housing,031524,GRT Site St Philips Park Coundon Grange,Supplies and Services,384999,Miscellaneous Expenses,15-Feb-2018,000007024123025,WWW.VOUCHEREXPRESS.CO.,5947,Other expenses,70.00,0.00,70.00
Regeneration and Local Services,Economic Development and Housing,031576,B& B - Temp Accom,Supplies and Services,384999,Miscellaneous Expenses,15-Feb-2018,000007024123029,TRAVELODGE,3615,Other expenses,39.00,6.50,32.50
Regeneration and Local Services,Economic Development and Housing,031576,B& B - Temp Accom,Supplies and Services,384999,Miscellaneous Expenses,15-Feb-2018,000007024123029 - 1,TRAVELODGE,3615,Other expenses,5.25,,5.25
Children and Young Peoples Services,Head of Looked After Provision Permanence and Care Leavers,085957,Secure Management,Supplies and Services,304259,Equipment and Materials,15-Feb-2018,000007024123043,SCREWFIX DIRECT,5211,Equipment-purchase and rental,74.94,12.49,62.45
Children and Young Peoples Services,Head of Looked After Provision Permanence and Care Leavers,085957,Secure Management,Supplies and Services,304259,Equipment and Materials,15-Feb-2018,000007024123043 - 1,SCREWFIX DIRECT,5211,Equipment-purchase and rental,0.03,,0.03
Children and Young Peoples Services,Head of Looked After Provision Permanence and Care Leavers,085957,Secure Management,Supplies and Services,328041,Clothing Uniforms and Laundry,15-Feb-2018,000007024123047,WWW.ARGOS.CO.UK,5310,Clothing uniforms and laundry,39.94,6.66,33.28
Children and Young Peoples Services,Head of Early Help Assessment and Safeguarding,088001,Peterlee Locality,Supplies and Services,328041,Clothing Uniforms and Laundry,15-Feb-2018,000007024123051,ARGOS RETAIL GROUP,5310,Clothing uniforms and laundry,40.46,0.00,40.46
Children and Young Peoples Services,Head of Early Help Assessment and Safeguarding,088001,Peterlee Locality,Supplies and Services,304259,Equipment and Materials,15-Feb-2018,000007024123055,WILKO.COM,5722,Equipment-purchase and rental,23.00,0.00,23.00
Adult and Health Services,Head of Adults,055301,Stanley Pathways,Supplies and Services,324117,Provisions,15-Feb-2018,000007024123063,ICELAND,5411,Catering costs - provisions,1.78,0.00,1.78
Transformation and Partnerships,Comms & Information Management,060270,Communications and Marketing,Supplies and Services,336005,Advertising,15-Feb-2018,000007024123093,FACEBK 5RG6ADE4B2,7311,Advertising other than for staff,499.99,0.00,499.99
Regeneration and Local Services,Culture & Sport,011217,Commercial Management,Supplies and Services,332047,Printing Stationery and Gen Off Exps,15-Feb-2018,000007024123099,PC WORLD ONLINE,5732,Stationery,19.99,0.00,19.99
Regeneration and Local Services,Spatial Policy Planning Assets & Environment,031200,North Pennines Core,Supplies and Services,312011,Newspapers Books and Periodicals,15-Feb-2018,000007024123105,Amazon UK Marketplace,5942,Books-school library,27.74,0.00,27.74
Regeneration and Local Services,Spatial Policy Planning Assets & Environment,031200,North Pennines Core,Supplies and Services,304403,Equipment and Materials,15-Feb-2018,000007024123109,TIMPSON LTD,7251,Other consumables,35.00,0.00,35.00
Regeneration and Local Services,Economic Development and Housing,031576,B& B - Temp Accom,Supplies and Services,364320,Grants to Voluntary Organisations,15-Feb-2018,000007029704759,PREMIER INN,3811,Accommodation assistance,65.00,0.00,65.00
Regeneration and Local Services,Economic Development and Housing,031576,B& B - Temp Accom,Supplies and Services,364320,Grants to Voluntary Organisations,15-Feb-2018,000007029704763,PREMIER INN,3811,Accommodation assistance,65.00,0.00,65.00
Regeneration and Local Services,Economic Development and Housing,031576,B& B - Temp Accom,Supplies and Services,364320,Grants to Voluntary Organisations,15-Feb-2018,000007029704765,PREMIER INN,3811,Accommodation assistance,65.00,0.00,65.00
Regeneration and Local Services,Direct Services,010383,C&G - South Street Cleansing,Transport,215995,Running Costs of Vehicles,15-Feb-2018,000007029704805,SNOWBALLS (RAILWAY,5533,Vehicle running expenses,137.39,22.90,114.49
Regeneration and Local Services,Direct Services,021242,Catering - County Hall,Supplies and Services,324117,Provisions,15-Feb-2018,000007029704903,JR HOLLAND FOODSERVICE,5422,Catering costs - provisions,60.66,0.00,60.66
Regeneration and Local Services,Direct Services,021242,Catering - County Hall,Supplies and Services,324117,Provisions,15-Feb-2018,000007029704909,JR HOLLAND FOODSERVICE,5422,Catering costs - provisions,13.20,0.00,13.20
Regeneration and Local Services,Direct Services,021242,Catering - County Hall,Supplies and Services,324117,Provisions,15-Feb-2018,000007029704911,JR HOLLAND FOODSERVICE,5422,Catering costs - provisions,6.95,0.00,6.95
Regeneration and Local Services,Culture & Sport,054812,Gala Theatre - Catering etc,Supplies and Services,324117,Provisions,15-Feb-2018,000007029704957,JR HOLLAND FOODSERVICE,5422,Catering costs - provisions,40.72,0.00,40.72
Regeneration and Local Services,Culture & Sport,054813,Gala Theatre - Technical,Supplies and Services,342053,Computers and Communications,15-Feb-2018,000007029705067,FIGURE 53,5045,Computer software,21.44,0.00,21.44
Regeneration and Local Services,Culture & Sport,011060,Hardwick Park Catering,Supplies and Services,324117,Provisions,15-Feb-2018,000007029705141,JR HOLLAND FOODSERVICE,5422,Catering costs - provisions,48.13,0.00,48.13
Regeneration and Local Services,Culture & Sport,011060,Hardwick Park Catering,Supplies and Services,324117,Provisions,15-Feb-2018,000007029705149,BATLEYS PERTH,5300,Catering costs - provisions,49.86,8.31,41.55
Regeneration and Local Services,Culture & Sport,011060,Hardwick Park Catering,Supplies and Services,324117,Provisions,15-Feb-2018,000007029705149 - 1,BATLEYS PERTH,5300,Catering costs - provisions,143.42,,143.42
Regeneration and Local Services,Culture & Sport,011060,Hardwick Park Catering,Supplies and Services,324117,Provisions,15-Feb-2018,000007029705153,BATLEYS PERTH,5300,Catering costs - provisions,-12.89,0.00,-12.89
Regeneration and Local Services,Redundant Projects and Business Services,010568,Customer Services - Teesdale,Supplies and Services,384956,Miscellaneous Expenses,15-Feb-2018,000007029705187,TV LICENSING,7392,Licences,147.00,0.00,147.00
Children and Young Peoples Services,Head of Looked After Provision Permanence and Care Leavers,085957,Secure Management,Supplies and Services,324117,Provisions,15-Feb-2018,000007029705297,TESCO STORES 6329,5411,Catering costs - provisions,86.26,0.00,86.26
Children and Young Peoples Services,Head of Early Help Assessment and Safeguarding,088001,Peterlee Locality,Supplies and Services,352001,Conference Expenses,15-Feb-2018,000007029705303,TVLICENSING.CO.UK,7392,Conferencesseminars fees etc,147.00,0.00,147.00
